Workbook

Sheet Guidance
B2: NV-GHG | E2: Version 3.1_en
E3: Updated 08.04.2022 | M3: Contacts for questions or comments about the tool:
H4: These calculations were created by:
H5: Name: | M5: Nye Veier: | N5: Maarten Lohne van der Eynden, | Q5: maarten.eynden@nyeveier.no
H6: Company: | M6: NIRAS Norge: | N6: Ragnhild Stamer Ekerholt, | Q6: raek@niras.com
H7: Position: | N7: Julie Gade Gørbitz, | Q7: jugg@niras.com
H8: Email:
H9: Telephone:
H10: Quality assurance by:
C13: Introduction
C14: NV-GHG is a tool for calculating greenhouse gas emissions from road projects at an early stage. The tool was developed by NIRAS Norge AS for Nye Veier AS. In case of ambiguity or contradictions between the Norwegian and English version of the tool, the Norwegian version prevails. The tool has three main purposes: - Baseline calculations (calculate baseline for new projects at the time the section is allocated to Nye Veier) - Budget calculations (greenhouse gas budget for planned built solution - for some sections this will be required from the contractor) - Result calculations (calculations of greenhouse gas emissions from the completed solution - for some sections this will be required from the contractor) The tool is intended to provide a good overview of the most important sources of the project's total greenhouse gas emissions, as well as convey emission-driving processes and activities in a clear way, so that measures can be implemented where the potential for emission reductions is the greatest. Great emphasis has been placed on the tool being user-friendly, both for the client, consultant and contractor. It is therefore only necessary to fill in data in the 'Project description and input' tab. If the user of the tool wants to enter project-specific values ​​in addition to this, this can be done in the tabs 'Transport and energy demand', 'Calculation factors' and 'Emission factors'. All tabs where it is possible to make changes have a green color. Blue tabs contain results.
C26: The different tabs
C27: Project description and input
C28: In this tab, information about lengths, areas and quantities is entered in order to be able to calculate greenhouse gas emissions in the project. The tool will be able to estimate greenhouse gas emissions based on the information in this tab alone. The table 'About the section' provides general information about the section required to be able to calculate total quantities. In the table 'Land use change' the percentage distribution between the different land types occupied in the project are entered. The sum of these should be 100%. In the table 'Input', more detailed information is entered about different constructions, mass handling, road types, etc. Units are selected from the drop-down menus.
C31: Results
C32: The results are presented in tables and graphs in the results tab. The numbers are retrieved from the calculations tab.
C34: Sensitivity analysis
C35: The sensitivity analysis shows what effect a percentage change in one or more input factors will have on total emissions. The sensitivity analysis thus provides a picture of which measures and changes will have the greatest impact on the total greenhouse gas emissions, both negatively and positively.
C37: Calculations
C38: The 'Calculations' tab collects all information from 'Project description and input' and the various unit and factor tabs. Here, quantities and activities are multiplied by emission factors so that we are left with greenhouse gas emissions related to the various main and sub-activities. The calculation tab distinguishes between construction phase and operation, so that it is clear which emissions are related to the construction period (year 0) and which are related to operation and maintenance throughout the analysis period. Values from the calculation tab are further used in the results tab.
C41: 16 unit tabs for the following categories: Main road, Secondary road, Construction road, Tunnel single tube, Tunnel double tube, Concrete bridge, Steel bridge, Wood bridge, Culvert, Vegetation and land use change, Blasting and crushed rock, Addition road, Operation and maintenance, Re-asphalting, Other concrete and injection and Ground stabilization.
C42: The unit tabs are based on information from the calculation factor tab to calculate quantities and energy consumption for a given scalable unit. For example, the tunnel tabs are based on the selected tunnel cross-section profile to calculate quantities and energy consumption per meter, while the road tabs calculate per square meter so that these change dynamically with a change in road width. The unit tabs include materials, transport distances and construction work. Values from the unit tabs are further used in the calculation tab.
C45: Transport and energy demand
C46: The tab collects all calculation factors related to transport, such as working speeds for different machines, transport distances and energy consumption. All factors can be adapted to the project by entering project-specific values - remember to enter documentation in the column 'Documentation project-specific values'! The calculations always read values from the column 'Value used in calculations', which is linked to the column for default value and project-specific value. The default values are retrieved if the cell for project-specific values is empty. If a project-specific value is entered, this will overwrite the default value. It is also possible to distinguish between different fuels by changing the percentages of fossil diesel, biodiesel and electricity/hydrogen for the different machine types. Note that power consumption must be filled in if electrical machines are used.
C50: Emission factors
C51: The tab provides an overview of all emission factors used in the project. The emission factor tab is used by the calculation tab, where the factors are multiplied by quantities to give an overall result, produced in the results tab. All standard emission factors are intended to represent industry standards for each material, but due to different production methods and locations, this will vary between manufacturers and materials within the same material group. The factors can therefore be adapted to the project by entering project-specific values ​​- remember to enter documentation in the column 'Documentation project-specific values'! Pay attention to the unit of the emission factors when using project-specific values. If the unit of an emission factor is in kg CO2e/kg and you wish to use an emission factor with unit kg CO2e/m3, this must be converted to kg CO2/kg using the bulk density of the given material (refer to the calculation factor tab). The formula for conversion is as follows: Emission factor [kg CO2e/kg] = emission factor [kg CO2e/m3]/bulkt density [kg/m3]. The calculations always read values ​​from the column 'Value used in calculations', which is linked to the column for default value and project-specific value. The default values ​​are retrieved if the cell for project-specific values ​​is empty. If a project-specific value is entered, this will overwrite the default value. If project-specific emission factors are used, these must be documented with a valid EPD.
C58: Calculation factors
C59: The tab collects all calculation factors that are not related to transport, such as bulk densities, material thicknesses, lifetimes, etc. All factors can be adapted to the project by entering project-specific values - remember to enter documentation in the column 'Documentation project-specific values'! The calculations always read values from the column 'Value used in calculations', which is linked to the column for default value and project-specific value. The default values are retrieved if the cell for project-specific values is empty. If a project-specific value is entered, this will overwrite the default value.
C63: Units
C64: The following units are used in the tool:
C66: Abbreviation | D66: Meaning | E66: Category | F66: Comments
C67: AADT | D67: Annual Average Daily Traffic | E67: -
C68: km | D68: Kilometre | E68: Distance
C69: m | D69: Metre | E69: Distance
C70: h | D70: Hour | E70: Time
C71: t | D71: Tonne | E71: Weight
C72: kg | D72: Kilogram | E72: Weight
C73: tkm | D73: Tonne-kilometre | E73: Transport work | F73: One tonne-kilometre corresponds to trasporting one tonne of cargo one kilometre
C74: L | D74: Litre | E74: Volume
C75: m3 | D75: Cubic metre | E75: Volume
C76: m2 | D76: Square metre | E76: Area
C77: kWh | D77: Kilowatt hour | E77: Energy | F77: Electric energy
C78: kW | D78: Kilowatt | E78: Power | F78: Electric power
C79: p | D79: Piece | E79: Amount
C80: yr | D80: Year | E80: Time

Sheet Project description and input
B2: About the section | J2: Input
B3: Project information | C3: Amount | D3: Description | G3: Comments | J3: Calculation post (from cost estimation report) | K3: Description | L3: Amount | M3: Defined unit (choose from drop-down menu) | N3: Comments
B4: Length main section [m] | C4: =F37 -> 0 | D4: The sum of road, tunnels and bridges in the main section
B5: Average width of construction belt [m] | C5: 70 | D5: To calculate vegetation removal | G5: 70 as a standard
B6: Number of single tube tunnels | D6: To calculate tunnel portals
B7: Number of double tube tunnels | D7: To calculate tunnel portals
B8: Number of culverts | D8: To calculate construction work
B9: Average width of main road | C9: 10
B10: Average width of secondary road | C10: 5
B11: Average width of construction road | C11: 4
B12: Average width of concrete bridges | C12: 10
B13: Average width of steel bridges | C13: 10
B14: Average width of wood bridges | C14: 10
B15: Average width of culverts | C15: =(L24+L25)/(30+22) -> 0 | D15: To calculate construction work and concrete | G15: 10 as a standard
B16: Analysis period [yr] | C16: 60 | D16: Default 60 years
B17: AADT | C17: 12000 | D17: Average AADT, originally
B18: Delta AADT | D18: Change in AADT from original section
B19: Lighting main road | C19: Yes | D19: Is the main road lit
B20: Lighting secondary road | C20: No | D20: Are the secondary roads lit
B22: Land use change | D22: Comment
B23: Total land occupation [m2] | C23: =C5*E37-C40 -> 0 | D23: As default calculated as the with of the construction belt multiplied by total road length of the main road, minus sections built in existing route. Land occupation from secondary roads and construction roads has to be added manually in the formula.
B25: Nature type | C25: Share [%] | D25: Comment
B26: Forest - low site quality
B27: Forest - medium site quality
B28: Forest - high site quality
B29: Marsh
B30: Agricultural land
B31: Built land | V31: Removal of vegetation (m2) | W31: m2
B32: Sum | C32: =SUM(C26:C31) -> 0 | D32: Must be 100%! | V32: Open-air blasting (fm3) | W32: fm3
B33: If the forest site quality is unknown, all forested areas should be listed as medium site quality | V33: Tunnel blasting (fm3) | W33: fm3
V34: Soil masses used in project (m3) | W34: m3
B35: Percentages of tunnel, bridege and open road for main section | V35: Soil masses for landfill (m3) | W35: m3
C36: Tunnel | D36: Bridge | E36: Open road | F36: Total | V36: Crushed rock (internal) to the project (fm3) | W36: fm3
B37: Length [m] | F37: =C37+D37+E37 -> 0 | V37: Crushed rock (internal) to landfill (fm3) | W37: fm3
B38: Share [%] | C38: =IFERROR(C37/C4,0) -> 0 | D38: =IFERROR(D37/C4,0) -> 0 | E38: =IFERROR(E37/(C4),0) -> 0 | F38: =C38+D38+E38 -> 0 | V38: Crushed rock (internal) to the project via rock crushing plant (fm3) | W38: fm3
V39: Crushed rock from outside the project (m3) | W39: m3
B40: Of which open road in existing route [m] | V40: Main road (m) | W40: m
V41: Secondary road (m) | W41: m
B42: Control mass balance rock masses - only for control purposes, do not fill in! | V42: Construction road (m) | W42: m
B43: Total amount of blasting rock from blasting (fm3) | C43: =SUMIF(M4:M110,V33,L4:L110)+SUMIF(M4:M110,V32,L4:L110) -> 0 | V43: Concrete bridge (m) | W43: m
B44: Total amount of internal blasting rock handled (fm3) | C44: =SUMIF(M4:M110,V36,L4:L110)+SUMIF(M4:M110,V37,L4:L110)+SUMIF(M4:M110,V38,L4:L110) -> 0 | V44: Steel bridge (m) | W44: m
B45: Deviation internal blasting handled | C45: =C44-C43 -> 0 | D45: Should not be deviations | V45: Wood bridge (m) | W45: m
B46: Estimated total need for crushed rock (m3) | C46: =('Calculation factors'!D26+'Calculation factors'!D27)*(Calculations!C49*C9+Calculations!C60*C10+Calculations!C123*'Calculation factors'!D60+Calculations!C142*'Calculation factors'!D61*2)+'Calculation factors'!D26*(Calculations!C71*C11) -> 0 | D46: Assumes reinforcement and frost protection layers on all roads and in tunnels, except construction roads that only have reinforcement layers. | V46: Tunnel single tube (m) | W46: m
B47: Sum internal blasted rock used in the project (m3) | C47: =(SUMIF(M4:M110,V36,L4:L110)+SUMIF(M4:M110,V38,L4:L110))*'Calculation factors'!D52 -> 0 | D47: NB - converted to lm3 corresponding to coarsely crushed stone | V47: Tunnel double tube (m) | W47: m
B48: Sum external crushed rock (m3) | C48: =SUMIF(M4:M110,V39,L4:L110) -> 0 | V48: Cement for injection (water not included) (kg) | W48: kg
B49: Deviation external crushed rock | C49: =C47+C48-C46 -> 0 | D49: Deviations can be accepted if quantities deviate from standard calculations / need for crushed rock for landfills etc. | V49: Culvert (concrete) (m2) | W49: m2
B50: The distribution of the total need for crushed rock between finely and coarsely crushed rock can be changed in the calculation factors tab | V50: Ground stabilization with lime cement piles (kg) | W50: kg
V51: Noise barriers (m) | W51: m
V52: Walls (m) | W52: m
V53: Other concrete (m3) | W53: m3
V57: Belysning valg
V58: Yes
V59: No

Sheet Calculation factors
B2: Variable | C2: Unit | D2: Value used in calculations | E2: Standard value | F2: Project-specific value | G2: Comments | H2: Documentation Default value | I2: Link to documentation of default value | J2: Documentation project-specific values | K2: Link to documentation of project-spesific value
B3: Bulk densities
B4: Concrete | C4: kg/m3 | D4: =IF(F4="",E4,F4) -> 2400 | E4: 2400 | H4: Norsk betongforening Publikasjon 37: Lavkarbonbetong (2015)
B5: Steel, reinforcement steel | C5: kg/m3 | D5: 7850 | E5: 7850 | H5: "Metode for beregning av energiforbruk og klimagassutslipp for vegprosjekter", Hammervold (2009) s. 8, Engineering Toolbox | I5: https://www.engineeringtoolbox.com/metal-alloys-densities-d_50.html
B6: Stone mastic asphalt | C6: kg/m3 | D6: 2500 | E6: 2500 | H6: "Metode for beregning av energiforbruk og klimagassutslipp for vegprosjekter", Hammervold (2009) p. 34
B7: Asphalt concrete, surface | C7: kg/m3 | D7: 2500 | E7: 2500 | H7: "Metode for beregning av energiforbruk og klimagassutslipp for vegprosjekter", Hammervold (2009) p. 34
B8: Asphalt concrete, base | C8: kg/m3 | D8: 2400 | E8: 2400 | H8: Klimamodul EFFEKT 6.74
B9: Crushed stone/gravel frost protection | C9: kg/m3 | D9: 1550 | E9: 1550 | H9: Recommended value in coordination project, average of minimum and maximum value (1,4-1,7) in EPDs
B10: Crushed stone/gravel base layer | C10: kg/m3 | D10: 1550 | E10: 1550 | H10: Recommended value in coordination project, average of minimum and maximum value (1,4-1,7) in EPDs
B11: XPS | C11: kg/m3 | D11: 35 | E11: 35 | H11: VegLCA (communication with suppliers)
B12: XPS/concrete element for frost protection in tunnel | C12: kg/m3 | D12: 1804.45 | E12: =_xlfn.XLOOKUP(D59,M45:M48,R45:R48,R45) -> 1804.45 | H12: EPD XPS-/concrete element Ølen betong
B13: Topeka | C13: kg/m3 | D13: 2500 | E13: 2500 | H13: "Metode for beregning av energiforbruk og klimagassutslipp for vegprosjekter", Hammervold (2009) p. 34, using the same as concrete asphalt
B14: Soil, gravel and clay from vegetation removal | C14: kg/m3 | D14: 1629.154531 | E14: =(1550+1400+19*101.971768)/3 -> 1629.154531 | H14: Average for "grus/pukk, jord" from https://tuneutemiljo.no/jord-og-bark-salg/ and "leire" from Håndbok V220, p. 95. Figure 2.39 "Anbefalte jordparametere ved dimensjonering av landkar og støttemurer".
B15: Marsh from vegetation removal | C15: kg/m3 | D15: 150 | E15: 150 | H15: Utredning myr, Hadsel kommune (Asplan Viak, 2017)
B16: Solid rock | C16: kg/m3 | D16: 2700 | E16: 2700 | H16: Information given by supplier(s).
B17: Masses from ditch clearing | C17: kg/m3 | D17: 1400 | E17: 1400 | H17: Assuming the same density as for soil. https://tuneutemiljo.no/jord-og-bark-salg/
B18: Wood (glulam) | C18: kg/m3 | D18: 470 | E18: 470 | H18: EN 14080:2013
B19: Natutal stone | C19: kg/m3 | D19: 2700 | E19: 2700 | H19: Assuming the same density as solid rock.
B20: Shotcrete | C20: kg/m3 | D20: 2400 | E20: =E4 -> 2400 | H20: Assuming the same density as concrete.
B21: PE-foam | C21: kg/m3 | D21: 30 | E21: 30 | H21: NEPD-2915-1608-NO
B22: Material thicknesses/amounts
B23: Wearing course thickness | C23: m | D23: =IF(F23="",E23,F23) -> 0.04 | E23: 0.04 | H23: Norwegian public roads administration Håndbok N200 (assuming ÅDT > 5000)
B24: Binder course thickness | C24: m | D24: =IF(F24="",E24,F24) -> 0.04 | E24: 0.04 | H24: Norwegian public roads administration Håndbok N200 (assuming ÅDT > 5000)
B25: Upper base course thickness | C25: m | D25: 0.13 | E25: 0.13 | H25: Norwegian public roads administration Håndbok N200
B26: Lower base course thickness | C26: m | D26: 0.455 | E26: 0.455 | G26: Used only to estimate the need for crushed rock. Crushed rock needs to be filled in manually in 'Project description and input' | H26: Norwegian public roads administration Håndbok N200
B27: Frost protection course thickness for open roads | C27: m | D27: 1.74 | E27: 1.74 | G27: Used only to estimate the need for crushed rock. Crushed rock needs to be filled in manually in 'Project description and input' | H27: Norwegian public roads administration Håndbok N200
B28: Topeka thickness | C28: m | D28: 0.012 | E28: 0.012 | H28: Norwegian public roads administration Håndbok R762
B29: Frost protection element thickness in tunnel | C29: m | D29: 0.2 | E29: =_xlfn.XLOOKUP(D59,M45:M48,P45:P48,0) -> 0.2 | G29: Choose frost protection in cell F59 first! | H29: EPD XPS-/concrete element Ølen betong
B30: Shotcrete for tunnel vault thickness | C30: m | D30: 0 | E30: =IF(OR(D59=M49,D59=M50,D59=M51,D59=M52),0.088,0) -> 0 | G30: Choose frost protection in cell F59 first! | H30: Information given by producer(s), jf. VegLCA.
B31: PE-foam for tunnel vault thickness | C31: m | D31: 0 | E31: =IF(OR(D59=M49,D59=M51),0.045,0) -> 0 | G31: Choose frost protection in cell F59 first! | H31: Information given by producer(s), jf. VegLCA.
B32: Fiber reinforcement for tunnel vault with shotcrete, per m3 shotcrete | C32: kg/m3 | D32: =IF(F32="",E32,F32) -> 0 | E32: =IF(OR(D59=M49,D59=M50),20,0) -> 0 | G32: Choose frost protection in cell F59 first! | H32: Information given by producer(s), jf. VegLCA.
B33: Reinforcing mesh for tunnel vault with shotcrete | C33: kg/m2 | D33: =IF(F33="",E33,F33) -> 0 | E33: =IF(OR(D59=M51,D59=M52),3.02,0) -> 0 | G33: Choose frost protection in cell F59 first! | H33: Information given by producer(s), jf. VegLCA.
B34: Plastic membrane tunnel per m2 membrane | C34: kg/m2 | D34: 0.696 | E34: 0.696 | H34: Information given by suppliers, see NEPD-100-203-NO
B35: Concrete for concrete bridge | C35: kg/m2 | D35: =IF(F35="",E35,F35) -> 3500 | E35: 3500 | H35: Based on experience, numbers given by Øystein Wiggen in Nye Veier on the 03.03.2022
B36: Concrete for steel bridge | C36: kg/m2 | D36: =IF(F36="",E36,F36) -> 2500 | E36: 2500 | H36: Based on experience, numbers given by Øystein Wiggen in Nye Veier on the 03.03.2022
B37: Concrete for wood bridge | C37: kg/m2 | D37: =IF(F37="",E37,F37) -> 3440 | E37: 3440 | H37: Based on experience, numbers given by Øystein Wiggen in Nye Veier on the 17.02.2022
B38: Reinforcement steel for concrete bridge | C38: kg/m2 | D38: =IF(F38="",E38,F38) -> 210 | E38: 210 | H38: Based on experience, numbers given by Øystein Wiggen in Nye Veier on the 08.03.2022
B39: Reinforcement steel for steel bridge | C39: kg/m2 | D39: 100 | E39: 100 | H39: Based on experience, numbers given by Øystein Wiggen in Nye Veier on the 03.03.2022
B40: Reinforcement steel for wood bridge | C40: kg/m2 | D40: 150 | E40: 150 | H40: Based on experience, numbers given by Øystein Wiggen in Nye Veier on the 03.03.2022
B41: Construction steel for concrete bridge | C41: kg/m2 | D41: 40 | E41: 40 | H41: Based on experience, numbers given by Øystein Wiggen in Nye Veier on the 08.03.2022
B42: Construction steel for steel bridge | C42: kg/m2 | D42: 300 | E42: 300 | H42: Based on experience, numbers given by Øystein Wiggen in Nye Veier on the 03.03.2022
B43: Construction steel for wood bridge | C43: kg/m2 | D43: 60 | E43: 60 | H43: Based on experience, numbers given by Øystein Wiggen in Nye Veier on the 03.03.2022
B44: Wood to wood bridge | C44: kg/m2 | D44: 430 | E44: 430 | H44: Based on experience, numbers given by Øystein Wiggen in Nye Veier on the 17.02.2022 | M44: Frost protection of tunnel vault selection | O44: Emission factor kg CO2 / m2 | P44: Thickness element | Q44: Weight kg / m2 | R44: Density kg / m3 | S44: Source
B45: Wood to concrete bridge | C45: kg/m2 | D45: 420 | E45: 420 | G45: Formwork | H45: Based on experience, numbers given by Øystein Wiggen in Nye Veier on the 03.03.2022 | M45: 150 mm concrete+50 mm XPS | O45: 50.265 | P45: 0.2 | Q45: 360.89 | R45: =Q45/P45 -> 1804.45 | S45: Ølen betong
B46: Wood to steel bridge | C46: kg/m2 | D46: 300 | E46: 300 | G46: Formwork | H46: Based on experience, numbers given by Øystein Wiggen in Nye Veier on the 03.03.2022 | M46: 120 mm concrete+50 mm XPS | O46: 41.022 | P46: 0.17 | Q46: 287.83 | R46: =Q46/P46 -> 1693.117647 | S46: Ølen betong
B47: Safety bolts for tunnel | C47: kg/m | D47: 44 | E47: 44 | G47: Tunnel cross section T9,5 | H47: "Metode for beregning av energiforbruk og klimagassutslipp for vegprosjekter", Hammervold (2009) p. 8 i vedlegg 1 | M47: 150 mm concrete | O47: 44.365 | P47: 0.15 | Q47: 359.34 | R47: 2395.6 | S47: https://www.epd-norge.no/getfile.php/1315314-1613396866/EPDer/Byggevarer/Betongvarer/NEPD-2422-1218_Veggelement-inklusiv-armering--A1---A4---klasse-B---t---150mm.pdf
B48: Explosives for open-air blasting | C48: kg/fm3 | D48: 1 | E48: 1 | G48: Source is not given in neither EFFEKT nor Metoderapport, the value should therefore be verified and documentes in all calculation tools. | H48: "Metode for beregning av energiforbruk og klimagassutslipp for vegprosjekter", Hammervold (2009) og dokumentasjon EFFEKT 2015 (SVV Rapport 358) | M48: 120 mm concrete | O48: 35.12 | P48: 0.12 | Q48: 286.28 | R48: 2385.666667 | S48: https://www.epd-norge.no/getfile.php/1317144-1615563819/EPDer/Byggevarer/Betongvarer/NEPD-2650-1358_Veggelement-inklusiv-armering--A1---A4---klasse-B---t---120mm.pdf
B49: Explosives for tunnel blasting | C49: kg/fm3 | D49: 2.2 | E49: 2.2 | G49: Source is not given in neither EFFEKT nor Metoderapport, the value should therefore be verified and documentes in all calculation tools. | H49: "Metode for beregning av energiforbruk og klimagassutslipp for vegprosjekter", Hammervold (2009) og dokumentasjon EFFEKT 2015 (SVV Rapport 358) | M49: Fiber-reinforced shotcrete+PE-foam
B50: Rock masses | M50: Shotcrete
B51: Percentage of crushed stone finely crushed (the rest is assumed to be coarsely crushed) | C51: % | D51: 0 | E51: =IFERROR('Calculation factors'!D26*(Calculations!C49*'Project description and input'!C9+Calculations!C60*'Project description and input'!C10+Calculations!C123*'Calculation factors'!D60+Calculations!C142*'Calculation factors'!D61*2+Calculations!C71*'Project description and input'!C11)/(('Calculation factors'!D26+'Calculation factors'!D27)*(Calculations!C49*'Project description and input'!C9+Calculations!C60*'Project description and input'!C10+Calculations!C123*'Calculation factors'!D60+Calculations!C142*'Calculation factors'!D61*2)+'Calculation factors'!D26*(Calculations!C71*'Project description and input'!C11)),0) -> 0 | G51: Default value based on estimated need for finely crushed rock to lower base course divided by total need for crushed stone to both lower base course and frost protection course. | H51: - | M51: Shotcrete + reinforcement mesh + PE foam
B52: Conversion factor fm3 -> m3 for blasting rock -> coarsely crushed rock | C52: - | D52: 1.741935484 | E52: =D16/D9 -> 1.741935484 | M52: Shotcrete + reinforcement mesh
B53: Culverts
B54: Concrete thickness culvert elements | C54: m | D54: =IF(F54="",E54,F54) -> 0.24 | E54: 0.24 | H54: Prefabricated culvert elements, Statens vegvesen | I54: https://www.vegvesen.no/fag/teknologi/bruer/bruprosjektering/prefabrikkerte-kulvertelementer/_attachment/1361322?_ts=15d081de438&fast_title=Grunnlag%2C+beregningsforutsetninger+og+eksempel.pdf
B55: Height of culverts | C55: m | D55: =IF(F55="",E55,F55) -> 3.2 | E55: 3.2 | H55: Prefabricated culvert elements, Statens vegvesen | I55: https://www.vegvesen.no/fag/teknologi/bruer/bruprosjektering/prefabrikkerte-kulvertelementer/_attachment/1361322?_ts=15d081de438&fast_title=Grunnlag%2C+beregningsforutsetninger+og+eksempel.pdf
B56: Ratio between concrete and reinforcement | C56: kg/kg | D56: 13 | E56: 13 | H56: Based on "Metode for beregning av energiforbruk og klimagassutslipp for vegprosjekter", Hammervold (2009), p. 8 in Appendix 1, where the share of concrete is 13 times higher than the share of reinforcement for the same volume.
B57: Working speed tower crane | C57: h/stk | D57: =IF(F57="",E57,F57) -> 18 | E57: 18 | H57: NIRAS' experience
B58: Tunnels | M58: Tunnel cross section | N58: Theoretical blasting profile | P58: Normalprofil | R58: Road width
B59: Frost protection of tunnel vault type | C59: - | D59: =IF(F59="",E59,F59) -> 150 mm concrete+50 mm XPS | E59: 150 mm concrete+50 mm XPS | F59: 150 mm concrete+50 mm XPS | G59: Choose project spesific value from drop-down menu. 150 mm concrete + 50 mm XPS is set as default if frost protection is not known.
B60: Tunnel cross section single tube | C60: - | D60: 10.5 | E60: 10.5 | H60: Typical tunnel cross section | N60: Areal [m2] | O60: Buelengde [m] | P60: Areal [m2] | Q60: Buelengde [m] | R60: Kjørebane [m] | S60: Skulder [m]
B61: Tunnel cross section double tube | C61: - | D61: =IF(F61="",E61,F61) -> 9.5 | E61: 9.5 | H61: Typical tunnel cross section | M61: 4 | N61: 20.32 | O61: 12.13 | P61: 13.57 | Q61: 9.85 | R61: 3 | S61: 1
B62: Amount of concrete per portal single tube | C62: m3/stk | D62: 357.6140684 | E62: =VLOOKUP(D60,M61:O72,3,FALSE)/O65*340 -> 357.6140684 | G62: Default tunnel with protal length 13 m on each side. | H62: "Metode for beregning av energiforbruk og klimagassutslipp for vegprosjekter", Hammervold (2009), p. 8 i Vedlegg 1. | M62: 5.5 | N62: 39.1 | O62: 17.12 | P62: 29.72 | Q62: 14.55 | R62: 3.5 | S62: 2
B63: Amount of concrete per portal double tube | C63: m3/stk | D63: 340 | E63: =VLOOKUP(D61,M61:O72,3,FALSE)/O65*340 -> 340 | G63: Default tunnel with protal length 13 m on each side. | H63: "Metode for beregning av energiforbruk og klimagassutslipp for vegprosjekter", Hammervold (2009), p. 8 i Vedlegg 1. | M63: 7.5 | N63: 51.56 | O63: 18.88 | P63: 40.46 | Q63: 16.3 | R63: 5 | S63: 2.5
B64: Reinforcement per portal single tube | C64: kg/stk | D64: 65211.97719 | E64: =VLOOKUP(D60,M61:O72,3,FALSE)/O65*62000 -> 65211.97719 | G64: Default tunnel with protal length 13 m on each side. | H64: "Metode for beregning av energiforbruk og klimagassutslipp for vegprosjekter", Hammervold (2009), p. 8 i Vedlegg 1. | M64: 8.5 | N64: 61.92 | O64: 20.56 | P64: 49.66 | Q64: 17.99 | R64: 6.5 | S64: 2
B65: Reinforcement per portal double tube | C65: kg/stk | D65: 62000 | E65: =VLOOKUP(D61,M61:O72,3,FALSE)/O65*62000 -> 62000 | G65: Default tunnel with protal length 13 m on each side. | H65: Metode for beregning av energiforbruk og klimagassutslipp for vegprosjekter, Hammervold (2009), p. 8 i Vedlegg 1. | M65: 9.5 | N65: 66.62 | O65: 21.04 | P65: 53.61 | Q65: 18.46 | R65: 7 | S65: 2.5
B66: Share below sea for single tube tunnel | C66: % | D66: =IF(F66="",E66,F66) -> 0 | E66: 0 | G66: To calculate electricity use for fans and pumps. | H66: - | M66: 10.5 | N66: 74.59 | O66: 22.13 | P66: 60.64 | Q66: 19.55 | R66: 8 | S66: 2.5
B67: Share below sea for double tube tunnel | C67: % | D67: =IF(F67="",E67,F67) -> 0 | E67: 0 | G67: To calculate electricity use for fans and pumps. | H67: - | M67: 11.5 | N67: 85.92 | O67: 23.75 | P67: 70.89 | Q67: 21.18 | R67: 9.5 | S67: 2
B68: Injection cement per m borehole (not including water) | C68: kg/m | D68: =IF(F68="",E68,F68) -> 2.1 | E68: 2.1 | G68: Used to estimate total amount of boreholes. Assumed borehole diameter 51 mm and water/cement-ratio = 0,75. | H68: "Miljø- og samfunnstjenlige tunneler, Delprosjekt C: Tetteteknikk, Berginjeksjon." Statens vegvesen internrapport 2151, år 2000.
B69: Operation and maintenance intervals | M69: 12.5 | N69: 91.32 | O69: 24.32 | P69: 75.49 | Q69: 21.73 | R69: 10 | S69: 2.5
B70: Replacement interval re-asphalting main road | C70: år | D70: =IF(F70="",E70,F70) -> 6 | E70: =((IF('Project description and input'!C17<=1500,15,0)+IF(AND('Project description and input'!C17>1500,'Project description and input'!C17<=3000),14,0)+IF(AND('Project description and input'!C17>3000,'Project description and input'!C17<=5000),11,0)+IF(AND('Project description and input'!C17>5000,'Project description and input'!C17<=10000),8,0)+IF(AND('Project description and input'!C17>10000,'Project description and input'!C17<=15000),6,0))+IF(AND('Project description and input'!C17>15000,'Project description and input'!C17<=20000),5,0)+IF(AND('Project description and input'!C17>20000,'Project description and input'!C17<=25000),4,0)+IF('Project description and input'!C17>25000,3,0)) -> 6 | H70: Formel based on VegLCA | M70: 13 | N70: 95.69 | O70: 24.86 | P70: 79.39 | Q70: 22.28 | R70: 10.5 | S70: 2.5
B71: Replacement interval re-asphalting secondary road | C71: år | D71: 14 | E71: 14 | H71: Assumed ÅDT between 1500 and 3000 | M71: 13.5 | N71: 100.52 | O71: 25.46 | P71: 83.73 | Q71: 22.88 | R71: 11 | S71: 2.5
B72: Replacement interval guard rail | C72: år | D72: 30 | E72: 30 | H72: Håndbok N101 "Rekkverk og vegens sideområder" (2014) p. 63 | M72: 14 | N72: 104.58 | O72: 25.96 | P72: 87.35 | Q72: 23.88 | R72: 11.5 | S72: 2.5
B73: Replacement interval lamp posts | C73: år | D73: 25 | E73: 25 | H73: SVV rapport nr.646, 2016: "Energibesparende vegbelysning".
B74: Operation interval roadside mowing | C74: år | D74: 1 | E74: 1 | H74: NIRAS' experience
B75: Operation interval ditch clearing | C75: år | D75: 3 | E75: 3 | H75: NIRAS' experience
B76: Operation interval sweeping | C76: år | D76: 1 | E76: 1 | H76: NIRAS' experience
B77: Operation interval salting | C77: år | D77: 1 | E77: 1 | H77: NIRAS' experience
B78: Operation interval ploughing | C78: år | D78: 1 | E78: 1 | H78: NIRAS' experience
B79: Re-asphalting, operation and maintenance
B80: Share that's re-asphalted | C80: % | D80: =IF(F80="",E80,F80) -> 0.65 | E80: 0.65 | H80: Klimamodul EFFEKT 6.6 (2014)
B81: Electricity consumption lighting open road | C81: kWh/(stk*år) | D81: =IF(F81="",E81,F81) -> 480 | E81: =32000/(E104*2) -> 480 | H81: LED is default. According to SVV rapport 646 "Energibesparende vegbelysning" (2016), p. 20, a medium efficient LED-armature has a energi demand = 32 MWh for big main roads in rural areal. Assume that this applies to two lighting rows.
B82: Electricity consumption lighting tunnel | C82: kWh/(lm*år) | D82: =IF(F82="",E82,F82) -> 34 | E82: 34 | H82: Assuming the same as for "open road" based on the calculations in "Metode for beregning av energiforbruk og klimagassutslipp for vegprosjekter", Hammervold (2009) og dokumentasjon for EFFEKT 6.6
B83: Electricity consumption fans single tube tunnel above sea | C83: kWh/(ÅDT*km*år) | D83: =IF(F83="",E83,F83) -> 3.7 | E83: 3.7 | G83: Using the same formula as double tube tunnel. | H83: "Metode for beregning av energiforbruk og klimagassutslipp for vegprosjekter", Hammervold (2009) p. 46
B84: Electricity consumption fans underwater single tube tunnel | C84: kWh/(ÅDT*km*år) | D84: 14.6 | E84: 14.6 | G84: Using the same formula as double tube tunnel. | H84: "Metode for beregning av energiforbruk og klimagassutslipp for vegprosjekter", Hammervold (2009) p. 46
B85: Electricity consumption fans double tube tunnel above sea | C85: kWh/(ÅDT*km*år) | D85: 3.7 | E85: 3.7 | H85: "Metode for beregning av energiforbruk og klimagassutslipp for vegprosjekter", Hammervold (2009) p. 46
B86: Electricity consumption fans underwater double tube tunnel | C86: kWh/(ÅDT*km*år) | D86: 14.6 | E86: 14.6 | H86: "Metode for beregning av energiforbruk og klimagassutslipp for vegprosjekter", Hammervold (2009) p. 46
B87: Electricity consumption pumps tunnel above sea | C87: kWh/(m*år) | D87: 0 | E87: 0 | H87: "Metode for beregning av energiforbruk og klimagassutslipp for vegprosjekter", Hammervold (2009) p. 45/46
B88: Electricity consumption pumps underwater tunnel | C88: kWh/(m*år) | D88: 18 | E88: 18 | H88: "Metode for beregning av energiforbruk og klimagassutslipp for vegprosjekter", Hammervold (2009) p. 45/46
B89: Salt consumption | C89: tonn/(km*år) | D89: =IF(F89="",E89,F89) -> 10.5 | E89: 10.5 | H89: "Mengderapportering vinteren 2018/2019", SVV rapport 362. Average for Norwegian highways.
B90: Km ploughing per km road per year | C90: km/(km*år) | D90: =IF(F90="",E90,F90) -> 724.7 | E90: 724.7 | H90: "Mengderapportering vinteren 2018/2019", SVV rapport 362. Average for Norwegian highways.
B91: Km salting per km road per year for two-lane road | C91: km/(km*år) | D91: =IF(F91="",E91,F91) -> 100 | E91: 100 | G91: Salts two fields per turn. | H91: NIRAS' experience
B92: Cleared volume from ditch clearing | C92: m3/m | D92: =IF(F92="",E92,F92) -> 0.133 | E92: 0.133 | H92: NIRAS' experience
B93: Walls and noise barriers
B94: Concrete wall thickness | C94: m | D94: =IF(F94="",E94,F94) -> 0.5 | E94: 0.5 | H94: Based on experience by Vianova.
B95: Natural stone wall thickness | C95: m | D95: =IF(F95="",E95,F95) -> 1.2 | E95: 1.2 | H95: Based on experience from producers.
B96: Height wall | C96: m | D96: =IF(F96="",E96,F96) -> 2.5 | E96: 2.5 | G96: Assumed the same as noise barriers.
B97: Share of walls made of natural stone (the rest is assumed to be concrete) | C97: % | D97: =IF(F97="",E97,F97) -> 0 | E97: 0 | G97: Fill in share of total length, fx. 10 m natural stone wall and 90 m concrete wall gives 10 %. | H97: Concrete is default.
B98: Wooden noise barrier thickness | C98: m | D98: 0.1 | E98: 0.1 | H98: Based on information from producers.
B99: Height noise barriers | C99: m | D99: 2.5 | E99: 2.5 | H99: Based on information from producers.
B100: Amount of steel per meter for noise barriers | C100: kg | D100: 23.5 | E100: 23.5 | H100: Based on information from producers.
B101: Amount of concrete per meter for noise barriers | C101: kg | D101: 84 | E101: 84 | H101: Based on information from producers.
B102: Other
B103: Lamp posts including foundation | C103: kg/stk | D103: =IF(F103="",E103,F103) -> 152 | E103: 152 | H103: Producer information from Vik Ørsta AS product catalog 2022; "Ettergivende HE, varmforsinket mast" [8 m, Ø76]. Art.nr. 3893408 (101 kg) and "Ørsta HE-fundament for RS-mast" Art.nr. 3523240C (51 kg).
B104: Number of lamp posts per lighting row per km main road | C104: stk/km | D104: =IF('Project description and input'!C19="No",0,IF(F104="",E104,F104)) -> 33.33333333 | E104: =1000/30 -> 33.33333333 | H104: LED is default. According to SVV rapport 646 "Energibesparende vegbelysning" (2016), the distance between lamp posts is 25-35 meter for main roads in rural areas.
B105: Number of lamp posts per lighting row per km secondary road | C105: stk/km | D105: =IF('Project description and input'!C20="No",0,IF(F105="",E105,F105)) -> 0 | E105: =1000/30 -> 33.33333333 | H105: LED is default. According to SVV rapport 646 "Energibesparende vegbelysning" (2016), the distance between lamp posts is 25-35 meter for main roads in rural areas.
B106: Guard rail | C106: kg/m | D106: =IF(F106="",E106,F106) -> 16.86 | E106: 16.86 | G106: The steel has a strength-requirement, but recycling-ratio and supplier can vary as they are buying steel on bulk in a global steel market. Hence, the quality is the same for rails and guard rails. For main roads with 4 lanes, the quantities needs to be multiplied by 4. | H106: Assuming strength class ("styrkeklasse") H1 in table 3.1 og rundskriv om rekkverk 110 km/t. Simplified to calculate with the same guard rail standard on bridges. Based on Vik Ørsta "Vik EP H1 CC4" guard rail which gives 16,86 kg/m. (The lamp posts are included in the given weight per meter, ref mail from Vik Ørsta on the 09.02.2022).
B107: Number of lanes single tube tunnel | C107: stk | D107: 2 | E107: 2 | G107: Used in the calculations of salting and sweeping. | H107: NIRAS' experience
B108: Number of lanes double tube tunnel | C108: stk | D108: 4 | E108: 4 | G108: Used in the calculations of salting and sweeping. | H108: NIRAS' experience
B109: Number of lanes main road | C109: stk | D109: 4 | E109: 4 | G109: Used in the calculations of salting and sweeping. | H109: NIRAS' experience
B110: Number of lanes secondary road | C110: stk | D110: 2 | E110: 2 | G110: Used in the calculations of salting and sweeping. | H110: NIRAS' experience
B111: Number of lighting rows main road | C111: stk | D111: 2 | E111: 2 | H111: NIRAS' experience
B112: Number of lighting rows secondary road | C112: stk | D112: 1 | E112: 1 | H112: NIRAS' experience
B113: Number of guard rails main road | C113: stk | D113: 4 | E113: 4 | H113: NIRAS' experience
B114: Number of guard rails secondary road | C114: stk | D114: 2 | E114: 2 | H114: NIRAS' experience
B115: Number of ditches main road | C115: stk | D115: 3 | E115: 3 | H115: NIRAS' experience
B116: Number of ditches secondary road | C116: stk | D116: 2 | E116: 2 | H116: NIRAS' experience
B117: Number of road markings main road | C117: stk | D117: 5 | E117: 5 | H117: NIRAS' experience
B118: Number of road markings secondary road | C118: stk | D118: 3 | E118: 3 | H118: NIRAS' experience
B119: Thicknesss of vegetation cover that is removed | C119: m | D119: 0.3 | E119: 0.3 | H119: NIRAS' experience

Sheet Transport and energy demand
B2: Variable | C2: Unit | D2: Value used in calculations | E2: Default value | F2: Prosjekt-spesifikk verdi | G2: Unit | H2: Value used in calculations | I2: Default value | J2: Project-specific values | K2: Unit | L2: Share elec./ hydrogen | M2: Share biodiesel | N2: Share diesel | O2: Comments | P2: Documentation default value | Q2: Documentation project-specific values | R2: Possible link for documentation
B3: Transport distances materials [tour/detour]
B4: Transport within project | C4: km | D4: =IF(F4="",E4,F4) -> 0 | E4: =('Project description and input'!F37/2000) -> 0 | O4: All transport distances are coordinated with VegLCA. These values are very general and it is recommended to use project-specific values as far as possible. | P4: Calculated by the main road divided by two.
B5: Transport to landfill/storage | C5: km | D5: =IF(F5="",E5,F5) -> 20 | E5: 20 | P5: Based on experience
B6: Transport to crushing plant | C6: km | D6: 20 | E6: 20 | P6: Based on experience
B7: Asphalt concrete, surface (Agb) | C7: km | D7: 50 | E7: 50 | P7: Based on experience
B8: Asphalt concrete, base (Ag) | C8: km | D8: 50 | E8: 50 | P8: Based on experience
B9: Crushed rock for frost protection and base layer | C9: km | D9: 50 | E9: 50 | P9: Based on experience
B10: Concrete | C10: km | D10: 50 | E10: 50 | P10: Based on experience
B11: Steel | C11: km | D11: 1600 | E11: 1600 | P11: Based on experience
B12: Reinforcement steel | C12: km | D12: 1600 | E12: 1600 | P12: Based on experience
B13: Moisture protection bridge (Topeka) | C13: km | D13: 50 | E13: 50 | P13: Based on experience
B14: Frost protection elements tunnel | C14: km | D14: 200 | E14: 200 | P14: Based on experience
B15: Salt | C15: km | D15: 500 | E15: 500 | P15: Same value as VegLCA. Based on typical countries for import of salt. Salt is mainly imported from Europe and the area around the Mediterranian Sea, CG Rieber from Germany, Netherlands and Israel and Mesta from Tunisia, Italy, Denmark and Marocco. | R15: SaltImport: https://produktguiden.veier24.no/products/62-saltimport-asCG Rieber: https://www.gcrieber-salt.no/markeder/veivedlikehold/ Mesta: https://www.miljoklagenemnda.no/assets/files/Sak_2014_2_mesta.pdf
B16: Wood (glulam) | C16: km | D16: 500 | E16: 500 | P16: Same value as VegLCA.
B17: Natrual stone | C17: km | D17: 500 | E17: 500 | P17: Same value as VegLCA.
B18: Lime cement | C18: km | D18: =IF(F18="",E18,F18) -> 500 | E18: 500 | P18: Same value as VegLCA.
B19: Plastic mebrane | C19: km | D19: =IF(F19="",E19,F19) -> 1600 | E19: 1600 | P19: Same value as VegLCA.
B20: Shotcrete | C20: km | D20: 50 | E20: 50 | P20: Same value as VegLCA.
B21: PE-foam | C21: km | D21: =IF(F21="",E21,F21) -> 50 | E21: 50 | P21: Same value as VegLCA.
B22: Fiber reinforcement to shotcrete | C22: km | D22: 50 | E22: 50 | P22: Same value as VegLCA.
B23: Reinforcement mesh to shotcrete | C23: km | D23: 1600 | E23: 1600 | P23: Same value as VegLCA.
B24: Cement | C24: km | D24: =IF(F24="",E24,F24) -> 500 | E24: 500 | P24: Same value as VegLCA.
B25: Energy demand and sources mass transport | C25: Diesel (liter pr. km/lastens størrelse i tonn) | G25: Electricity (kWh pr. km /load size in tonnes) | K25: Allocation between fuels
B26: Mass transport within project | C26: L/tkm | D26: =IF(F26="",E26,F26) -> 0.02 | E26: 0.02 | G26: kWh/tkm | H26: =IF(J26="",0,J26) -> 0 | I26: Ingen standardverdi | K26: % | L26: 0 | M26: 0 | N26: =1-L26-M26 -> 1 | O26: Corresponds, for example, to a load capacity of 30 tonnes and a consumption of 0.6 L/km. Unless otherwise stated, use the distribution 100% fossil diesel | P26: NIRAS' experience
B27: Mass transport to landfill/storage | C27: L/tkm | D27: =IF(F27="",E27,F27) -> 0.02 | E27: 0.02 | G27: kWh/tkm | H27: =IF(J27="",0,J27) -> 0 | I27: Ingen standardverdi | K27: % | L27: 0 | M27: 0 | N27: =1-L27-M27 -> 1 | O27: Corresponds, for example, to a load capacity of 30 tonnes and a consumption of 0.6 L/km. Unless otherwise stated, use the distribution 100% fossil diesel | P27: NIRAS' experience
B28: Mass transport to crushing plant | C28: L/tkm | D28: 0.02 | E28: 0.02 | G28: kWh/tkm | H28: 0 | I28: Ingen standardverdi | K28: % | L28: 0 | M28: 0 | N28: 1 | O28: Corresponds, for example, to a load capacity of 30 tonnes and a consumption of 0.6 L/km. Unless otherwise stated, use the distribution 100% fossil diesel | P28: NIRAS' experience
B29: Energy demand and sources material transport | C29: Diesel (liter pr. km/lastens størrelse i tonn) | G29: Electricity (kWh pr. km /load size in tonnes) | K29: Allocation between fuels
B30: Asphalt concrete, surface (Agb) and stone mastic asphalt (Ska) | C30: L/tkm | D30: 0.02 | E30: 0.02 | G30: kWh/tkm | H30: 0 | I30: Ingen standardverdi | K30: % | L30: 0 | M30: 0 | N30: 1 | O30: Corresponds, for example, to a load capacity of 30 tonnes and a consumption of 0.6 L/km. Unless otherwise stated, use the distribution 100% fossil diesel | P30: NIRAS' experience
B31: Asphalt concrete, base (Ag) | C31: L/tkm | D31: =IF(F31="",E31,F31) -> 0.02 | E31: 0.02 | G31: kWh/tkm | H31: 0 | I31: Ingen standardverdi | K31: % | L31: 0 | M31: 0 | N31: 1 | O31: Corresponds, for example, to a load capacity of 30 tonnes and a consumption of 0.6 L/km. Unless otherwise stated, use the distribution 100% fossil diesel | P31: NIRAS' experience
B32: Crushed rock for frost protection and base layer | C32: L/tkm | D32: 0.02 | E32: 0.02 | G32: kWh/tkm | H32: =IF(J32="",0,J32) -> 0 | I32: Ingen standardverdi | K32: % | L32: 0 | M32: 0 | N32: 1 | O32: Corresponds, for example, to a load capacity of 30 tonnes and a consumption of 0.6 L/km. Unless otherwise stated, use the distribution 100% fossil diesel | P32: NIRAS' experience
B33: Concrete | C33: L/tkm | D33: =IF(F33="",E33,F33) -> 0.02 | E33: 0.02 | G33: kWh/tkm | H33: =IF(J33="",0,J33) -> 0 | I33: Ingen standardverdi | K33: % | L33: 0 | M33: 0 | N33: 1 | O33: Corresponds, for example, to a load capacity of 30 tonnes and a consumption of 0.6 L/km. Unless otherwise stated, use the distribution 100% fossil diesel | P33: NIRAS' experience
B34: Steel | C34: L/tkm | D34: =IF(F34="",E34,F34) -> 0.02 | E34: 0.02 | G34: kWh/tkm | H34: =IF(J34="",0,J34) -> 0 | I34: Ingen standardverdi | K34: % | L34: 0 | M34: 0 | N34: 1 | O34: Corresponds, for example, to a load capacity of 30 tonnes and a consumption of 0.6 L/km. Unless otherwise stated, use the distribution 100% fossil diesel | P34: NIRAS' experience
B35: Reinforcement steel | C35: L/tkm | D35: =IF(F35="",E35,F35) -> 0.02 | E35: 0.02 | G35: kWh/tkm | H35: 0 | I35: Ingen standardverdi | K35: % | L35: 0 | M35: 0 | N35: 1 | O35: Corresponds, for example, to a load capacity of 30 tonnes and a consumption of 0.6 L/km. Unless otherwise stated, use the distribution 100% fossil diesel | P35: NIRAS' experience
B36: Topeka | C36: L/tkm | D36: =IF(F36="",E36,F36) -> 0.02 | E36: 0.02 | G36: kWh/tkm | H36: 0 | I36: Ingen standardverdi | K36: % | L36: 0 | M36: 0 | N36: 1 | O36: Corresponds, for example, to a load capacity of 30 tonnes and a consumption of 0.6 L/km. Unless otherwise stated, use the distribution 100% fossil diesel | P36: NIRAS' experience
B37: Frost protection elements tunnel | C37: L/tkm | D37: 0.02 | E37: 0.02 | G37: kWh/tkm | H37: 0 | I37: Ingen standardverdi | K37: % | L37: 0 | M37: 0 | N37: 1 | O37: Corresponds, for example, to a load capacity of 30 tonnes and a consumption of 0.6 L/km. Unless otherwise stated, use the distribution 100% fossil diesel | P37: NIRAS' experience
B38: Transport of other masses/materials by lorry | C38: L/tkm | D38: 0.02 | E38: =0.6/30 -> 0.02 | G38: kWh/tkm | H38: =IF(J38="",0,J38) -> 0 | I38: Ingen standardverdi | K38: % | L38: 0 | M38: 0 | N38: =1-L38-M38 -> 1 | O38: Corresponds, for example, to a load capacity of 30 tonnes and a consumption of 0.6 L/km. Unless otherwise stated, use the distribution 100% fossil diesel | P38: NIRAS' experience
B39: Wood (glulam) | C39: L/tkm | D39: =IF(F39="",E39,F39) -> 0.02 | E39: 0.02 | G39: kWh/tkm | H39: =IF(J39="",0,J39) -> 0 | I39: Ingen standardverdi | K39: % | L39: 0 | M39: 0 | N39: =1-L39-M39 -> 1 | O39: Corresponds, for example, to a load capacity of 30 tonnes and a consumption of 0.6 L/km. Unless otherwise stated, use the distribution 100% fossil diesel | P39: NIRAS' experience
B40: Natural stone | C40: L/tkm | D40: 0.02 | E40: 0.02 | G40: kWh/tkm | H40: 0 | I40: Ingen standardverdi | K40: % | L40: 0 | M40: 0 | N40: 1 | O40: Corresponds, for example, to a load capacity of 30 tonnes and a consumption of 0.6 L/km. Unless otherwise stated, use the distribution 100% fossil diesel | P40: NIRAS' experience
B41: Lime cement | C41: L/tkm | D41: =IF(F41="",E41,F41) -> 0.02 | E41: 0.02 | G41: kWh/tkm | H41: =IF(J41="",0,J41) -> 0 | I41: Ingen standardverdi | K41: % | L41: 0 | M41: 0 | N41: =1-L41-M41 -> 1 | O41: Corresponds, for example, to a load capacity of 30 tonnes and a consumption of 0.6 L/km. Unless otherwise stated, use the distribution 100% fossil diesel | P41: NIRAS' experience
B42: Plastic mebrane | C42: L/tkm | D42: =IF(F42="",E42,F42) -> 0.02 | E42: 0.02 | G42: kWh/tkm | H42: =IF(J42="",0,J42) -> 0 | I42: Ingen standardverdi | K42: % | L42: 0 | M42: 0 | N42: =1-L42-M42 -> 1 | O42: Corresponds, for example, to a load capacity of 30 tonnes and a consumption of 0.6 L/km. Unless otherwise stated, use the distribution 100% fossil diesel | P42: NIRAS' experience
B43: Shotcrete | C43: L/tkm | D43: 0.02 | E43: 0.02 | G43: kWh/tkm | H43: 0 | I43: Ingen standardverdi | K43: % | L43: 0 | M43: 0 | N43: 1 | O43: Corresponds, for example, to a load capacity of 30 tonnes and a consumption of 0.6 L/km. Unless otherwise stated, use the distribution 100% fossil diesel | P43: NIRAS' experience
B44: PE-foam | C44: L/tkm | D44: =IF(F44="",E44,F44) -> 0.02 | E44: 0.02 | G44: kWh/tkm | H44: =IF(J44="",0,J44) -> 0 | I44: Ingen standardverdi | K44: % | L44: 0 | M44: 0 | N44: =1-L44-M44 -> 1 | O44: Corresponds, for example, to a load capacity of 30 tonnes and a consumption of 0.6 L/km. Unless otherwise stated, use the distribution 100% fossil diesel | P44: NIRAS' experience
B45: Fiber reinforcement to shotcrete | C45: L/tkm | D45: 0.02 | E45: 0.02 | G45: kWh/tkm | H45: 0 | I45: Ingen standardverdi | K45: % | L45: 0 | M45: 0 | N45: 1 | O45: Corresponds, for example, to a load capacity of 30 tonnes and a consumption of 0.6 L/km. Unless otherwise stated, use the distribution 100% fossil diesel | P45: NIRAS' experience
B46: Reinforcement mesh to shotcrete | C46: L/tkm | D46: =IF(F46="",E46,F46) -> 0.02 | E46: 0.02 | G46: kWh/tkm | H46: =IF(J46="",0,J46) -> 0 | I46: Ingen standardverdi | K46: % | L46: 0 | M46: 0 | N46: =1-L46-M46 -> 1 | O46: Corresponds, for example, to a load capacity of 30 tonnes and a consumption of 0.6 L/km. Unless otherwise stated, use the distribution 100% fossil diesel | P46: NIRAS' experience
B47: Cement | C47: L/tkm | D47: =IF(F47="",E47,F47) -> 0.02 | E47: 0.02 | G47: kWh/tkm | H47: =IF(J47="",0,J47) -> 0 | I47: Ingen standardverdi | K47: % | L47: 0 | M47: 0 | N47: =1-L47-M47 -> 1 | O47: Corresponds, for example, to a load capacity of 30 tonnes and a consumption of 0.6 L/km. Unless otherwise stated, use the distribution 100% fossil diesel | P47: NIRAS' experience
B48: Energy demand and sources construction work | C48: Diesel | G48: Electricity | K48: Allocation between fuels
B49: Energy demand steamroller | C49: L/h | D49: =IF(F49="",E49,F49) -> 3 | E49: 3 | G49: kW | H49: =IF(J49="",0,J49) -> 0 | I49: Ingen standardverdi | K49: % | L49: 0 | M49: 0 | N49: =1-M49-L49 -> 1 | O49: Unless otherwise stated, use the distribution 100% fossil diesel | P49: NIRAS' experience
B50: Energy demand tractor | C50: L/h | D50: 5 | E50: 5 | G50: kW | H50: =IF(J50="",0,J50) -> 0 | I50: Ingen standardverdi | K50: % | L50: 0 | M50: 0 | N50: =1-M50-L50 -> 1 | O50: Unless otherwise stated, use the distribution 100% fossil diesel | P50: NIRAS' experience
B51: Energy demand paver | C51: L/h | D51: 3 | E51: 3 | G51: kW | H51: 0 | I51: Ingen standardverdi | K51: % | L51: 0 | M51: 0 | N51: 1 | O51: Unless otherwise stated, use the distribution 100% fossil diesel | P51: NIRAS' experience
B52: Energy demand excavator | C52: L/h | D52: 20 | E52: 20 | G52: kW | H52: 0 | I52: Ingen standardverdi | K52: % | L52: 0 | M52: 0 | N52: 1 | O52: Unless otherwise stated, use the distribution 100% fossil diesel | P52: NIRAS' experience
B53: Energy demand coarse crusher | C53: L/h | D53: 25 | E53: 25 | G53: kW | H53: 0 | I53: Ingen standardverdi | K53: % | L53: 0 | M53: 0 | N53: 1 | O53: Unless otherwise stated, use the distribution 100% fossil diesel | P53: NIRAS' experience
B54: Energy demand fine crusher | C54: L/h | D54: =IF(F54="",E54,F54) -> 25 | E54: 25 | G54: kW | H54: 0 | I54: Ingen standardverdi | K54: % | L54: 0 | M54: 0 | N54: 1 | O54: Unless otherwise stated, use the distribution 100% fossil diesel | P54: NIRAS' experience
B55: Energy demand tower crane for bridge and culvert | C55: L/h | D55: =IF(F55="",0,F55) -> 0 | E55: Ingen standardverdi | G55: kW | H55: =IF(J55="",I55,J55) -> 48.6 | I55: 48.6 | K55: % | L55: 1 | M55: 0 | N55: =1-M55-L55 -> 0 | O55: Unless otherwise stated, use the distribution 100% el | P55: Datablad Potain MDT 178 - 54 kVA. Antar PF 0,9.
B56: Energy demand road marking | C56: L/m | D56: =IF(F56="",E56,F56) -> 0.0059 | E56: 0.0059 | G56: kW | H56: =IF(J56="",0,J56) -> 0 | I56: Ingen standardverdi | K56: % | L56: 0 | M56: 0 | N56: 1 | O56: Unless otherwise stated, use the distribution 100% fossil diesel | P56: NIRAS' experience
B57: Energy demand crating ditches | C57: L/m | D57: 40 | E57: 40 | G57: kWh/m | H57: 0 | I57: Ingen standardverdi | K57: % | L57: 0 | M57: 0 | N57: 1 | O57: Unless otherwise stated, use the distribution 100% fossil diesel | P57: Straume, Krogsæter, NOTAT: Utredning og kravspesifikasjon til EFFEKT 6.6, Del 3: Videreutvikling av Klimamodulen. Lukket grøft til drenering "Grave grøfteprofil, nedsetting kummer, planering for rør i grøft og stikkrenner, omfylling og gjenfylling. 1 maskintime pr meter grøft"
B58: Energy demand construction work guard rail | C58: L/m | D58: 0.4 | E58: 0.4 | G58: kWh/m | H58: =IF(J58="",0,J58) -> 0 | I58: Ingen standardverdi | K58: % | L58: 0 | M58: 0 | N58: 1 | O58: Unless otherwise stated, use the distribution 100% fossil diesel | P58: Antar at aggregat bakpå en lastebil bruker 4 L/t på utsetting av autovern, og at det legges 80 m autovern per dag for fire-felts vei. Én dag defineres som 8 timer. Da får man 32 liter diesel/dag. 32 liter diesel per dag / 80 m autovern per dag => 0,4 liter diesel/m. Tallet er verifisert av Marianne Gjerde i Arvid Gjerde AS, som i mailkommunikasjon den 14.04.20 sier at deres pelerigg bruker 0,42 liter pr meter montert rekkverk i snitt på ett år.
B59: Energy demand loading shovel/tractor for roadside mowing | C59: L/h | D59: 7.5 | E59: 7.5 | G59: kW | H59: 0 | I59: Ingen standardverdi | K59: % | L59: 0 | M59: 0 | N59: =1-M59-L59 -> 1 | O59: Value should be verified with several sources. Unless otherwise stated, 100% fossil diesel is assumed | P59: NIRAS' experience
B60: Energy demand loading shovel/tractor for sweeping | C60: L/h | D60: =IF(F60="",E60,F60) -> 7.5 | E60: 7.5 | G60: kW | H60: 0 | I60: Ingen standardverdi | K60: % | L60: 0 | M60: 0 | N60: 1 | O60: Value should be verified with several sources. Unless otherwise stated, 100% fossil diesel is assumed | P60: NIRAS' experience
B61: Energy demand salting vehicle | C61: L/km | D61: 0.64 | E61: 0.64 | G61: kWh/km | H61: 0 | I61: Ingen standardverdi | K61: % | L61: 0 | M61: 0 | N61: 1 | O61: Consumption is per field. Unless otherwise stated, 100% fossil diesel is assumed | P61: Average for maintenance vehicles for winter from "Life cycle assessment of winter road maintenance", Vignisdottir et. Al, The International Journal of Life Cycle Assessment (2020)
B62: Energy demand snowplough | C62: L/km | D62: 0.64 | E62: 0.64 | G62: kWh/km | H62: 0 | I62: Ingen standardverdi | K62: % | L62: 0 | M62: 0 | N62: 1 | O62: Consumption is per round. Unless otherwise stated, 100% fossil diesel is assumed | P62: Average for maintenance vehicles for winter from "Life cycle assessment of winter road maintenance", Vignisdottir et. Al, The International Journal of Life Cycle Assessment (2020)
B63: Energy consumption installation of noise barriers | C63: L/m | D63: 0.5 | E63: 0.5 | G63: kWh/m | H63: 0 | I63: Ingen standardverdi | K63: % | L63: 0 | M63: 0 | N63: 1 | O63: Unless otherwise stated, 100% fossil diesel is assumed Co-ordinated with VegLCA. | P63: Experience from producers.
B64: Energy consumption hole drilling for injection | C64: L/m | D64: =IF(F64="",E64,F64) -> 0.6 | E64: 0.6 | G64: kWh/m | H64: 0 | I64: Ingen standardverdi | K64: % | L64: 0 | M64: 0 | N64: 1 | O64: Co-ordinated with VegLCA. Unless otherwise stated, 100% fossil diesel is assumed. | P64: Kålås Iversen, O. M. (2013).
B65: Energy consumption drilling of lime cement piles | C65: L/kg | D65: =IF(F65="",E65,F65) -> 0.003574545962 | E65: 0.003574545962 | G65: kWh/kg | H65: 0 | I65: Ingen standardverdi | K65: % | L65: 0 | M65: 0 | N65: 1 | O65: Co-ordinated with VegLCA. Unless otherwise stated, 100% fossil diesel is assumed. | P65: Miljøbudsjett for over- og underbygning, Ski stasjon. UOS-90-A-20123. 116384 liter diesel på 32559 tonn KS peler.
B66: Working speed construction machinery
B67: Working speed steamroller | C67: t/h | D67: =IF(F67="",E67,F67) -> 75 | E67: 75 | O67: The factor is set to get approx. same diesel consumption as in VegLCA: 0.04 L/m2 asphalt laid. | P67: Based on the project with aim to coordinate NV-GHG og VegLCA
B68: Working speed tractor | C68: t/h | D68: 300 | E68: 300 | P68: NIRAS' experience
B69: Working speed paver | C69: t/h | D69: 3.75 | E69: 3.75 | O69: The factor is set to get approx. same diesel consumption as in VegLCA: 0.8 L/tonne of asphalt laid. | P69: Based on the project with aim to coordinate NV-GHG og VegLCA
B70: Working speed excavator | C70: t/h | D70: 150 | E70: 150 | P70: NIRAS' experience
B71: Working speed coarse crusher | C71: t/h | D71: 125 | E71: 125 | P71: NIRAS' experience
B72: Working speed fine crusher | C72: t/h | D72: 250 | E72: 250 | P72: NIRAS' experience
B73: Working speed crane first 400 m2 of bridge | C73: m2/h | D73: 1.666666667 | E73: =400/240 -> 1.666666667 | O73: Value should be verified with more sources. Large variations depending on the bridge type, foundation conditions (geology) and the size of the bridge. The factor can probably vary by plus/minus 60% depending on the conditions | P73: NIRAS' experience
B74: Working speed crane rest of bridge | C74: m2/h | D74: 3.333333333 | E74: =400/120 -> 3.333333333 | O74: Value should be verified with more sources. Large variations depending on the bridge type, foundation conditions (geology) and the size of the bridge. The factor can probably vary by plus/minus 60% depending on the conditions | P74: NIRAS' experience
B75: Working speed crane culvert | C75: h/stk | D75: 18 | E75: 18 | O75: For a prefabricated element culvert approx. 10 hours. For a cast-in-place approx. 25 hours. Using 18 hours as an average. Value should be verified with more sources. | P75: NIRAS' experience
B76: Working speed excavator ditch clearing | C76: m/h | D76: 300 | E76: 300 | P76: NIRAS' experience
B77: Working speed tractor/loading shovel sweeping | C77: m/h | D77: 2000 | E77: 2000 | P77: NIRAS' experience
B78: Working speed tractor/loading shovel roadside mowing | C78: m/h | D78: 7500 | E78: =1000/(8/60) -> 7500 | P78: Working spees is the average of values given by Maskinimportøren on the 15.04.20, that says that their tractor for roadside mowing uses ca. 8 minutes to cut 1-1,25 m roadside in 1 km
B79: Working speed excavator wall mounting | C79: m3/h | D79: =IF(F79="",E79,F79) -> 2.4 | E79: =2*'Calculation factors'!D95 -> 2.4 | O79: Unless otherwise stated, 100% fossil diesel is assumed. | P79: Based on 2 m2 natural stone wall per hour, from håndbok V270

Sheet Emissions factors
B2: Production factor | C2: Unit | D2: Emission factor used in calculations | E2: Standard emission factor | F2: Project-specific emission factor | G2: Comments | H2: Documentation default value | I2: Documentation project-specific value
B3: Materials
B4: Aluminium | C4: kg CO2e/kg | D4: =IF(F4="",E4,F4) -> - | E4: - | G4: Not used in this version
B5: Reinforcement steel | C5: kg CO2e/kg | D5: =IF(F5="",E5,F5) -> 0.5663 | E5: 0.5663 | H5: Average of 10 EPDs published at EPD Norge in 2021
B6: Asphalt concrete, surface (Agb) | C6: kg CO2e/kg | D6: 0.0451 | E6: 0.0451 | H6: Based on SVVs contracts for operation and maintenance, average of EPDs from 2019 and 2020.
B7: Stone mastic asphalt (Ska) | C7: kg CO2e/kg | D7: =IF(F7="",E7,F7) -> 0.061 | E7: 0.061 | H7: 6 % bitumen. Energy use in production assumed the same that for asphalt concrete, surface & base.
B8: Asphalt concrete, base (Ag) | C8: kg CO2e/kg | D8: 0.0341 | E8: 0.0341 | H8: Based on SVVs contracts for operation and maintenance, average of EPDs from 2019 and 2020.
B9: Rock, coarsely crushed | C9: kg CO2e/kg | D9: 0.002673333333 | E9: 0.002673333333 | H9: Average of EPD NEPD-1602-632-NO, NEPD-1537-527-NO, NEPD-1886-824-NO. 2. knusetrinn
B10: Rock, finely crushed | C10: kg CO2e/kg | D10: =IF(F10="",E10,F10) -> 0.00315 | E10: 0.00315 | H10: Average of EPD NEPD-1602-632-NO, NEPD-1537-527-NO, NEPD-1886-824-NO. 3. knusetrinn
B11: Topeka | C11: kg CO2e/kg | D11: =IF(F11="",E11,F11) -> 0.052 | E11: 0.052 | H11: "mastic asphalt production CH", bitumeninnhold (pitch) changed from 8 to 12% and changed to Norwegian el-mix.
B12: Concrete | C12: kg CO2e/kg | D12: 0.1375 | E12: 0.1375 | G12: Baseline: =410/2400 | H12: NB 37 (2019). Bransjereferanse for B35. NB 37 says that conversion from kg/kg to kg/m3 is done by using the density 2400 kg/m3. | I12: =330/2400 -> 0.1375
B13: PE-foam | C13: kg CO2e/m2 | D13: 14.6 | E13: =IFERROR(14.6*'Calculation factors'!D31/'Calculation factors'!E31,14.6) -> 14.6 | G13: Emission factor is calculated based on the thickness of the PE-foam. | H13: NEPD-2915-1608-NO
B14: Salt | C14: kg CO2e/kg | D14: 0.15389 | E14: 0.15389 | H14: Ecoinvent; "sodium chloride production, powder" (Allocation, cut-off by classification, Sodium chloride, powder [kg], RER, ReCiPe Midpoint (H)). Versjon 3.8
B15: Shotcrete | C15: kg CO2e/kg | D15: 0.1375 | E15: =330/2400 -> 0.1375 | H15: Corresponds to B35, bransjereferanse.
B16: Steel | C16: kg CO2e/kg | D16: 2.1038 | E16: 2.1038 | H16: Average of three EPDs on the norwegian market; NEPD-1914-839-EN (A1-A3), NEPD-1915-839-EN (A1-A3) og NEPD-1928-851-SE (A1-A3)
B17: XPS | C17: kg CO2e/m2 | D17: 3.7 | E17: 3.7 | H17: NEPD-396-274-NO (A1-A3). Sundolitt, Brødrene Sunde AS. 33mm thickness
B18: XPS/concrete element | C18: kg CO2e/m2 | D18: 50.265 | E18: =_xlfn.XLOOKUP('Calculation factors'!D59,'Calculation factors'!M45:M48,'Calculation factors'!O45:O48,'Calculation factors'!O45) -> 50.265 | H18: EPDs for XPS-/concrete element and concrete element given by Ølen betong
B19: Wood (glulam) | C19: kg CO2e/kg | D19: 0.1570744681 | E19: =73.825/'Calculation factors'!D18 -> 0.1570744681 | H19: A1-A3 fossil GWP, average of EPD NEPD-1576-605-NO, NEPD-1577-605, NEPD-2531-1274-NO, NEPD-2783-1438-NO
B20: Natural stone | C20: kg CO2e/kg | D20: 0.11233625 | E20: 0.11233625 | H20: A1-A3 average of NEPD-2907-1588-NO, NEPD-2908-1588-NO, NEPD-2561-1288-NO, NEPD-2560-1289-NO, NEPD-2559-1290-NO, NEPD-2558-1291-NO, NEPD-2557-1297-NO, NEPD-2556-1293-NO, NEPD-1673-671-NO, NEPD-1585-609-NO, NEPD-1584-609-NO
B21: Lime | C21: kg CO2e/kg | D21: =IF(F21="",E21,F21) -> 1.045 | E21: 1.045 | H21: A1-A3 average of NEPD-3312-1950-NO og NEPD-3314-1952-NO
B22: Lime cement | C22: kg CO2e/kg | D22: 0.9000970833 | E22: =E21*0.5+E25*0.5 -> 0.9000970833 | H22: Calculated as 50/50 lime and sement CEM I.
B23: Plastic mebrane | C23: kg CO2e/m2 | D23: 4.243333333 | E23: 4.243333333 | H23: A1-A3 average of NEPD-2478-1224-NO, NEPD-1611-637-EN og NEPD-1303-425-EN
B24: Fiber reinforcement | C24: kg CO2e/kg | D24: 0.77066 | E24: 0.77066 | G24: Assuming steel fibre | H24: A1-A3 NEPD-1383-447-NO
B25: Cement | C25: kg CO2e/kg | D25: =IF(F25="",E25,F25) -> 0.7551941667 | E25: 0.7551941667 | G25: Cem I. | H25: A1-A3 average of NEPD-3121-1779-EN, NEPD-3122-1778-EN, NEPD-3119-1781-EN, NEPD-2337-1064-NO, NEPD-2278-1028-NO, NEPD-2277-1028-NO, NEPD-2276-1028-NO, NEPD-2208-993-NO, NEPD-2205-1014-NO, NEPD-1539-528-NO, NEPD-1438-489-NO, NEPD-1426-468-EN
B26: Energy
B27: Biodiesel (WTT) | C27: kg CO2e/liter | D27: 1.92 | E27: 1.92 | H27: NS-EN 16258:2012. Tabell A.1 Biodiesel "well to tank"
B28: Fossil diesel combustion (TTW) | C28: kg CO2e/liter | D28: 2.67 | E28: 2.67 | H28: NS-EN 16258:2012. Tabell A.1 Diesel "tank to wheel"
B29: Fossil diesel (WTW) | C29: kg CO2e/liter | D29: 3.24 | E29: 3.24 | H29: NS-EN 16258-2012. Tabell A.1 Diesel "well to wheel"
B30: Explosives (CTG) | C30: kg CO2e/kg | D30: 1.26 | E30: 1.26 | H30: Average of 10 EPDs for explosives on the Norwegian market
B31: Explosives detonation | C31: kg CO2e/kg | D31: 0.1114 | E31: 0.1114 | H31: Average of 10 EPDs for explosives on the Norwegian market
B32: Electricity construction phase, Norwegian mix | C32: kg CO2e/kWh | D32: =IF(F32="",E32,F32) -> 0.023777 | E32: 0.023777 | H32: Ecoinvent; "market for electricity, low voltage" (Allocation, cut-off by classification, Electricity, low voltage [kWh], NO, ReCiPe Midpoint (H)). Average of emission factors from Ecoinvent 3.8, 3.7.1 og 3.6.
B33: Electricity 55 years, European mix | C33: kg CO2e/kWh | D33: =IF(F33="",E33,F33) -> 0.1153 | E33: 0.1153 | H33: Emission factors is calculated based on the same sources as used in NS3720:2018 "Metode for klimagassberegninger for bygninger", which is based on statistics from Eurostat, EEA, SSB and EUs Roadmap 2015.
B34: Land use change
B35: Forest - low site quality | C35: kg CO2e/m2 | D35: =IF(F35="",E35,F35) -> 60.4 | E35: =12+48.4 -> 60.4 | H35: "Metode for beregning av CO2-utslipp knyttet til arealbeslag ved vegbygging" (Asplan Viak, 2015). Tabell 3
B36: Forest - medium site quality | C36: kg CO2e/m2 | D36: =IF(F36="",E36,F36) -> 68.7 | E36: =20.3+48.4 -> 68.7 | H36: "Metode for beregning av CO2-utslipp knyttet til arealbeslag ved vegbygging" (Asplan Viak, 2015). Tabell 3
B37: Forest - high site quality | C37: kg CO2e/m2 | D37: =IF(F37="",E37,F37) -> 80.3 | E37: =31.9+48.4 -> 80.3 | H37: "Metode for beregning av CO2-utslipp knyttet til arealbeslag ved vegbygging" (Asplan Viak, 2015). Tabell 3
B38: Marsh | C38: kg CO2e/m2 | D38: =IF(F38="",E38,F38) -> 201.9 | E38: =201.9 -> 201.9 | H38: "Metode for beregning av CO2-utslipp knyttet til arealbeslag ved vegbygging" (Asplan Viak, 2015). Tabell 3
B39: Agricultural land | C39: kg CO2e/m2 | D39: =IF(F39="",E39,F39) -> 55.1 | E39: =55.1 -> 55.1 | H39: "Metode for beregning av CO2-utslipp knyttet til arealbeslag ved vegbygging" (Asplan Viak, 2015). Tabell 3

Sheet Results
B3: Table 1: Emissions over the life cycle in tonnes CO2e
B4: Category | C4: Total for the analysis period | D4: Year in the life cycle
D5: 0 | E5: 1 | F5: 2 | G5: 3 | H5: 4 | I5: 5 | J5: 6 | K5: 7 | L5: 8 | M5: 9 | N5: 10 | O5: 11 | P5: 12 | Q5: 13 | R5: 14 | S5: 15 | T5: 16 | U5: 17 | V5: 18 | W5: 19 | X5: 20 | Y5: 21 | Z5: 22 | AA5: 23 | AB5: 24 | AC5: 25 | AD5: 26 | AE5: 27 | AF5: 28 | AG5: 29 | AH5: 30 | AI5: 31 | AJ5: 32 | AK5: 33 | AL5: 34 | AM5: 35 | AN5: 36 | AO5: 37 | AP5: 38 | AQ5: 39 | AR5: 40 | AS5: 41 | AT5: 42 | AU5: 43 | AV5: 44 | AW5: 45 | AX5: 46 | AY5: 47 | AZ5: 48 | BA5: 49 | BB5: 50 | BC5: 51 | BD5: 52 | BE5: 53 | BF5: 54 | BG5: 55 | BH5: 56 | BI5: 57 | BJ5: 58 | BK5: 59 | BL5: 60
B6: Construction phase | C6: =SUMIF($D$5:$BL$5,"<=" & 'Project description and input'!$C$16,D6:BL6) -> 0 | D6: =IFERROR(SUMIF(Calculations!G:G,"År 0",Calculations!M:M),"Ikke definert") -> 0 | E6: 0 | F6: 0 | G6: 0 | H6: 0 | I6: 0 | J6: 0 | K6: 0 | L6: 0 | M6: 0 | N6: 0 | O6: 0 | P6: 0 | Q6: 0 | R6: 0 | S6: 0 | T6: 0 | U6: 0 | V6: 0 | W6: 0 | X6: 0 | Y6: 0 | Z6: 0 | AA6: 0 | AB6: 0 | AC6: 0 | AD6: 0 | AE6: 0 | AF6: 0 | AG6: 0 | AH6: 0 | AI6: 0 | AJ6: 0 | AK6: 0 | AL6: 0 | AM6: 0 | AN6: 0 | AO6: 0 | AP6: 0 | AQ6: 0 | AR6: 0 | AS6: 0 | AT6: 0 | AU6: 0 | AV6: 0 | AW6: 0 | AX6: 0 | AY6: 0 | AZ6: 0 | BA6: 0 | BB6: 0 | BC6: 0 | BD6: 0 | BE6: 0 | BF6: 0 | BG6: 0 | BH6: 0 | BI6: 0 | BJ6: 0 | BK6: 0 | BL6: 0
B7: Land use change | C7: =SUMIF($D$5:$BL$5,"<=" & 'Project description and input'!$C$16,D7:BL7) -> 0 | D7: =C144 -> 0 | E7: 0 | F7: 0 | G7: 0 | H7: 0 | I7: 0 | J7: 0 | K7: 0 | L7: 0 | M7: 0 | N7: 0 | O7: 0 | P7: 0 | Q7: 0 | R7: 0 | S7: 0 | T7: 0 | U7: 0 | V7: 0 | W7: 0 | X7: 0 | Y7: 0 | Z7: 0 | AA7: 0 | AB7: 0 | AC7: 0 | AD7: 0 | AE7: 0 | AF7: 0 | AG7: 0 | AH7: 0 | AI7: 0 | AJ7: 0 | AK7: 0 | AL7: 0 | AM7: 0 | AN7: 0 | AO7: 0 | AP7: 0 | AQ7: 0 | AR7: 0 | AS7: 0 | AT7: 0 | AU7: 0 | AV7: 0 | AW7: 0 | AX7: 0 | AY7: 0 | AZ7: 0 | BA7: 0 | BB7: 0 | BC7: 0 | BD7: 0 | BE7: 0 | BF7: 0 | BG7: 0 | BH7: 0 | BI7: 0 | BJ7: 0 | BK7: 0 | BL7: 0
B8: Operation | C8: =SUMIF($D$5:$BL$5,"<=" & 'Project description and input'!$C$16,D8:BL8) -> 0 | D8: 0 | E8: =SUMIFS(Calculations!O$206:O$423,Calculations!$H$206:$H$423,Results!$B8) -> 0 | F8: =SUMIFS(Calculations!P$206:P$423,Calculations!$H$206:$H$423,Results!$B8) -> 0 | G8: =SUMIFS(Calculations!Q$206:Q$423,Calculations!$H$206:$H$423,Results!$B8) -> 0 | H8: =SUMIFS(Calculations!R$206:R$423,Calculations!$H$206:$H$423,Results!$B8) -> 0 | I8: =SUMIFS(Calculations!S$206:S$423,Calculations!$H$206:$H$423,Results!$B8) -> 0 | J8: =SUMIFS(Calculations!T$206:T$423,Calculations!$H$206:$H$423,Results!$B8) -> 0 | K8: =SUMIFS(Calculations!U$206:U$423,Calculations!$H$206:$H$423,Results!$B8) -> 0 | L8: =SUMIFS(Calculations!V$206:V$423,Calculations!$H$206:$H$423,Results!$B8) -> 0 | M8: =SUMIFS(Calculations!W$206:W$423,Calculations!$H$206:$H$423,Results!$B8) -> 0 | N8: =SUMIFS(Calculations!X$206:X$423,Calculations!$H$206:$H$423,Results!$B8) -> 0 | O8: =SUMIFS(Calculations!Y$206:Y$423,Calculations!$H$206:$H$423,Results!$B8) -> 0 | P8: =SUMIFS(Calculations!Z$206:Z$423,Calculations!$H$206:$H$423,Results!$B8) -> 0 | Q8: =SUMIFS(Calculations!AA$206:AA$423,Calculations!$H$206:$H$423,Results!$B8) -> 0 | R8: =SUMIFS(Calculations!AB$206:AB$423,Calculations!$H$206:$H$423,Results!$B8) -> 0 | S8: =SUMIFS(Calculations!AC$206:AC$423,Calculations!$H$206:$H$423,Results!$B8) -> 0 | T8: =SUMIFS(Calculations!AD$206:AD$423,Calculations!$H$206:$H$423,Results!$B8) -> 0 | U8: =SUMIFS(Calculations!AE$206:AE$423,Calculations!$H$206:$H$423,Results!$B8) -> 0 | V8: =SUMIFS(Calculations!AF$206:AF$423,Calculations!$H$206:$H$423,Results!$B8) -> 0 | W8: =SUMIFS(Calculations!AG$206:AG$423,Calculations!$H$206:$H$423,Results!$B8) -> 0 | X8: =SUMIFS(Calculations!AH$206:AH$423,Calculations!$H$206:$H$423,Results!$B8) -> 0 | Y8: =SUMIFS(Calculations!AI$206:AI$423,Calculations!$H$206:$H$423,Results!$B8) -> 0 | Z8: =SUMIFS(Calculations!AJ$206:AJ$423,Calculations!$H$206:$H$423,Results!$B8) -> 0 | AA8: =SUMIFS(Calculations!AK$206:AK$423,Calculations!$H$206:$H$423,Results!$B8) -> 0 | AB8: =SUMIFS(Calculations!AL$206:AL$423,Calculations!$H$206:$H$423,Results!$B8) -> 0 | AC8: =SUMIFS(Calculations!AM$206:AM$423,Calculations!$H$206:$H$423,Results!$B8) -> 0 | AD8: =SUMIFS(Calculations!AN$206:AN$423,Calculations!$H$206:$H$423,Results!$B8) -> 0 | AE8: =SUMIFS(Calculations!AO$206:AO$423,Calculations!$H$206:$H$423,Results!$B8) -> 0 | AF8: =SUMIFS(Calculations!AP$206:AP$423,Calculations!$H$206:$H$423,Results!$B8) -> 0 | AG8: =SUMIFS(Calculations!AQ$206:AQ$423,Calculations!$H$206:$H$423,Results!$B8) -> 0 | AH8: =SUMIFS(Calculations!AR$206:AR$423,Calculations!$H$206:$H$423,Results!$B8) -> 0 | AI8: =SUMIFS(Calculations!AS$206:AS$423,Calculations!$H$206:$H$423,Results!$B8) -> 0 | AJ8: =SUMIFS(Calculations!AT$206:AT$423,Calculations!$H$206:$H$423,Results!$B8) -> 0 | AK8: =SUMIFS(Calculations!AU$206:AU$423,Calculations!$H$206:$H$423,Results!$B8) -> 0 | AL8: =SUMIFS(Calculations!AV$206:AV$423,Calculations!$H$206:$H$423,Results!$B8) -> 0 | AM8: =SUMIFS(Calculations!AW$206:AW$423,Calculations!$H$206:$H$423,Results!$B8) -> 0 | AN8: =SUMIFS(Calculations!AX$206:AX$423,Calculations!$H$206:$H$423,Results!$B8) -> 0 | AO8: =SUMIFS(Calculations!AY$206:AY$423,Calculations!$H$206:$H$423,Results!$B8) -> 0 | AP8: =SUMIFS(Calculations!AZ$206:AZ$423,Calculations!$H$206:$H$423,Results!$B8) -> 0 | AQ8: =SUMIFS(Calculations!BA$206:BA$423,Calculations!$H$206:$H$423,Results!$B8) -> 0 | AR8: =SUMIFS(Calculations!BB$206:BB$423,Calculations!$H$206:$H$423,Results!$B8) -> 0 | AS8: =SUMIFS(Calculations!BC$206:BC$423,Calculations!$H$206:$H$423,Results!$B8) -> 0 | AT8: =SUMIFS(Calculations!BD$206:BD$423,Calculations!$H$206:$H$423,Results!$B8) -> 0 | AU8: =SUMIFS(Calculations!BE$206:BE$423,Calculations!$H$206:$H$423,Results!$B8) -> 0 | AV8: =SUMIFS(Calculations!BF$206:BF$423,Calculations!$H$206:$H$423,Results!$B8) -> 0 | AW8: =SUMIFS(Calculations!BG$206:BG$423,Calculations!$H$206:$H$423,Results!$B8) -> 0 | AX8: =SUMIFS(Calculations!BH$206:BH$423,Calculations!$H$206:$H$423,Results!$B8) -> 0 | AY8: =SUMIFS(Calculations!BI$206:BI$423,Calculations!$H$206:$H$423,Results!$B8) -> 0 | AZ8: =SUMIFS(Calculations!BJ$206:BJ$423,Calculations!$H$206:$H$423,Results!$B8) -> 0 | BA8: =SUMIFS(Calculations!BK$206:BK$423,Calculations!$H$206:$H$423,Results!$B8) -> 0 | BB8: =SUMIFS(Calculations!BL$206:BL$423,Calculations!$H$206:$H$423,Results!$B8) -> 0 | BC8: =SUMIFS(Calculations!BM$206:BM$423,Calculations!$H$206:$H$423,Results!$B8) -> 0 | BD8: =SUMIFS(Calculations!BN$206:BN$423,Calculations!$H$206:$H$423,Results!$B8) -> 0 | BE8: =SUMIFS(Calculations!BO$206:BO$423,Calculations!$H$206:$H$423,Results!$B8) -> 0 | BF8: =SUMIFS(Calculations!BP$206:BP$423,Calculations!$H$206:$H$423,Results!$B8) -> 0 | BG8: =SUMIFS(Calculations!BQ$206:BQ$423,Calculations!$H$206:$H$423,Results!$B8) -> 0 | BH8: =SUMIFS(Calculations!BR$206:BR$423,Calculations!$H$206:$H$423,Results!$B8) -> 0 | BI8: =SUMIFS(Calculations!BS$206:BS$423,Calculations!$H$206:$H$423,Results!$B8) -> 0 | BJ8: =SUMIFS(Calculations!BT$206:BT$423,Calculations!$H$206:$H$423,Results!$B8) -> 0 | BK8: =SUMIFS(Calculations!BU$206:BU$423,Calculations!$H$206:$H$423,Results!$B8) -> 0 | BL8: =SUMIFS(Calculations!BV$206:BV$423,Calculations!$H$206:$H$423,Results!$B8) -> 0
B9: Maintenance | C9: =SUMIF($D$5:$BL$5,"<=" & 'Project description and input'!$C$16,D9:BL9) -> 0 | D9: 0 | E9: =SUMIFS(Calculations!O$206:O$423,Calculations!$H$206:$H$423,Results!$B9) -> 0 | F9: =SUMIFS(Calculations!P$206:P$423,Calculations!$H$206:$H$423,Results!$B9) -> 0 | G9: =SUMIFS(Calculations!Q$206:Q$423,Calculations!$H$206:$H$423,Results!$B9) -> 0 | H9: =SUMIFS(Calculations!R$206:R$423,Calculations!$H$206:$H$423,Results!$B9) -> 0 | I9: =SUMIFS(Calculations!S$206:S$423,Calculations!$H$206:$H$423,Results!$B9) -> 0 | J9: =SUMIFS(Calculations!T$206:T$423,Calculations!$H$206:$H$423,Results!$B9) -> 0 | K9: =SUMIFS(Calculations!U$206:U$423,Calculations!$H$206:$H$423,Results!$B9) -> 0 | L9: =SUMIFS(Calculations!V$206:V$423,Calculations!$H$206:$H$423,Results!$B9) -> 0 | M9: =SUMIFS(Calculations!W$206:W$423,Calculations!$H$206:$H$423,Results!$B9) -> 0 | N9: =SUMIFS(Calculations!X$206:X$423,Calculations!$H$206:$H$423,Results!$B9) -> 0 | O9: =SUMIFS(Calculations!Y$206:Y$423,Calculations!$H$206:$H$423,Results!$B9) -> 0 | P9: =SUMIFS(Calculations!Z$206:Z$423,Calculations!$H$206:$H$423,Results!$B9) -> 0 | Q9: =SUMIFS(Calculations!AA$206:AA$423,Calculations!$H$206:$H$423,Results!$B9) -> 0 | R9: =SUMIFS(Calculations!AB$206:AB$423,Calculations!$H$206:$H$423,Results!$B9) -> 0 | S9: =SUMIFS(Calculations!AC$206:AC$423,Calculations!$H$206:$H$423,Results!$B9) -> 0 | T9: =SUMIFS(Calculations!AD$206:AD$423,Calculations!$H$206:$H$423,Results!$B9) -> 0 | U9: =SUMIFS(Calculations!AE$206:AE$423,Calculations!$H$206:$H$423,Results!$B9) -> 0 | V9: =SUMIFS(Calculations!AF$206:AF$423,Calculations!$H$206:$H$423,Results!$B9) -> 0 | W9: =SUMIFS(Calculations!AG$206:AG$423,Calculations!$H$206:$H$423,Results!$B9) -> 0 | X9: =SUMIFS(Calculations!AH$206:AH$423,Calculations!$H$206:$H$423,Results!$B9) -> 0 | Y9: =SUMIFS(Calculations!AI$206:AI$423,Calculations!$H$206:$H$423,Results!$B9) -> 0 | Z9: =SUMIFS(Calculations!AJ$206:AJ$423,Calculations!$H$206:$H$423,Results!$B9) -> 0 | AA9: =SUMIFS(Calculations!AK$206:AK$423,Calculations!$H$206:$H$423,Results!$B9) -> 0 | AB9: =SUMIFS(Calculations!AL$206:AL$423,Calculations!$H$206:$H$423,Results!$B9) -> 0 | AC9: =SUMIFS(Calculations!AM$206:AM$423,Calculations!$H$206:$H$423,Results!$B9) -> 0 | AD9: =SUMIFS(Calculations!AN$206:AN$423,Calculations!$H$206:$H$423,Results!$B9) -> 0 | AE9: =SUMIFS(Calculations!AO$206:AO$423,Calculations!$H$206:$H$423,Results!$B9) -> 0 | AF9: =SUMIFS(Calculations!AP$206:AP$423,Calculations!$H$206:$H$423,Results!$B9) -> 0 | AG9: =SUMIFS(Calculations!AQ$206:AQ$423,Calculations!$H$206:$H$423,Results!$B9) -> 0 | AH9: =SUMIFS(Calculations!AR$206:AR$423,Calculations!$H$206:$H$423,Results!$B9) -> 0 | AI9: =SUMIFS(Calculations!AS$206:AS$423,Calculations!$H$206:$H$423,Results!$B9) -> 0 | AJ9: =SUMIFS(Calculations!AT$206:AT$423,Calculations!$H$206:$H$423,Results!$B9) -> 0 | AK9: =SUMIFS(Calculations!AU$206:AU$423,Calculations!$H$206:$H$423,Results!$B9) -> 0 | AL9: =SUMIFS(Calculations!AV$206:AV$423,Calculations!$H$206:$H$423,Results!$B9) -> 0 | AM9: =SUMIFS(Calculations!AW$206:AW$423,Calculations!$H$206:$H$423,Results!$B9) -> 0 | AN9: =SUMIFS(Calculations!AX$206:AX$423,Calculations!$H$206:$H$423,Results!$B9) -> 0 | AO9: =SUMIFS(Calculations!AY$206:AY$423,Calculations!$H$206:$H$423,Results!$B9) -> 0 | AP9: =SUMIFS(Calculations!AZ$206:AZ$423,Calculations!$H$206:$H$423,Results!$B9) -> 0 | AQ9: =SUMIFS(Calculations!BA$206:BA$423,Calculations!$H$206:$H$423,Results!$B9) -> 0 | AR9: =SUMIFS(Calculations!BB$206:BB$423,Calculations!$H$206:$H$423,Results!$B9) -> 0 | AS9: =SUMIFS(Calculations!BC$206:BC$423,Calculations!$H$206:$H$423,Results!$B9) -> 0 | AT9: =SUMIFS(Calculations!BD$206:BD$423,Calculations!$H$206:$H$423,Results!$B9) -> 0 | AU9: =SUMIFS(Calculations!BE$206:BE$423,Calculations!$H$206:$H$423,Results!$B9) -> 0 | AV9: =SUMIFS(Calculations!BF$206:BF$423,Calculations!$H$206:$H$423,Results!$B9) -> 0 | AW9: =SUMIFS(Calculations!BG$206:BG$423,Calculations!$H$206:$H$423,Results!$B9) -> 0 | AX9: =SUMIFS(Calculations!BH$206:BH$423,Calculations!$H$206:$H$423,Results!$B9) -> 0 | AY9: =SUMIFS(Calculations!BI$206:BI$423,Calculations!$H$206:$H$423,Results!$B9) -> 0 | AZ9: =SUMIFS(Calculations!BJ$206:BJ$423,Calculations!$H$206:$H$423,Results!$B9) -> 0 | BA9: =SUMIFS(Calculations!BK$206:BK$423,Calculations!$H$206:$H$423,Results!$B9) -> 0 | BB9: =SUMIFS(Calculations!BL$206:BL$423,Calculations!$H$206:$H$423,Results!$B9) -> 0 | BC9: =SUMIFS(Calculations!BM$206:BM$423,Calculations!$H$206:$H$423,Results!$B9) -> 0 | BD9: =SUMIFS(Calculations!BN$206:BN$423,Calculations!$H$206:$H$423,Results!$B9) -> 0 | BE9: =SUMIFS(Calculations!BO$206:BO$423,Calculations!$H$206:$H$423,Results!$B9) -> 0 | BF9: =SUMIFS(Calculations!BP$206:BP$423,Calculations!$H$206:$H$423,Results!$B9) -> 0 | BG9: =SUMIFS(Calculations!BQ$206:BQ$423,Calculations!$H$206:$H$423,Results!$B9) -> 0 | BH9: =SUMIFS(Calculations!BR$206:BR$423,Calculations!$H$206:$H$423,Results!$B9) -> 0 | BI9: =SUMIFS(Calculations!BS$206:BS$423,Calculations!$H$206:$H$423,Results!$B9) -> 0 | BJ9: =SUMIFS(Calculations!BT$206:BT$423,Calculations!$H$206:$H$423,Results!$B9) -> 0 | BK9: =SUMIFS(Calculations!BU$206:BU$423,Calculations!$H$206:$H$423,Results!$B9) -> 0 | BL9: =SUMIFS(Calculations!BV$206:BV$423,Calculations!$H$206:$H$423,Results!$B9) -> 0
B10: Re-asphalting | C10: =SUMIF($D$5:$BL$5,"<=" & 'Project description and input'!$C$16,D10:BL10) -> 0 | D10: 0 | E10: =SUMIFS(Calculations!O$206:O$423,Calculations!$H$206:$H$423,Results!$B10) -> 0 | F10: =SUMIFS(Calculations!P$206:P$423,Calculations!$H$206:$H$423,Results!$B10) -> 0 | G10: =SUMIFS(Calculations!Q$206:Q$423,Calculations!$H$206:$H$423,Results!$B10) -> 0 | H10: =SUMIFS(Calculations!R$206:R$423,Calculations!$H$206:$H$423,Results!$B10) -> 0 | I10: =SUMIFS(Calculations!S$206:S$423,Calculations!$H$206:$H$423,Results!$B10) -> 0 | J10: =SUMIFS(Calculations!T$206:T$423,Calculations!$H$206:$H$423,Results!$B10) -> 0 | K10: =SUMIFS(Calculations!U$206:U$423,Calculations!$H$206:$H$423,Results!$B10) -> 0 | L10: =SUMIFS(Calculations!V$206:V$423,Calculations!$H$206:$H$423,Results!$B10) -> 0 | M10: =SUMIFS(Calculations!W$206:W$423,Calculations!$H$206:$H$423,Results!$B10) -> 0 | N10: =SUMIFS(Calculations!X$206:X$423,Calculations!$H$206:$H$423,Results!$B10) -> 0 | O10: =SUMIFS(Calculations!Y$206:Y$423,Calculations!$H$206:$H$423,Results!$B10) -> 0 | P10: =SUMIFS(Calculations!Z$206:Z$423,Calculations!$H$206:$H$423,Results!$B10) -> 0 | Q10: =SUMIFS(Calculations!AA$206:AA$423,Calculations!$H$206:$H$423,Results!$B10) -> 0 | R10: =SUMIFS(Calculations!AB$206:AB$423,Calculations!$H$206:$H$423,Results!$B10) -> 0 | S10: =SUMIFS(Calculations!AC$206:AC$423,Calculations!$H$206:$H$423,Results!$B10) -> 0 | T10: =SUMIFS(Calculations!AD$206:AD$423,Calculations!$H$206:$H$423,Results!$B10) -> 0 | U10: =SUMIFS(Calculations!AE$206:AE$423,Calculations!$H$206:$H$423,Results!$B10) -> 0 | V10: =SUMIFS(Calculations!AF$206:AF$423,Calculations!$H$206:$H$423,Results!$B10) -> 0 | W10: =SUMIFS(Calculations!AG$206:AG$423,Calculations!$H$206:$H$423,Results!$B10) -> 0 | X10: =SUMIFS(Calculations!AH$206:AH$423,Calculations!$H$206:$H$423,Results!$B10) -> 0 | Y10: =SUMIFS(Calculations!AI$206:AI$423,Calculations!$H$206:$H$423,Results!$B10) -> 0 | Z10: =SUMIFS(Calculations!AJ$206:AJ$423,Calculations!$H$206:$H$423,Results!$B10) -> 0 | AA10: =SUMIFS(Calculations!AK$206:AK$423,Calculations!$H$206:$H$423,Results!$B10) -> 0 | AB10: =SUMIFS(Calculations!AL$206:AL$423,Calculations!$H$206:$H$423,Results!$B10) -> 0 | AC10: =SUMIFS(Calculations!AM$206:AM$423,Calculations!$H$206:$H$423,Results!$B10) -> 0 | AD10: =SUMIFS(Calculations!AN$206:AN$423,Calculations!$H$206:$H$423,Results!$B10) -> 0 | AE10: =SUMIFS(Calculations!AO$206:AO$423,Calculations!$H$206:$H$423,Results!$B10) -> 0 | AF10: =SUMIFS(Calculations!AP$206:AP$423,Calculations!$H$206:$H$423,Results!$B10) -> 0 | AG10: =SUMIFS(Calculations!AQ$206:AQ$423,Calculations!$H$206:$H$423,Results!$B10) -> 0 | AH10: =SUMIFS(Calculations!AR$206:AR$423,Calculations!$H$206:$H$423,Results!$B10) -> 0 | AI10: =SUMIFS(Calculations!AS$206:AS$423,Calculations!$H$206:$H$423,Results!$B10) -> 0 | AJ10: =SUMIFS(Calculations!AT$206:AT$423,Calculations!$H$206:$H$423,Results!$B10) -> 0 | AK10: =SUMIFS(Calculations!AU$206:AU$423,Calculations!$H$206:$H$423,Results!$B10) -> 0 | AL10: =SUMIFS(Calculations!AV$206:AV$423,Calculations!$H$206:$H$423,Results!$B10) -> 0 | AM10: =SUMIFS(Calculations!AW$206:AW$423,Calculations!$H$206:$H$423,Results!$B10) -> 0 | AN10: =SUMIFS(Calculations!AX$206:AX$423,Calculations!$H$206:$H$423,Results!$B10) -> 0 | AO10: =SUMIFS(Calculations!AY$206:AY$423,Calculations!$H$206:$H$423,Results!$B10) -> 0 | AP10: =SUMIFS(Calculations!AZ$206:AZ$423,Calculations!$H$206:$H$423,Results!$B10) -> 0 | AQ10: =SUMIFS(Calculations!BA$206:BA$423,Calculations!$H$206:$H$423,Results!$B10) -> 0 | AR10: =SUMIFS(Calculations!BB$206:BB$423,Calculations!$H$206:$H$423,Results!$B10) -> 0 | AS10: =SUMIFS(Calculations!BC$206:BC$423,Calculations!$H$206:$H$423,Results!$B10) -> 0 | AT10: =SUMIFS(Calculations!BD$206:BD$423,Calculations!$H$206:$H$423,Results!$B10) -> 0 | AU10: =SUMIFS(Calculations!BE$206:BE$423,Calculations!$H$206:$H$423,Results!$B10) -> 0 | AV10: =SUMIFS(Calculations!BF$206:BF$423,Calculations!$H$206:$H$423,Results!$B10) -> 0 | AW10: =SUMIFS(Calculations!BG$206:BG$423,Calculations!$H$206:$H$423,Results!$B10) -> 0 | AX10: =SUMIFS(Calculations!BH$206:BH$423,Calculations!$H$206:$H$423,Results!$B10) -> 0 | AY10: =SUMIFS(Calculations!BI$206:BI$423,Calculations!$H$206:$H$423,Results!$B10) -> 0 | AZ10: =SUMIFS(Calculations!BJ$206:BJ$423,Calculations!$H$206:$H$423,Results!$B10) -> 0 | BA10: =SUMIFS(Calculations!BK$206:BK$423,Calculations!$H$206:$H$423,Results!$B10) -> 0 | BB10: =SUMIFS(Calculations!BL$206:BL$423,Calculations!$H$206:$H$423,Results!$B10) -> 0 | BC10: =SUMIFS(Calculations!BM$206:BM$423,Calculations!$H$206:$H$423,Results!$B10) -> 0 | BD10: =SUMIFS(Calculations!BN$206:BN$423,Calculations!$H$206:$H$423,Results!$B10) -> 0 | BE10: =SUMIFS(Calculations!BO$206:BO$423,Calculations!$H$206:$H$423,Results!$B10) -> 0 | BF10: =SUMIFS(Calculations!BP$206:BP$423,Calculations!$H$206:$H$423,Results!$B10) -> 0 | BG10: =SUMIFS(Calculations!BQ$206:BQ$423,Calculations!$H$206:$H$423,Results!$B10) -> 0 | BH10: =SUMIFS(Calculations!BR$206:BR$423,Calculations!$H$206:$H$423,Results!$B10) -> 0 | BI10: =SUMIFS(Calculations!BS$206:BS$423,Calculations!$H$206:$H$423,Results!$B10) -> 0 | BJ10: =SUMIFS(Calculations!BT$206:BT$423,Calculations!$H$206:$H$423,Results!$B10) -> 0 | BK10: =SUMIFS(Calculations!BU$206:BU$423,Calculations!$H$206:$H$423,Results!$B10) -> 0 | BL10: =SUMIFS(Calculations!BV$206:BV$423,Calculations!$H$206:$H$423,Results!$B10) -> 0
B11: Total | C11: =SUMIF($D$5:$BL$5,"<=" & 'Project description and input'!$C$16,D11:BL11) -> 0 | D11: =SUM(D6:D10) -> 0 | E11: 0 | F11: 0 | G11: 0 | H11: 0 | I11: 0 | J11: 0 | K11: 0 | L11: 0 | M11: 0 | N11: 0 | O11: 0 | P11: 0 | Q11: 0 | R11: 0 | S11: 0 | T11: 0 | U11: 0 | V11: 0 | W11: 0 | X11: 0 | Y11: 0 | Z11: 0 | AA11: 0 | AB11: 0 | AC11: 0 | AD11: 0 | AE11: 0 | AF11: 0 | AG11: 0 | AH11: 0 | AI11: 0 | AJ11: =SUM(AJ6:AJ10) -> 0 | AK11: 0 | AL11: 0 | AM11: 0 | AN11: 0 | AO11: 0 | AP11: 0 | AQ11: 0 | AR11: 0 | AS11: 0 | AT11: 0 | AU11: 0 | AV11: 0 | AW11: 0 | AX11: 0 | AY11: 0 | AZ11: 0 | BA11: 0 | BB11: 0 | BC11: 0 | BD11: 0 | BE11: 0 | BF11: 0 | BG11: 0 | BH11: 0 | BI11: 0 | BJ11: 0 | BK11: 0 | BL11: 0
B38: Table 2: Emission distributed to physical units and phase (in tonnes CO2e)
B39: Category | C39: Concrete | D39: Steel | E39: Reinforcement steel | F39: Asphalt | G39: Wood | H39: Frost protection tunnel | I39: Blasting | J39: Crushed rock and rock | K39: Lime cement | L39: Diesel | M39: Salt | N39: Electricity | O39: Land use change | P39: Total
B40: Open road | C40: =SUMIFS(Calculations!M:M,Calculations!H:H,B40,Calculations!I:I,Results!C39) -> 0 | D40: =SUMIFS(Calculations!M:M,Calculations!H:H,Results!B40,Calculations!I:I,D39) -> 0 | E40: =SUMIFS(Calculations!M:M,Calculations!H:H,Results!B40,Calculations!I:I,E39) -> 0 | F40: =SUMIFS(Calculations!M:M,Calculations!H:H,Results!B40,Calculations!I:I,F39) -> 0 | G40: =SUMIFS(Calculations!M:M,Calculations!H:H,Results!B40,Calculations!I:I,G39) -> 0 | H40: =SUMIFS(Calculations!M:M,Calculations!H:H,Results!B40,Calculations!I:I,H39) -> 0 | I40: =SUMIFS(Calculations!M:M,Calculations!H:H,Results!B40,Calculations!I:I,I39) -> 0 | J40: =SUMIFS(Calculations!M:M,Calculations!H:H,Results!B40,Calculations!I:I,J39) -> 0 | K40: =SUMIFS(Calculations!M:M,Calculations!H:H,Results!B40,Calculations!I:I,K39) -> 0 | L40: =SUMIFS(Calculations!M:M,Calculations!H:H,B40,Calculations!I:I,L39)+SUMIFS(Calculations!M:M,Calculations!H:H,B40,Calculations!I:I,Calculations!I5) -> 0 | M40: =SUMIFS(Calculations!M:M,Calculations!H:H,Results!B40,Calculations!I:I,M39) -> 0 | N40: =SUMIFS(Calculations!M:M,Calculations!H:H,Results!B40,Calculations!I:I,N39) -> 0 | O40: =C144 -> 0 | P40: =SUM(C40:O40) -> 0
B41: Tunnel | C41: =SUMIFS(Calculations!M:M,Calculations!H:H,B41,Calculations!I:I,Results!C39) -> 0 | D41: =SUMIFS(Calculations!M:M,Calculations!H:H,B41,Calculations!I:I,D39) -> 0 | E41: =SUMIFS(Calculations!M:M,Calculations!H:H,B41,Calculations!I:I,Results!E39) -> 0 | F41: =SUMIFS(Calculations!M:M,Calculations!H:H,B41,Calculations!I:I,F39) -> 0 | G41: =SUMIFS(Calculations!M:M,Calculations!H:H,B41,Calculations!I:I,G39) -> 0 | H41: =SUMIFS(Calculations!M:M,Calculations!H:H,B41,Calculations!I:I,H39) -> 0 | I41: =SUMIFS(Calculations!M:M,Calculations!H:H,B41,Calculations!I:I,I39) -> 0 | J41: =SUMIFS(Calculations!M:M,Calculations!H:H,B41,Calculations!I:I,J39) -> 0 | K41: =SUMIFS(Calculations!M:M,Calculations!H:H,B41,Calculations!I:I,K39) -> 0 | L41: =SUMIFS(Calculations!M:M,Calculations!H:H,B41,Calculations!I:I,L39)+SUMIFS(Calculations!M:M,Calculations!H:H,B41,Calculations!I:I,Calculations!I5) -> 0 | M41: =SUMIFS(Calculations!M:M,Calculations!H:H,B41,Calculations!I:I,M39) -> 0 | N41: =SUMIFS(Calculations!M:M,Calculations!H:H,B41,Calculations!I:I,N39) -> 0 | O41: 0 | P41: 0
B42: Bridge | C42: =SUMIFS(Calculations!M:M,Calculations!H:H,B42,Calculations!I:I,Results!C39) -> 0 | D42: =SUMIFS(Calculations!M:M,Calculations!H:H,B42,Calculations!I:I,D39) -> 0 | E42: =SUMIFS(Calculations!M:M,Calculations!H:H,B42,Calculations!I:I,E39) -> 0 | F42: =SUMIFS(Calculations!M:M,Calculations!H:H,B42,Calculations!I:I,F39) -> 0 | G42: =SUMIFS(Calculations!M:M,Calculations!H:H,B42,Calculations!I:I,G39) -> 0 | H42: =SUMIFS(Calculations!M:M,Calculations!H:H,B42,Calculations!I:I,H39) -> 0 | I42: =SUMIFS(Calculations!M:M,Calculations!H:H,B42,Calculations!I:I,I39) -> 0 | J42: =SUMIFS(Calculations!M:M,Calculations!H:H,B42,Calculations!I:I,J39) -> 0 | K42: =SUMIFS(Calculations!M:M,Calculations!H:H,B42,Calculations!I:I,K39) -> 0 | L42: =SUMIFS(Calculations!M:M,Calculations!H:H,B42,Calculations!I:I,L39)+SUMIFS(Calculations!M:M,Calculations!H:H,B42,Calculations!I:I,Calculations!I5) -> 0 | M42: =SUMIFS(Calculations!M:M,Calculations!H:H,B42,Calculations!I:I,M39) -> 0 | N42: =SUMIFS(Calculations!M:M,Calculations!H:H,B42,Calculations!I:I,N39) -> 0 | O42: 0 | P42: 0
B43: Culvert | C43: =SUMIFS(Calculations!M:M,Calculations!H:H,B43,Calculations!I:I,Results!C39) -> 0 | D43: =SUMIFS(Calculations!M:M,Calculations!H:H,B43,Calculations!I:I,D39) -> 0 | E43: =SUMIFS(Calculations!M:M,Calculations!H:H,B43,Calculations!I:I,E39) -> 0 | F43: =SUMIFS(Calculations!M:M,Calculations!H:H,B43,Calculations!I:I,F39) -> 0 | G43: =SUMIFS(Calculations!M:M,Calculations!H:H,B43,Calculations!I:I,G39) -> 0 | H43: =SUMIFS(Calculations!M:M,Calculations!H:H,B43,Calculations!I:I,H39) -> 0 | I43: =SUMIFS(Calculations!M:M,Calculations!H:H,B43,Calculations!I:I,I39) -> 0 | J43: =SUMIFS(Calculations!M:M,Calculations!H:H,B43,Calculations!I:I,J39) -> 0 | K43: =SUMIFS(Calculations!M:M,Calculations!H:H,B43,Calculations!I:I,K39) -> 0 | L43: =SUMIFS(Calculations!M:M,Calculations!H:H,B43,Calculations!I:I,L39)+SUMIFS(Calculations!M:M,Calculations!H:H,B43,Calculations!I:I,Calculations!I5) -> 0 | M43: =SUMIFS(Calculations!M:M,Calculations!H:H,B43,Calculations!I:I,M39) -> 0 | N43: =SUMIFS(Calculations!M:M,Calculations!H:H,B43,Calculations!I:I,N39) -> 0 | O43: 0 | P43: 0
B44: Crushed rock | C44: =SUMIFS(Calculations!$M:$M,Calculations!$H:$H,$B44,Calculations!$I:$I,C39) -> 0 | D44: =SUMIFS(Calculations!$M:$M,Calculations!$H:$H,$B44,Calculations!$I:$I,D39) -> 0 | E44: =SUMIFS(Calculations!$M:$M,Calculations!$H:$H,$B44,Calculations!$I:$I,E39) -> 0 | F44: =SUMIFS(Calculations!$M:$M,Calculations!$H:$H,$B44,Calculations!$I:$I,F39) -> 0 | G44: =SUMIFS(Calculations!$M:$M,Calculations!$H:$H,$B44,Calculations!$I:$I,G39) -> 0 | H44: =SUMIFS(Calculations!$M:$M,Calculations!$H:$H,$B44,Calculations!$I:$I,H39) -> 0 | I44: =SUMIFS(Calculations!$M:$M,Calculations!$H:$H,$B44,Calculations!$I:$I,I39) -> 0 | J44: =SUMIFS(Calculations!M:M,Calculations!H:H,B44,Calculations!I:I,J39) -> 0 | K44: =SUMIFS(Calculations!M:M,Calculations!H:H,B44,Calculations!I:I,K39) -> 0 | L44: =SUMIFS(Calculations!$M:$M,Calculations!$H:$H,$B44,Calculations!$I:$I,L39) -> 0 | M44: =SUMIFS(Calculations!$M:$M,Calculations!$H:$H,$B44,Calculations!$I:$I,M39) -> 0 | N44: =SUMIFS(Calculations!$M:$M,Calculations!$H:$H,$B44,Calculations!$I:$I,N39) -> 0 | O44: 0 | P44: =SUM(C44:O44) -> 0
B45: Construction phase | C45: =SUM(C40:C44) -> 0 | D45: =SUM(D40:D44) -> 0 | E45: =SUM(E40:E44) -> 0 | F45: 0 | G45: =SUM(G40:G44) -> 0 | H45: 0 | I45: 0 | J45: 0 | K45: 0 | L45: 0 | M45: 0 | N45: 0 | O45: 0 | P45: 0
B46: Land use | C46: 0 | D46: 0 | E46: 0 | F46: 0 | G46: 0 | H46: 0 | I46: 0 | J46: 0 | K46: 0 | L46: 0 | M46: 0 | N46: 0 | O46: =SUM(O40:O44) -> 0 | P46: 0
B47: Construction phase med arealbridgek | C47: =SUM(C40:C44) -> 0 | D47: =SUM(D40:D44) -> 0 | E47: =SUM(E40:E44) -> 0 | F47: =SUM(F40:F44) -> 0 | G47: =SUM(G40:G44) -> 0 | H47: 0 | I47: 0 | J47: 0 | K47: 0 | L47: 0 | M47: 0 | N47: 0 | O47: 0 | P47: =SUM(C47:O47) -> 0
B48: Operation and maintenance totalt | C48: =SUMIF(Calculations!$I$206:$I$423,Results!C39,Calculations!$N$206:$N$423) -> 0 | D48: =SUMIF(Calculations!$I$206:$I$423,Results!D39,Calculations!$N$206:$N$423) -> 0 | E48: =SUMIF(Calculations!$I$206:$I$423,Results!E39,Calculations!$N$206:$N$423) -> 0 | F48: =SUMIF(Calculations!$I$206:$I$423,Results!F39,Calculations!$N$206:$N$423) -> 0 | G48: =SUMIF(Calculations!$I$206:$I$423,Results!G39,Calculations!$N$206:$N$423) -> 0 | H48: =SUMIF(Calculations!$I$206:$I$423,Results!H39,Calculations!$N$206:$N$423) -> 0 | I48: =SUMIF(Calculations!$I$206:$I$423,Results!I39,Calculations!$N$206:$N$423) -> 0 | J48: =SUMIF(Calculations!$I$206:$I$423,Results!J39,Calculations!$N$206:$N$423) -> 0 | K48: =SUMIF(Calculations!$I$206:$I$423,Results!K39,Calculations!$N$206:$N$423) -> 0 | L48: =SUMIF(Calculations!$I$206:$I$423,L39,Calculations!$N$206:$N$423)+SUMIF(Calculations!$I$206:$I$423,Calculations!I208,Calculations!$N$206:$N$423) -> 0 | M48: =SUMIF(Calculations!$I$206:$I$423,Results!M39,Calculations!$N$206:$N$423) -> 0 | N48: =SUMIF(Calculations!$I$206:$I$423,Results!N39,Calculations!$N$206:$N$423) -> 0 | O48: =SUMIF(Calculations!$I$206:$I$423,Results!O39,Calculations!$N$206:$N$423) -> 0 | P48: 0
B49: Total | C49: =SUM(C47:C48) -> 0 | D49: =SUM(D47:D48) -> 0 | E49: =SUM(E47:E48) -> 0 | F49: 0 | G49: =SUM(G47:G48) -> 0 | H49: 0 | I49: 0 | J49: 0 | K49: 0 | L49: =SUM(L47:L48) -> 0 | M49: =SUM(M47:M48) -> 0 | N49: =SUM(N47:N48) -> 0 | O49: =SUM(O47:O48) -> 0 | P49: 0
B50: Percentage of construction phase | C50: =IFERROR(C45/P45,"Not relevant") -> Not relevant | D50: =IFERROR(D45/P45,"Not relevant") -> Not relevant | E50: =IFERROR(E45/P45,"Not relevant") -> Not relevant | F50: =IFERROR(F45/P45,"Not relevant") -> Not relevant | G50: =IFERROR(G45/P45,"Not relevant") -> Not relevant | H50: =IFERROR(H45/P45,"Not relevant") -> Not relevant | I50: =IFERROR(I45/P45,"Not relevant") -> Not relevant | J50: =IFERROR(J45/P45,"Not relevant") -> Not relevant | K50: =IFERROR(K45/P45,"Not relevant") -> Not relevant | L50: =IFERROR(L45/P45,"Not relevant") -> Not relevant | M50: =IFERROR(M45/P45,"Not relevant") -> Not relevant | N50: =IFERROR(N45/P45,"Not relevant") -> Not relevant | O50: =IFERROR(O45/P45,"Not relevant") -> Not relevant | P50: =IFERROR(SUM(C50:O50),"Ikke relevant") -> 0
B51: Percentage of O&M phase | C51: =IFERROR(C48/P48,"Not relevant") -> Not relevant | D51: =IFERROR(D48/P48,"Not relevant") -> Not relevant | E51: =IFERROR(E48/P48,"Not relevant") -> Not relevant | F51: =IFERROR(F48/P48,"Not relevant") -> Not relevant | G51: =IFERROR(G48/P48,"Not relevant") -> Not relevant | H51: =IFERROR(H48/P48,"Not relevant") -> Not relevant | I51: =IFERROR(I48/P48,"Not relevant") -> Not relevant | J51: =IFERROR(J48/P48,"Not relevant") -> Not relevant | K51: =IFERROR(K48/P48,"Not relevant") -> Not relevant | L51: =IFERROR(L48/P48,"Not relevant") -> Not relevant | M51: =IFERROR(M48/P48,"Not relevant") -> Not relevant | N51: =IFERROR(N48/P48,"Not relevant") -> Not relevant | O51: =IFERROR(O48/P48,"Not relevant") -> Not relevant | P51: =IFERROR(SUM(C51:O51),"Ikke relevant") -> 0
E78: NB! If some production factors are too small to appear in the percentage distribution, remove these from the figure by selecting 'select data'.
B80: Table 3: Details of operation and maintenance emissions (in tonnes CO2e)
B81: Category | C81: Open road | D81: Tunnel | E81: Bridge | F81: Culvert | G81: Sum
B82: Operation | C82: =SUMIFS(Calculations!N$206:N$287,Calculations!H$206:H$287,B82) -> 0 | D82: =SUMIFS(Calculations!N$384:N$423,Calculations!H$384:H$423,B82) -> 0 | E82: =SUMIFS(Calculations!N$288:N$383,Calculations!H$288:H$383,B82) -> 0 | G82: =SUM(C82:F82) -> 0
B83: Maintenance | C83: =SUMIFS(Calculations!N$206:N$287,Calculations!H$206:H$287,B83) -> 0 | D83: =SUMIFS(Calculations!N$384:N$423,Calculations!H$384:H$423,B83) -> 0 | E83: =SUMIFS(Calculations!N$288:N$383,Calculations!H$288:H$383,B83) -> 0 | G83: =SUM(C83:F83) -> 0
B84: Re-asphalting | C84: =SUMIFS(Calculations!N$206:N$287,Calculations!H$206:H$287,B84) -> 0 | D84: =SUMIFS(Calculations!N$384:N$423,Calculations!H$384:H$423,B84) -> 0 | E84: =SUMIFS(Calculations!N$288:N$383,Calculations!H$288:H$383,B84) -> 0 | G84: =SUM(C84:F84) -> 0
B85: Sum | C85: =SUM(C82:C84) -> 0 | D85: =SUM(D82:D84) -> 0 | E85: =SUM(E82:E84) -> 0 | G85: =SUM(G82:G84) -> 0
B100: Table 4: Direct emissions related to diesel and blasting (in tonnes CO2e)
B101: Construction phase | E101: Operation and maintenance phase
B102: Removal of vegetation | E102: Operation
B103: Removal of vegetation cover | D103: =(Calculations!M4)/'Emissions factors'!D29*'Emissions factors'!D28 -> 0 | E103: Roadside mowing | H103: =(Calculations!N213+Calculations!N254)/'Emissions factors'!D29*'Emissions factors'!D28 -> 0
B104: Sum removal of vegetation | D104: =D103 -> 0 | E104: Ditch clearing and soil transport | H104: =(Calculations!N216+Calculations!N219+Calculations!N257+Calculations!N260)/'Emissions factors'!D29*'Emissions factors'!D28 -> 0
B105: Transport of masses | E105: Sweeping | H105: =(Calculations!N222+Calculations!N263+Calculations!N295+Calculations!N327+Calculations!N359+Calculations!N391+Calculations!N411)/'Emissions factors'!D29*'Emissions factors'!D28 -> 0
B106: Soil masses used in project | D106: =(Calculations!M17)/'Emissions factors'!D29*'Emissions factors'!D28 -> 0 | E106: Salting and salt transport | H106: =(Calculations!N225+Calculations!N266+Calculations!N298+Calculations!N330+Calculations!N362)/'Emissions factors'!D29*'Emissions factors'!D28 -> 0
B107: Soil masses to landfill | D107: =(Calculations!M20)/'Emissions factors'!D29*'Emissions factors'!D28 -> 0 | E107: Ploughing | H107: =(Calculations!N232+Calculations!N273+Calculations!N305+Calculations!N337+Calculations!N369)/'Emissions factors'!D29*'Emissions factors'!D28 -> 0
B108: Rock masses used in project | D108: =(Calculations!M23)/'Emissions factors'!D29*'Emissions factors'!D28 -> 0 | E108: Sum operation | H108: =SUM(H103:H107) -> 0
B109: Rock masses to landfill | D109: =(Calculations!M29)/'Emissions factors'!D29*'Emissions factors'!D28 -> 0 | E109: Maintenance
B110: Rock masses used in project via crushing plant | D110: =(Calculations!M35)/'Emissions factors'!D29*'Emissions factors'!D28 -> 0 | E110: Replacement and transport of lamp posts
B111: Sum transport of masses | D111: =SUM(D106:D110) -> 0 | E111: Replacement and transport of guard rail | H111: =(Calculations!N236+Calculations!N277+Calculations!N309+Calculations!N341+Calculations!N373+Calculations!N395+Calculations!N415)/'Emissions factors'!D29*'Emissions factors'!D28 -> 0
B112: Construction work | E112: Sum maintenance | H112: =SUM(H110:H111) -> 0
B113: Construction work open road | D113: =(Calculations!M57+Calculations!M68+Calculations!M75+Calculations!M180+Calculations!M188+Calculations!M197)/'Emissions factors'!D29*'Emissions factors'!D28 -> 0 | E113: Re-asphalting
B114: Construction work bridge | D114: =(Calculations!M90+Calculations!M105+Calculations!M120)/'Emissions factors'!D29*'Emissions factors'!D28 -> 0 | E114: Replacement and transport of asfalt | H114: =(Calculations!N210+Calculations!N251+Calculations!N292+Calculations!N324+Calculations!N356+Calculations!N388+Calculations!N408)/'Emissions factors'!D29*'Emissions factors'!D28 -> 0
B115: Construction work tunnel | D115: =(Calculations!M139+Calculations!M158+Calculations!M165)/'Emissions factors'!D29*'Emissions factors'!D28 -> 0 | E115: Sum re-asphalting | H115: =H114 -> 0
B116: Construction work culvert | D116: =Calculations!M173/'Emissions factors'!D29*'Emissions factors'!D28 -> 0 | E116: Sum operation- and maintenance phase | H116: =H108+H112+H115 -> 0
B117: Construction work crushed stone | D117: =(Calculations!M26+Calculations!M32+Calculations!M38+Calculations!M46)/'Emissions factors'!D29*'Emissions factors'!D28 -> 0
B118: Sum construction work | D118: =SUM(D113:D117) -> 0
B119: Blasting
B120: Open-air blasting | D120: =Calculations!M8 -> 0
B121: Blasting tunnel | D121: =Calculations!M13 -> 0
B122: Construction work related to blasting | D122: =(Calculations!M9+Calculations!M14)/'Emissions factors'!D29*'Emissions factors'!D28 -> 0
B123: Sum sprengning | D123: =SUM(D120:D122) -> 0
B124: Sum blasting | D124: =D104+D111+D118+D123 -> 0 | E124: Direct emissions from construction, operation og maintenance | H124: =D124+H116 -> 0
B128: Table 5: Proportion of direct emissions of total emissions
B129: Share of construction phase | D129: =IFERROR(D123/M41,"Not relevant") -> Not relevant
B130: Share of operation and maintenance phase | D130: =IFERROR(H110/M44,"Not relevant") -> Not relevant
B131: Share direct emissions | D131: =IFERROR(H123/M45,"Not relevant") -> Not relevant
B132: Share indirect emissions | D132: =IFERROR(1-D131,"Not relevant") -> Not relevant
B136: Table 7: Emissions from land use change
B137: Type of land | C137: tonnes CO2e
B138: Forest - low site quality | C138: =(('Project description and input'!C23*'Project description and input'!C26)*'Emissions factors'!D35)/1000 -> 0
B139: Forest - medium site quality | C139: =(('Project description and input'!C23*'Project description and input'!C27)*'Emissions factors'!D36)/1000 -> 0
B140: Forest - high site quality | C140: =(('Project description and input'!C23*'Project description and input'!C28)*'Emissions factors'!D37)/1000 -> 0
B141: Marsh | C141: =(('Project description and input'!C23*'Project description and input'!C29)*'Emissions factors'!D38)/1000 -> 0
B142: Agricultural land | C142: =(('Project description and input'!C23*'Project description and input'!C30)*'Emissions factors'!D39)/1000 -> 0
B143: Built land | C143: -
B144: Sum | C144: =SUM(C138:C143) -> 0
B145: Built land is set to 0
F162: Tabell 6: Direct emissions in non-ETS-sectors
F163: Construction phase | I163: =D104+D111+D118 -> 0
F164: Operation and maintenance phase | I164: =H108+H112+H115 -> 0
F165: Total construction and operation and maintenance phase | I165: =SUM(I163:I164) -> 0
F166: In this context, this is the sum of direct emissions minus direct emissions from blasting.

Sheet Sensivity analysis
B2: Sensitivity analysis
E3: Change in factor
E4: -0.5 | F4: -0.4 | G4: -0.3 | H4: -0.2 | I4: -0.1 | J4: 0 | K4: 0.1 | L4: 0.2 | M4: 0.3 | N4: 0.4 | O4: 0.5
B5: Original emissions
B6: Production factors | D6: Original emissions [tonn CO2e] | E6: New sum construction phase
B7: Emissions construction phase | P7: Diff -10 %
B8: Concrete | D8: =Results!C45 -> 0 | E8: =$D$20+$D8*E$4 -> 0 | F8: 0 | G8: 0 | H8: 0 | I8: 0 | J8: 0 | K8: 0 | L8: 0 | M8: 0 | N8: 0 | O8: 0 | P8: =J8-I8 -> 0
B9: Steel | D9: =Results!D45 -> 0 | E9: 0 | F9: 0 | G9: 0 | H9: 0 | I9: 0 | J9: 0 | K9: 0 | L9: 0 | M9: 0 | N9: 0 | O9: 0 | P9: =J9-I9 -> 0
B10: Reinforcement steel | D10: =Results!E45 -> 0 | E10: 0 | F10: 0 | G10: 0 | H10: 0 | I10: 0 | J10: 0 | K10: 0 | L10: 0 | M10: 0 | N10: 0 | O10: 0 | P10: 0
B11: Asphalt | D11: =Results!F45 -> 0 | E11: 0 | F11: 0 | G11: 0 | H11: 0 | I11: 0 | J11: 0 | K11: 0 | L11: 0 | M11: 0 | N11: 0 | O11: 0 | P11: 0
B12: Wood | D12: =Results!G45 -> 0 | E12: 0 | F12: 0 | G12: 0 | H12: 0 | I12: 0 | J12: 0 | K12: 0 | L12: 0 | M12: 0 | N12: 0 | O12: 0 | P12: 0
B13: Frost protection tunnel | D13: =Results!H45 -> 0 | E13: 0 | F13: 0 | G13: 0 | H13: 0 | I13: 0 | J13: 0 | K13: 0 | L13: 0 | M13: 0 | N13: 0 | O13: 0 | P13: 0
B14: Blasting | D14: =Results!I45 -> 0 | E14: 0 | F14: 0 | G14: 0 | H14: 0 | I14: 0 | J14: 0 | K14: 0 | L14: 0 | M14: 0 | N14: 0 | O14: 0 | P14: 0
B15: Crushed stone and stone | D15: =Results!J45 -> 0 | E15: 0 | F15: 0 | G15: 0 | H15: 0 | I15: 0 | J15: 0 | K15: 0 | L15: 0 | M15: 0 | N15: 0 | O15: 0 | P15: 0
B16: Lime cement | D16: =Results!K45 -> 0 | E16: 0 | F16: 0 | G16: 0 | H16: 0 | I16: 0 | J16: 0 | K16: 0 | L16: 0 | M16: 0 | N16: 0 | O16: 0 | P16: 0
B17: Diesel | D17: =Results!L45 -> 0 | E17: 0 | F17: 0 | G17: 0 | H17: 0 | I17: 0 | J17: 0 | K17: 0 | L17: 0 | M17: 0 | N17: 0 | O17: 0 | P17: 0
B18: Salt | D18: =Results!M45 -> 0 | E18: 0 | F18: 0 | G18: 0 | H18: 0 | I18: 0 | J18: 0 | K18: 0 | L18: 0 | M18: 0 | N18: 0 | O18: 0 | P18: 0
B19: Electricity | D19: =Results!N45 -> 0 | E19: 0 | F19: 0 | G19: 0 | H19: 0 | I19: 0 | J19: 0 | K19: 0 | L19: 0 | M19: 0 | N19: 0 | O19: 0 | P19: 0
B20: Sum construction phase | D20: =SUM(D8:D19) -> 0
B21: Emissions operation phase | E21: New total operating phase
B22: Concrete | D22: =Results!C48 -> 0 | E22: =$D$31+$D22*E$4 -> 0 | F22: 0 | G22: 0 | H22: 0 | I22: 0 | J22: 0 | K22: 0 | L22: 0 | M22: 0 | N22: 0 | O22: 0 | P22: =J22-I22 -> 0
B23: Steel | D23: =Results!D48 -> 0 | E23: 0 | F23: 0 | G23: 0 | H23: 0 | I23: 0 | J23: 0 | K23: 0 | L23: 0 | M23: 0 | N23: 0 | O23: 0 | P23: =J23-I23 -> 0
B24: Reinforcement steel | D24: =Results!E48 -> 0 | E24: 0 | F24: 0 | G24: 0 | H24: 0 | I24: 0 | J24: 0 | K24: 0 | L24: 0 | M24: 0 | N24: 0 | O24: 0 | P24: 0
B25: Asphalt | D25: =Results!F48 -> 0 | E25: 0 | F25: 0 | G25: 0 | H25: 0 | I25: 0 | J25: 0 | K25: 0 | L25: 0 | M25: 0 | N25: 0 | O25: 0 | P25: 0
B26: Frost protection tunnel | D26: =Results!H48 -> 0 | E26: 0 | F26: 0 | G26: 0 | H26: 0 | I26: 0 | J26: 0 | K26: 0 | L26: 0 | M26: 0 | N26: 0 | O26: 0 | P26: 0
B27: Blasting | D27: =Results!I48 -> 0 | E27: 0 | F27: 0 | G27: 0 | H27: 0 | I27: 0 | J27: 0 | K27: 0 | L27: 0 | M27: 0 | N27: 0 | O27: 0 | P27: 0
B28: Diesel | D28: =Results!L48 -> 0 | E28: 0 | F28: 0 | G28: 0 | H28: 0 | I28: 0 | J28: 0 | K28: 0 | L28: 0 | M28: 0 | N28: 0 | O28: 0 | P28: 0
B29: Salt | D29: =Results!M48 -> 0 | E29: 0 | F29: 0 | G29: 0 | H29: 0 | I29: 0 | J29: 0 | K29: 0 | L29: 0 | M29: 0 | N29: 0 | O29: 0 | P29: 0
B30: Electricity | D30: =Results!N48 -> 0 | E30: 0 | F30: 0 | G30: 0 | H30: 0 | I30: 0 | J30: 0 | K30: 0 | L30: 0 | M30: 0 | N30: 0 | O30: 0 | P30: 0
B31: Sum O&M-phase | D31: =SUM(D22:D30) -> 0

Sheet Calculations
B1: Defined unit | C1: Summed from input | D1: Physical factor input | E1: Summed output | F1: Physical unit output | G1: Life cycle | H1: Element | I1: Production factor type | J1: Tag emission factor | K1: Emission factor | L1: Unit | M1: Tonnes CO2e
A2: Byggefase
B4: Removal of vegetation (m2) | C4: =SUMIF('Project description and input'!$M:$M,B4,'Project description and input'!$L:$L) -> 0 | D4: Construction work diesel | E4: =C4*'Vegetation and land use change'!F11 -> 0 | F4: litre diesel | G4: Year 0 | H4: Open road | I4: Diesel | J4: ='Emissions factors'!B29 -> Fossil diesel (WTW) | K4: =SUMIF('Emissions factors'!B:B,Calculations!J4,'Emissions factors'!D:D) -> 3.24 | L4: =VLOOKUP(J4,'Emissions factors'!B:C,2,FALSE) -> kg CO2e/liter | M4: =(E4*K4)/1000 -> 0
D5: Construction work biodiesel | E5: =C4*'Vegetation and land use change'!G11 -> 0 | F5: litre biodiesel | G5: Year 0 | H5: Open road | I5: Biodiesel | J5: ='Emissions factors'!B27 -> Biodiesel (WTT) | K5: =SUMIF('Emissions factors'!B:B,Calculations!J5,'Emissions factors'!D:D) -> 1.92 | L5: =VLOOKUP(J5,'Emissions factors'!B:C,2,FALSE) -> kg CO2e/liter | M5: =(E5*K5)/1000 -> 0
D6: Construction work electric/hydrogen | E6: =C4*'Vegetation and land use change'!H11 -> 0 | F6: kWh | G6: Year 0 | H6: Open road | I6: Electricity | J6: ='Emissions factors'!B32 -> Electricity construction phase, Norwegian mix | K6: =SUMIF('Emissions factors'!B:B,Calculations!J6,'Emissions factors'!D:D) -> 0.023777 | L6: =VLOOKUP(J6,'Emissions factors'!B:C,2,FALSE) -> kg CO2e/kWh | M6: =(E6*K6)/1000 -> 0
B7: Open-air blasting (fm3) | C7: =SUMIF('Project description and input'!$M:$M,B7,'Project description and input'!$L:$L) -> 0 | D7: Explosives (indirect emissions) | E7: =C7*'Blasting and crushed rock'!D6 -> 0 | F7: kg tovex | G7: Year 0 | H7: Open road | I7: Blasting | J7: ='Emissions factors'!B30 -> Explosives (CTG) | K7: =SUMIF('Emissions factors'!B:B,Calculations!J7,'Emissions factors'!D:D) -> 1.26 | L7: =VLOOKUP(J7,'Emissions factors'!B:C,2,FALSE) -> kg CO2e/kg | M7: 0
D8: Explosives (direct emissions) | E8: =C7*'Blasting and crushed rock'!D6 -> 0 | F8: kg tovex | G8: Year 0 | H8: Open road | I8: Blasting | J8: ='Emissions factors'!B31 -> Explosives detonation | K8: =SUMIF('Emissions factors'!B:B,Calculations!J8,'Emissions factors'!D:D) -> 0.1114 | L8: =VLOOKUP(J8,'Emissions factors'!B:C,2,FALSE) -> kg CO2e/kg | M8: 0
D9: Construction work diesel | E9: =C7*'Blasting and crushed rock'!E16 -> 0 | F9: litre diesel | G9: Year 0 | H9: Open road | I9: Diesel | J9: ='Emissions factors'!B29 -> Fossil diesel (WTW) | K9: =SUMIF('Emissions factors'!B:B,Calculations!J9,'Emissions factors'!D:D) -> 3.24 | L9: =VLOOKUP(J9,'Emissions factors'!B:C,2,FALSE) -> kg CO2e/liter | M9: 0
D10: Construction work biodiesel | E10: =C7*'Blasting and crushed rock'!F16 -> 0 | F10: litre biodiesel | G10: Year 0 | H10: Open road | I10: Biodiesel | J10: ='Emissions factors'!B27 -> Biodiesel (WTT) | K10: =SUMIF('Emissions factors'!B:B,Calculations!J10,'Emissions factors'!D:D) -> 1.92 | L10: =VLOOKUP(J10,'Emissions factors'!B:C,2,FALSE) -> kg CO2e/liter | M10: 0
D11: Construction work electric/hydrogen | E11: =C7*'Blasting and crushed rock'!G16 -> 0 | F11: kWh | G11: Year 0 | H11: Open road | I11: Electricity | J11: ='Emissions factors'!B32 -> Electricity construction phase, Norwegian mix | K11: =SUMIF('Emissions factors'!B:B,Calculations!J11,'Emissions factors'!D:D) -> 0.023777 | L11: =VLOOKUP(J11,'Emissions factors'!B:C,2,FALSE) -> kg CO2e/kWh | M11: 0
B12: Tunnel blasting (fm3) | C12: =SUMIF('Project description and input'!$M:$M,B12,'Project description and input'!$L:$L) -> 0 | D12: Explosives (indirect emissions) | E12: =C12*'Blasting and crushed rock'!D5 -> 0 | F12: kg tovex | G12: Year 0 | H12: Tunnel | I12: Blasting | J12: ='Emissions factors'!B30 -> Explosives (CTG) | K12: =SUMIF('Emissions factors'!B:B,Calculations!J12,'Emissions factors'!D:D) -> 1.26 | L12: =VLOOKUP(J12,'Emissions factors'!B:C,2,FALSE) -> kg CO2e/kg | M12: 0
D13: Explosives (direct emissions) | E13: =C12*'Blasting and crushed rock'!D5 -> 0 | F13: kg tovex | G13: Year 0 | H13: Tunnel | I13: Blasting | J13: ='Emissions factors'!B31 -> Explosives detonation | K13: =SUMIF('Emissions factors'!B:B,Calculations!J13,'Emissions factors'!D:D) -> 0.1114 | L13: =VLOOKUP(J13,'Emissions factors'!B:C,2,FALSE) -> kg CO2e/kg | M13: 0
D14: Construction work diesel | E14: =C12*'Blasting and crushed rock'!E16 -> 0 | F14: litre diesel | G14: Year 0 | H14: Tunnel | I14: Diesel | J14: ='Emissions factors'!B29 -> Fossil diesel (WTW) | K14: =SUMIF('Emissions factors'!B:B,Calculations!J14,'Emissions factors'!D:D) -> 3.24 | L14: =VLOOKUP(J14,'Emissions factors'!B:C,2,FALSE) -> kg CO2e/liter | M14: 0
D15: Construction work biodiesel | E15: =C12*'Blasting and crushed rock'!F16 -> 0 | F15: litre biodiesel | G15: Year 0 | H15: Tunnel | I15: Biodiesel | J15: ='Emissions factors'!B27 -> Biodiesel (WTT) | K15: =SUMIF('Emissions factors'!B:B,Calculations!J15,'Emissions factors'!D:D) -> 1.92 | L15: =VLOOKUP(J15,'Emissions factors'!B:C,2,FALSE) -> kg CO2e/liter | M15: 0
D16: Construction work electric/hydrogen | E16: =C12*'Blasting and crushed rock'!G16 -> 0 | F16: kWh | G16: Year 0 | H16: Tunnel | I16: Electricity | J16: ='Emissions factors'!B32 -> Electricity construction phase, Norwegian mix | K16: =SUMIF('Emissions factors'!B:B,Calculations!J16,'Emissions factors'!D:D) -> 0.023777 | L16: =VLOOKUP(J16,'Emissions factors'!B:C,2,FALSE) -> kg CO2e/kWh | M16: 0
B17: Soil masses used in project (m3) | C17: =SUMIF('Project description and input'!$M:$M,B17,'Project description and input'!$L:$L) -> 0 | D17: Transport diesel | E17: =C17*'Vegetation and land use change'!F5/'Calculation factors'!D119 -> 0 | F17: litre diesel | G17: Year 0 | H17: Open road | I17: Diesel | J17: ='Emissions factors'!B29 -> Fossil diesel (WTW) | K17: =SUMIF('Emissions factors'!B:B,Calculations!J17,'Emissions factors'!D:D) -> 3.24 | L17: =VLOOKUP(J17,'Emissions factors'!B:C,2,FALSE) -> kg CO2e/liter | M17: 0
D18: Transport biodiesel | E18: =C17*'Vegetation and land use change'!G5/'Calculation factors'!D119 -> 0 | F18: litre biodiesel | G18: Year 0 | H18: Open road | I18: Biodiesel | J18: ='Emissions factors'!B27 -> Biodiesel (WTT) | K18: =SUMIF('Emissions factors'!B:B,Calculations!J18,'Emissions factors'!D:D) -> 1.92 | L18: =VLOOKUP(J18,'Emissions factors'!B:C,2,FALSE) -> kg CO2e/liter | M18: 0
D19: Transport electric/hydrogen | E19: =C17*'Vegetation and land use change'!H5/'Calculation factors'!D119 -> 0 | F19: kWh | G19: Year 0 | H19: Open road | I19: Electricity | J19: ='Emissions factors'!B32 -> Electricity construction phase, Norwegian mix | K19: =SUMIF('Emissions factors'!B:B,Calculations!J19,'Emissions factors'!D:D) -> 0.023777 | L19: =VLOOKUP(J19,'Emissions factors'!B:C,2,FALSE) -> kg CO2e/kWh | M19: 0
B20: Soil masses for landfill (m3) | C20: =SUMIF('Project description and input'!$M:$M,B20,'Project description and input'!$L:$L) -> 0 | D20: Transport diesel | E20: =C20*'Vegetation and land use change'!F6/'Calculation factors'!D119 -> 0 | F20: liter diesel | G20: Year 0 | H20: Open road | I20: Diesel | J20: ='Emissions factors'!B29 -> Fossil diesel (WTW) | K20: =SUMIF('Emissions factors'!B:B,Calculations!J20,'Emissions factors'!D:D) -> 3.24 | L20: =VLOOKUP(J20,'Emissions factors'!B:C,2,FALSE) -> kg CO2e/liter | M20: 0
D21: Transport biodiesel | E21: =C20*'Vegetation and land use change'!G6/'Calculation factors'!D119 -> 0 | F21: liter biodiesel | G21: Year 0 | H21: Open road | I21: Biodiesel | J21: ='Emissions factors'!B27 -> Biodiesel (WTT) | K21: =SUMIF('Emissions factors'!B:B,Calculations!J21,'Emissions factors'!D:D) -> 1.92 | L21: =VLOOKUP(J21,'Emissions factors'!B:C,2,FALSE) -> kg CO2e/liter | M21: 0
D22: Transport electric/hydrogen | E22: =C20*'Vegetation and land use change'!H6/'Calculation factors'!D119 -> 0 | F22: kWh | G22: Year 0 | H22: Open road | I22: Electricity | J22: ='Emissions factors'!B32 -> Electricity construction phase, Norwegian mix | K22: =SUMIF('Emissions factors'!B:B,Calculations!J22,'Emissions factors'!D:D) -> 0.023777 | L22: =VLOOKUP(J22,'Emissions factors'!B:C,2,FALSE) -> kg CO2e/kWh | M22: 0
B23: Crushed rock (internal) to the project (fm3) | C23: =SUMIF('Project description and input'!$M:$M,B23,'Project description and input'!$L:$L) -> 0 | D23: Transport diesel | E23: =C23*'Blasting and crushed rock'!F7 -> 0 | F23: litre diesel | G23: Year 0 | H23: Open road | I23: Diesel | J23: ='Emissions factors'!B29 -> Fossil diesel (WTW) | K23: =SUMIF('Emissions factors'!B:B,Calculations!J23,'Emissions factors'!D:D) -> 3.24 | L23: =VLOOKUP(J23,'Emissions factors'!B:C,2,FALSE) -> kg CO2e/liter | M23: 0
D24: Transport biodiesel | E24: =C23*'Blasting and crushed rock'!G7 -> 0 | F24: litre biodiesel | G24: Year 0 | H24: Open road | I24: Biodiesel | J24: ='Emissions factors'!B27 -> Biodiesel (WTT) | K24: =SUMIF('Emissions factors'!B:B,Calculations!J24,'Emissions factors'!D:D) -> 1.92 | L24: =VLOOKUP(J24,'Emissions factors'!B:C,2,FALSE) -> kg CO2e/liter | M24: 0
D25: Transport electric/hydrogen | E25: =C23*'Blasting and crushed rock'!H7 -> 0 | F25: kWh | G25: Year 0 | H25: Open road | I25: Electricity | J25: ='Emissions factors'!B32 -> Electricity construction phase, Norwegian mix | K25: =SUMIF('Emissions factors'!B:B,Calculations!J25,'Emissions factors'!D:D) -> 0.023777 | L25: =VLOOKUP(J25,'Emissions factors'!B:C,2,FALSE) -> kg CO2e/kWh | M25: 0
D26: Construction work diesel | E26: =C23*('Blasting and crushed rock'!E17+'Blasting and crushed rock'!E18)+C23*'Blasting and crushed rock'!E19*'Calculation factors'!D51 -> 0 | F26: litre diesel | G26: Year 0 | H26: Crushed rock | I26: Diesel | J26: ='Emissions factors'!B29 -> Fossil diesel (WTW) | K26: =SUMIF('Emissions factors'!B:B,Calculations!J26,'Emissions factors'!D:D) -> 3.24 | L26: =VLOOKUP(J26,'Emissions factors'!B:C,2,FALSE) -> kg CO2e/liter | M26: =(E26*K26)/1000 -> 0
D27: Construction work biodiesel | E27: =C23*('Blasting and crushed rock'!F17+'Blasting and crushed rock'!F18)+C23*'Blasting and crushed rock'!F19*'Calculation factors'!D51 -> 0 | F27: litre biodiesel | G27: Year 0 | H27: Crushed rock | I27: Biodiesel | J27: ='Emissions factors'!B27 -> Biodiesel (WTT) | K27: =SUMIF('Emissions factors'!B:B,Calculations!J27,'Emissions factors'!D:D) -> 1.92 | L27: =VLOOKUP(J27,'Emissions factors'!B:C,2,FALSE) -> kg CO2e/liter | M27: 0
D28: Construction work electric/hydrogen | E28: =C23*('Blasting and crushed rock'!G17+'Blasting and crushed rock'!G18)+C23*'Blasting and crushed rock'!G19*'Calculation factors'!D51 -> 0 | F28: kWh | G28: Year 0 | H28: Crushed rock | I28: Electricity | J28: ='Emissions factors'!B32 -> Electricity construction phase, Norwegian mix | K28: =SUMIF('Emissions factors'!B:B,Calculations!J28,'Emissions factors'!D:D) -> 0.023777 | L28: =VLOOKUP(J28,'Emissions factors'!B:C,2,FALSE) -> kg CO2e/kWh | M28: 0
B29: Crushed rock (internal) to landfill (fm3) | C29: =SUMIF('Project description and input'!$M:$M,B29,'Project description and input'!$L:$L) -> 0 | D29: Transport diesel | E29: =C29*'Blasting and crushed rock'!F8 -> 0 | F29: litre diesel | G29: Year 0 | H29: Open road | I29: Diesel | J29: ='Emissions factors'!B29 -> Fossil diesel (WTW) | K29: =SUMIF('Emissions factors'!B:B,Calculations!J29,'Emissions factors'!D:D) -> 3.24 | L29: =VLOOKUP(J29,'Emissions factors'!B:C,2,FALSE) -> kg CO2e/liter | M29: 0
D30: Transport biodiesel | E30: =C29*'Blasting and crushed rock'!G8 -> 0 | F30: litre biodiesel | G30: Year 0 | H30: Open road | I30: Biodiesel | J30: ='Emissions factors'!B27 -> Biodiesel (WTT) | K30: =SUMIF('Emissions factors'!B:B,Calculations!J30,'Emissions factors'!D:D) -> 1.92 | L30: =VLOOKUP(J30,'Emissions factors'!B:C,2,FALSE) -> kg CO2e/liter | M30: 0
D31: Transport electric/hydrogen | E31: =C29*'Blasting and crushed rock'!H8 -> 0 | F31: kWh | G31: Year 0 | H31: Open road | I31: Electricity | J31: ='Emissions factors'!B32 -> Electricity construction phase, Norwegian mix | K31: =SUMIF('Emissions factors'!B:B,Calculations!J31,'Emissions factors'!D:D) -> 0.023777 | L31: =VLOOKUP(J31,'Emissions factors'!B:C,2,FALSE) -> kg CO2e/kWh | M31: 0
D32: Construction work diesel | E32: =C30*'Blasting and crushed rock'!E17 -> 0 | F32: litre diesel | G32: Year 0 | H32: Crushed rock | I32: Diesel | J32: ='Emissions factors'!B29 -> Fossil diesel (WTW) | K32: =SUMIF('Emissions factors'!B:B,Calculations!J32,'Emissions factors'!D:D) -> 3.24 | L32: =VLOOKUP(J32,'Emissions factors'!B:C,2,FALSE) -> kg CO2e/liter | M32: =(E32*K32)/1000 -> 0
D33: Construction work biodiesel | E33: =C30*'Blasting and crushed rock'!F17 -> 0 | F33: litre biodiesel | G33: Year 0 | H33: Crushed rock | I33: Biodiesel | J33: ='Emissions factors'!B27 -> Biodiesel (WTT) | K33: =SUMIF('Emissions factors'!B:B,Calculations!J33,'Emissions factors'!D:D) -> 1.92 | L33: =VLOOKUP(J33,'Emissions factors'!B:C,2,FALSE) -> kg CO2e/liter | M33: 0
D34: Construction work electric/hydrogen | E34: =C30*'Blasting and crushed rock'!G17 -> 0 | F34: kWh | G34: Year 0 | H34: Crushed rock | I34: Electricity | J34: ='Emissions factors'!B32 -> Electricity construction phase, Norwegian mix | K34: =SUMIF('Emissions factors'!B:B,Calculations!J34,'Emissions factors'!D:D) -> 0.023777 | L34: =VLOOKUP(J34,'Emissions factors'!B:C,2,FALSE) -> kg CO2e/kWh | M34: 0
B35: Crushed rock (internal) to the project via rock crushing plant (fm3) | C35: =SUMIF('Project description and input'!$M:$M,B35,'Project description and input'!$L:$L) -> 0 | D35: Transport diesel | E35: =C35*'Blasting and crushed rock'!F9 -> 0 | F35: litre diesel | G35: Year 0 | H35: Open road | I35: Diesel | J35: ='Emissions factors'!B29 -> Fossil diesel (WTW) | K35: =SUMIF('Emissions factors'!B:B,Calculations!J35,'Emissions factors'!D:D) -> 3.24 | L35: =VLOOKUP(J35,'Emissions factors'!B:C,2,FALSE) -> kg CO2e/liter | M35: 0
D36: Transport biodiesel | E36: =C35*'Blasting and crushed rock'!G9 -> 0 | F36: litre biodiesel | G36: Year 0 | H36: Open road | I36: Biodiesel | J36: ='Emissions factors'!B27 -> Biodiesel (WTT) | K36: =SUMIF('Emissions factors'!B:B,Calculations!J36,'Emissions factors'!D:D) -> 1.92 | L36: =VLOOKUP(J36,'Emissions factors'!B:C,2,FALSE) -> kg CO2e/liter | M36: 0
D37: Transport electric/hydrogen | E37: =C35*'Blasting and crushed rock'!H9 -> 0 | F37: kWh | G37: Year 0 | H37: Open road | I37: Electricity | J37: ='Emissions factors'!B32 -> Electricity construction phase, Norwegian mix | K37: =SUMIF('Emissions factors'!B:B,Calculations!J37,'Emissions factors'!D:D) -> 0.023777 | L37: =VLOOKUP(J37,'Emissions factors'!B:C,2,FALSE) -> kg CO2e/kWh | M37: 0
D38: Construction work diesel | E38: =C35*('Blasting and crushed rock'!E17+'Blasting and crushed rock'!E18)+C35*'Blasting and crushed rock'!E19*'Calculation factors'!D51 -> 0 | F38: litre diesel | G38: Year 0 | H38: Crushed rock | I38: Diesel | J38: ='Emissions factors'!B29 -> Fossil diesel (WTW) | K38: =SUMIF('Emissions factors'!B:B,Calculations!J38,'Emissions factors'!D:D) -> 3.24 | L38: =VLOOKUP(J38,'Emissions factors'!B:C,2,FALSE) -> kg CO2e/liter | M38: 0
D39: Construction work biodiesel | E39: =C35*('Blasting and crushed rock'!F17+'Blasting and crushed rock'!F18)+C35*'Blasting and crushed rock'!F19*'Calculation factors'!D51 -> 0 | F39: litre biodiesel | G39: Year 0 | H39: Crushed rock | I39: Biodiesel | J39: ='Emissions factors'!B27 -> Biodiesel (WTT) | K39: =SUMIF('Emissions factors'!B:B,Calculations!J39,'Emissions factors'!D:D) -> 1.92 | L39: =VLOOKUP(J39,'Emissions factors'!B:C,2,FALSE) -> kg CO2e/liter | M39: 0
D40: Construction work electric/hydrogen | E40: =C35*('Blasting and crushed rock'!G17+'Blasting and crushed rock'!G18)+C35*'Blasting and crushed rock'!G19*'Calculation factors'!D51 -> 0 | F40: kWh | G40: Year 0 | H40: Crushed rock | I40: Electricity | J40: ='Emissions factors'!B32 -> Electricity construction phase, Norwegian mix | K40: =SUMIF('Emissions factors'!B:B,Calculations!J40,'Emissions factors'!D:D) -> 0.023777 | L40: =VLOOKUP(J40,'Emissions factors'!B:C,2,FALSE) -> kg CO2e/kWh | M40: 0
B41: Crushed rock from outside the project (m3) | C41: =SUMIF('Project description and input'!$M:$M,B41,'Project description and input'!$L:$L) -> 0 | D41: Coarsely crushed rock | E41: =C41*'Blasting and crushed rock'!E11*(1-'Calculation factors'!D51) -> 0 | F41: kg rock, coarsely crushed | G41: År 0 | H41: Crushed rock | I41: Crushed rock and rock | J41: ='Emissions factors'!B9 -> Rock, coarsely crushed | K41: =SUMIF('Emissions factors'!B:B,Calculations!J41,'Emissions factors'!D:D) -> 0.002673333333 | L41: =VLOOKUP(J41,'Emissions factors'!B:C,2,FALSE) -> kg CO2e/kg | M41: =(E41*K41)/1000 -> 0
D42: Finely crushed rock | E42: =C41*'Blasting and crushed rock'!E11*('Calculation factors'!D51) -> 0 | F42: kg rock, finely crushed | G42: År 0 | H42: Crushed rock | I42: Crushed rock and rock | J42: ='Emissions factors'!B10 -> Rock, finely crushed | K42: =SUMIF('Emissions factors'!B:B,Calculations!J42,'Emissions factors'!D:D) -> 0.00315 | L42: =VLOOKUP(J42,'Emissions factors'!B:C,2,FALSE) -> kg CO2e/kg | M42: 0
D43: Transport diesel | E43: =C41*'Blasting and crushed rock'!F11 -> 0 | F43: litre diesel | G43: Year 0 | H43: Crushed rock | I43: Diesel | J43: ='Emissions factors'!B29 -> Fossil diesel (WTW) | K43: =SUMIF('Emissions factors'!B:B,Calculations!J43,'Emissions factors'!D:D) -> 3.24 | L43: =VLOOKUP(J43,'Emissions factors'!B:C,2,FALSE) -> kg CO2e/liter | M43: 0
D44: Transport biodiesel | E44: =C41*'Blasting and crushed rock'!G11 -> 0 | F44: litre biodiesel | G44: Year 0 | H44: Crushed rock | I44: Biodiesel | J44: ='Emissions factors'!B27 -> Biodiesel (WTT) | K44: =SUMIF('Emissions factors'!B:B,Calculations!J44,'Emissions factors'!D:D) -> 1.92 | L44: =VLOOKUP(J44,'Emissions factors'!B:C,2,FALSE) -> kg CO2e/liter | M44: 0
D45: Transport electric/hydrogen | E45: =C41*'Blasting and crushed rock'!H11 -> 0 | F45: kWh | G45: Year 0 | H45: Crushed rock | I45: Electricity | J45: ='Emissions factors'!B32 -> Electricity construction phase, Norwegian mix | K45: =SUMIF('Emissions factors'!B:B,Calculations!J45,'Emissions factors'!D:D) -> 0.023777 | L45: =VLOOKUP(J45,'Emissions factors'!B:C,2,FALSE) -> kg CO2e/kWh | M45: 0
D46: Construction work diesel | E46: =C41*'Blasting and crushed rock'!E21 -> 0 | F46: litre diesel | G46: Year 0 | H46: Crushed rock | I46: Diesel | J46: ='Emissions factors'!B29 -> Fossil diesel (WTW) | K46: =SUMIF('Emissions factors'!B:B,Calculations!J46,'Emissions factors'!D:D) -> 3.24 | L46: =VLOOKUP(J46,'Emissions factors'!B:C,2,FALSE) -> kg CO2e/liter | M46: =(E46*K46)/1000 -> 0
D47: Construction work biodiesel | E47: =C41*'Blasting and crushed rock'!F21 -> 0 | F47: litre biodiesel | G47: Year 0 | H47: Crushed rock | I47: Biodiesel | J47: ='Emissions factors'!B27 -> Biodiesel (WTT) | K47: =SUMIF('Emissions factors'!B:B,Calculations!J47,'Emissions factors'!D:D) -> 1.92 | L47: =VLOOKUP(J47,'Emissions factors'!B:C,2,FALSE) -> kg CO2e/liter | M47: 0
D48: Construction work electric/hydrogen | E48: =C41*'Blasting and crushed rock'!G21 -> 0 | F48: kWh | G48: Year 0 | H48: Crushed rock | I48: Electricity | J48: ='Emissions factors'!B32 -> Electricity construction phase, Norwegian mix | K48: =SUMIF('Emissions factors'!B:B,Calculations!J48,'Emissions factors'!D:D) -> 0.023777 | L48: =VLOOKUP(J48,'Emissions factors'!B:C,2,FALSE) -> kg CO2e/kWh | M48: 0
B49: Main road (m) | C49: =SUMIF('Project description and input'!$M:$M,B49,'Project description and input'!$L:$L) -> 0 | D49: Wearing course stone mastic asphalt (Ska) | E49: =C49*'Main road'!D5*'Project description and input'!C9 -> 0 | F49: kg stone mastic asphalt | G49: Year 0 | H49: Open road | I49: Asphalt | J49: ='Emissions factors'!B7 -> Stone mastic asphalt (Ska) | K49: =SUMIF('Emissions factors'!B:B,Calculations!J49,'Emissions factors'!D:D) -> 0.061 | L49: =VLOOKUP(J49,'Emissions factors'!B:C,2,FALSE) -> kg CO2e/kg | M49: =(E49*K49)/1000 -> 0
D50: Binder course stone mastic asphalt (Ska) | E50: =C49*'Main road'!D6*'Project description and input'!C9 -> 0 | F50: kg stone mastic asphalt | G50: Year 0 | H50: Open road | I50: Asphalt | J50: ='Emissions factors'!B7 -> Stone mastic asphalt (Ska) | K50: =SUMIF('Emissions factors'!B:B,Calculations!J50,'Emissions factors'!D:D) -> 0.061 | L50: =VLOOKUP(J50,'Emissions factors'!B:C,2,FALSE) -> kg CO2e/kg | M50: 0
D51: Upper base course asphalt concrete, base (Ag) | E51: =C49*'Main road'!D7*'Project description and input'!C9 -> 0 | F51: kg asphalt concrete, base | G51: Year 0 | H51: Open road | I51: Asphalt | J51: ='Emissions factors'!B8 -> Asphalt concrete, base (Ag) | K51: =SUMIF('Emissions factors'!B:B,Calculations!J51,'Emissions factors'!D:D) -> 0.0341 | L51: =VLOOKUP(J51,'Emissions factors'!B:C,2,FALSE) -> kg CO2e/kg | M51: 0
D52: Lamp posts | E52: =C49*'Addition road'!D5*'Calculation factors'!D111 -> 0 | F52: kg steel | G52: Year 0 | H52: Open road | I52: Steel | J52: ='Emissions factors'!B16 -> Steel | K52: =SUMIF('Emissions factors'!B:B,Calculations!J52,'Emissions factors'!D:D) -> 2.1038 | L52: =VLOOKUP(J52,'Emissions factors'!B:C,2,FALSE) -> kg CO2e/kg | M52: 0
D53: Guard rail/safety fence | E53: =C49*'Addition road'!D7*'Calculation factors'!D113 -> 0 | F53: kg steel | G53: Year 0 | H53: Open road | I53: Steel | J53: ='Emissions factors'!B16 -> Steel | K53: =SUMIF('Emissions factors'!B:B,Calculations!J53,'Emissions factors'!D:D) -> 2.1038 | L53: =VLOOKUP(J53,'Emissions factors'!B:C,2,FALSE) -> kg CO2e/kg | M53: 0
D54: Transport diesel | E54: =C49*((SUM('Main road'!E5:E7)*'Project description and input'!C9)+('Addition road'!E5*'Calculation factors'!D111)+('Addition road'!E7*'Calculation factors'!D113)) -> 0 | F54: litre diesel | G54: Year 0 | H54: Open road | I54: Diesel | J54: ='Emissions factors'!B29 -> Fossil diesel (WTW) | K54: =SUMIF('Emissions factors'!B:B,Calculations!J54,'Emissions factors'!D:D) -> 3.24 | L54: =VLOOKUP(J54,'Emissions factors'!B:C,2,FALSE) -> kg CO2e/liter | M54: 0
D55: Transport biodiesel | E55: =C49*((SUM('Main road'!F5:F7)*'Project description and input'!C9)+('Addition road'!F5*'Calculation factors'!D111)+('Addition road'!F7*'Calculation factors'!D113)) -> 0 | F55: litre biodiesel | G55: Year 0 | H55: Open road | I55: Biodiesel | J55: ='Emissions factors'!B27 -> Biodiesel (WTT) | K55: =SUMIF('Emissions factors'!B:B,Calculations!J55,'Emissions factors'!D:D) -> 1.92 | L55: =VLOOKUP(J55,'Emissions factors'!B:C,2,FALSE) -> kg CO2e/liter | M55: 0
D56: Transport electric/hydrogen | E56: =C49*((SUM('Main road'!G5:G7)*'Project description and input'!C9)+('Addition road'!G5*'Calculation factors'!D111)+('Addition road'!G7*'Calculation factors'!D113)) -> 0 | F56: kWh | G56: Year 0 | H56: Open road | I56: Electricity | J56: ='Emissions factors'!B32 -> Electricity construction phase, Norwegian mix | K56: =SUMIF('Emissions factors'!B:B,Calculations!J56,'Emissions factors'!D:D) -> 0.023777 | L56: =VLOOKUP(J56,'Emissions factors'!B:C,2,FALSE) -> kg CO2e/kWh | M56: 0
D57: Construction work diesel | E57: =C49*((SUM('Main road'!E13:E21)*'Project description and input'!C9)+('Addition road'!D18*'Calculation factors'!D113)+('Addition road'!D19*'Calculation factors'!D117)+('Addition road'!D20*'Calculation factors'!D115)) -> 0 | F57: litre diesel | G57: Year 0 | H57: Open road | I57: Diesel | J57: ='Emissions factors'!B29 -> Fossil diesel (WTW) | K57: =SUMIF('Emissions factors'!B:B,Calculations!J57,'Emissions factors'!D:D) -> 3.24 | L57: =VLOOKUP(J57,'Emissions factors'!B:C,2,FALSE) -> kg CO2e/liter | M57: 0
D58: Construction work biodiesel | E58: =C49*((SUM('Main road'!F13:F21)*'Project description and input'!C9)+('Addition road'!E18*'Calculation factors'!D113)+('Addition road'!E19*'Calculation factors'!D117)+('Addition road'!E20*'Calculation factors'!D115)) -> 0 | F58: litre biodiesel | G58: Year 0 | H58: Open road | I58: Biodiesel | J58: ='Emissions factors'!B27 -> Biodiesel (WTT) | K58: =SUMIF('Emissions factors'!B:B,Calculations!J58,'Emissions factors'!D:D) -> 1.92 | L58: =VLOOKUP(J58,'Emissions factors'!B:C,2,FALSE) -> kg CO2e/liter | M58: 0
D59: Construction work electric/hydrogen | E59: =C49*((SUM('Main road'!G13:G21)*'Project description and input'!C9)+('Addition road'!F18*'Calculation factors'!D113)+('Addition road'!F19*'Calculation factors'!D117)+('Addition road'!F20*'Calculation factors'!D115)) -> 0 | F59: kWh | G59: Year 0 | H59: Open road | I59: Electricity | J59: ='Emissions factors'!B32 -> Electricity construction phase, Norwegian mix | K59: =SUMIF('Emissions factors'!B:B,Calculations!J59,'Emissions factors'!D:D) -> 0.023777 | L59: =VLOOKUP(J59,'Emissions factors'!B:C,2,FALSE) -> kg CO2e/kWh | M59: 0
B60: Secondary road (m) | C60: =SUMIF('Project description and input'!$M:$M,B60,'Project description and input'!$L:$L) -> 0 | D60: Wearing course asphalt concrete, surface (Agb) | E60: =C60*'Secondary road'!D5*'Project description and input'!C10 -> 0 | F60: kg asphalt concrete, surface | G60: Year 0 | H60: Open road | I60: Asphalt | J60: ='Emissions factors'!B6 -> Asphalt concrete, surface (Agb) | K60: =SUMIF('Emissions factors'!B:B,Calculations!J60,'Emissions factors'!D:D) -> 0.0451 | L60: =VLOOKUP(J60,'Emissions factors'!B:C,2,FALSE) -> kg CO2e/kg | M60: 0
D61: Binder course asphalt concrete, surface (Agb) | E61: =C60*'Secondary road'!D6*'Project description and input'!C10 -> 0 | F61: kg asphalt concrete, surface | G61: Year 0 | H61: Open road | I61: Asphalt | J61: ='Emissions factors'!B6 -> Asphalt concrete, surface (Agb) | K61: =SUMIF('Emissions factors'!B:B,Calculations!J61,'Emissions factors'!D:D) -> 0.0451 | L61: =VLOOKUP(J61,'Emissions factors'!B:C,2,FALSE) -> kg CO2e/kg | M61: 0
D62: Upper base course asphalt concrete, base (Ag) | E62: =C60*'Secondary road'!D7*'Project description and input'!C10 -> 0 | F62: kg asphalt concrete, base | G62: Year 0 | H62: Open road | I62: Asphalt | J62: ='Emissions factors'!B8 -> Asphalt concrete, base (Ag) | K62: =SUMIF('Emissions factors'!B:B,Calculations!J62,'Emissions factors'!D:D) -> 0.0341 | L62: =VLOOKUP(J62,'Emissions factors'!B:C,2,FALSE) -> kg CO2e/kg | M62: 0
D63: Lamp posts | E63: =C60*'Addition road'!D6*'Calculation factors'!D112 -> 0 | F63: kg steel | G63: Year 0 | H63: Open road | I63: Steel | J63: ='Emissions factors'!B16 -> Steel | K63: =SUMIF('Emissions factors'!B:B,Calculations!J63,'Emissions factors'!D:D) -> 2.1038 | L63: =VLOOKUP(J63,'Emissions factors'!B:C,2,FALSE) -> kg CO2e/kg | M63: 0
D64: Guard rail/safety fence | E64: =C60*'Addition road'!D7*'Calculation factors'!D114 -> 0 | F64: kg steel | G64: Year 0 | H64: Open road | I64: Steel | J64: ='Emissions factors'!B16 -> Steel | K64: =SUMIF('Emissions factors'!B:B,Calculations!J64,'Emissions factors'!D:D) -> 2.1038 | L64: =VLOOKUP(J64,'Emissions factors'!B:C,2,FALSE) -> kg CO2e/kg | M64: 0
D65: Transport diesel | E65: =C60*((SUM('Secondary road'!E5:E7)*'Project description and input'!C10)+('Addition road'!E6*'Calculation factors'!D112)+('Addition road'!E7*'Calculation factors'!D114)) -> 0 | F65: litre diesel | G65: Year 0 | H65: Open road | I65: Diesel | J65: ='Emissions factors'!B29 -> Fossil diesel (WTW) | K65: =SUMIF('Emissions factors'!B:B,Calculations!J65,'Emissions factors'!D:D) -> 3.24 | L65: =VLOOKUP(J65,'Emissions factors'!B:C,2,FALSE) -> kg CO2e/liter | M65: 0
D66: Transport biodiesel | E66: =C60*((SUM('Secondary road'!F5:F7)*'Project description and input'!C10)+('Addition road'!F6*'Calculation factors'!D112)+('Addition road'!F7*'Calculation factors'!D114)) -> 0 | F66: litre biodiesel | G66: Year 0 | H66: Open road | I66: Biodiesel | J66: ='Emissions factors'!B27 -> Biodiesel (WTT) | K66: =SUMIF('Emissions factors'!B:B,Calculations!J66,'Emissions factors'!D:D) -> 1.92 | L66: =VLOOKUP(J66,'Emissions factors'!B:C,2,FALSE) -> kg CO2e/liter | M66: 0
D67: Transport electric/hydrogen | E67: =C60*((SUM('Secondary road'!G5:G7)*'Project description and input'!C10)+('Addition road'!G6*'Calculation factors'!D112)+('Addition road'!G7*'Calculation factors'!D114)) -> 0 | F67: kWh | G67: Year 0 | H67: Open road | I67: Electricity | J67: ='Emissions factors'!B32 -> Electricity construction phase, Norwegian mix | K67: =SUMIF('Emissions factors'!B:B,Calculations!J67,'Emissions factors'!D:D) -> 0.023777 | L67: =VLOOKUP(J67,'Emissions factors'!B:C,2,FALSE) -> kg CO2e/kWh | M67: 0
D68: Construction work diesel | E68: =C60*((SUM('Secondary road'!E13:E21)*'Project description and input'!C10)+('Addition road'!D18*'Calculation factors'!D114)+('Addition road'!D19*'Calculation factors'!D118)+('Addition road'!D20*'Calculation factors'!D116)) -> 0 | F68: litre diesel | G68: Year 0 | H68: Open road | I68: Diesel | J68: ='Emissions factors'!B29 -> Fossil diesel (WTW) | K68: =SUMIF('Emissions factors'!B:B,Calculations!J68,'Emissions factors'!D:D) -> 3.24 | L68: =VLOOKUP(J68,'Emissions factors'!B:C,2,FALSE) -> kg CO2e/liter | M68: 0
D69: Construction work biodiesel | E69: =C60*((SUM('Secondary road'!F13:F21)*'Project description and input'!C10)+('Addition road'!E18*'Calculation factors'!D114)+('Addition road'!E19*'Calculation factors'!D118)+('Addition road'!E20*'Calculation factors'!D116)) -> 0 | F69: litre biodiesel | G69: Year 0 | H69: Open road | I69: Biodiesel | J69: ='Emissions factors'!B27 -> Biodiesel (WTT) | K69: =SUMIF('Emissions factors'!B:B,Calculations!J69,'Emissions factors'!D:D) -> 1.92 | L69: =VLOOKUP(J69,'Emissions factors'!B:C,2,FALSE) -> kg CO2e/liter | M69: 0
D70: Construction work electric/hydrogen | E70: =C60*((SUM('Secondary road'!G13:G21)*'Project description and input'!C10)+('Addition road'!F18*'Calculation factors'!D114)+('Addition road'!F19*'Calculation factors'!D118)+('Addition road'!F20*'Calculation factors'!D116)) -> 0 | F70: kWh | G70: Year 0 | H70: Open road | I70: Electricity | J70: ='Emissions factors'!B32 -> Electricity construction phase, Norwegian mix | K70: =SUMIF('Emissions factors'!B:B,Calculations!J70,'Emissions factors'!D:D) -> 0.023777 | L70: =VLOOKUP(J70,'Emissions factors'!B:C,2,FALSE) -> kg CO2e/kWh | M70: 0
B71: Construction road (m) | C71: =SUMIF('Project description and input'!$M:$M,B71,'Project description and input'!$L:$L) -> 0 | D71: Upper base course asphalt concrete, base (Ag) | E71: =C71*'Construction road'!D5*'Project description and input'!C11 -> 0 | F71: kg asphalt concrete, base | G71: Year 0 | H71: Open road | I71: Asphalt | J71: ='Emissions factors'!B8 -> Asphalt concrete, base (Ag) | K71: =SUMIF('Emissions factors'!B:B,Calculations!J71,'Emissions factors'!D:D) -> 0.0341 | L71: =VLOOKUP(J71,'Emissions factors'!B:C,2,FALSE) -> kg CO2e/kg | M71: 0
D72: Transport diesel | E72: =C71*'Construction road'!E5*'Project description and input'!C11 -> 0 | F72: litre diesel | G72: Year 0 | H72: Open road | I72: Diesel | J72: ='Emissions factors'!B29 -> Fossil diesel (WTW) | K72: =SUMIF('Emissions factors'!B:B,Calculations!J72,'Emissions factors'!D:D) -> 3.24 | L72: =VLOOKUP(J72,'Emissions factors'!B:C,2,FALSE) -> kg CO2e/liter | M72: 0
D73: Transport biodiesel | E73: =C71*'Construction road'!F5*'Project description and input'!C11 -> 0 | F73: litre biodiesel | G73: Year 0 | H73: Open road | I73: Biodiesel | J73: ='Emissions factors'!B27 -> Biodiesel (WTT) | K73: =SUMIF('Emissions factors'!B:B,Calculations!J73,'Emissions factors'!D:D) -> 1.92 | L73: =VLOOKUP(J73,'Emissions factors'!B:C,2,FALSE) -> kg CO2e/liter | M73: 0
D74: Transport electric/hydrogen | E74: =C71*'Construction road'!G5*'Project description and input'!C11 -> 0 | F74: kWh | G74: Year 0 | H74: Open road | I74: Electricity | J74: ='Emissions factors'!B32 -> Electricity construction phase, Norwegian mix | K74: =SUMIF('Emissions factors'!B:B,Calculations!J74,'Emissions factors'!D:D) -> 0.023777 | L74: =VLOOKUP(J74,'Emissions factors'!B:C,2,FALSE) -> kg CO2e/kWh | M74: 0
D75: Construction work diesel | E75: =C71*(SUM('Construction road'!E11:E13)*'Project description and input'!C11) -> 0 | F75: litre diesel | G75: Year 0 | H75: Open road | I75: Diesel | J75: ='Emissions factors'!B29 -> Fossil diesel (WTW) | K75: =SUMIF('Emissions factors'!B:B,Calculations!J75,'Emissions factors'!D:D) -> 3.24 | L75: =VLOOKUP(J75,'Emissions factors'!B:C,2,FALSE) -> kg CO2e/liter | M75: 0
D76: Construction work biodiesel | E76: =C71*(SUM('Construction road'!F11:F13)*'Project description and input'!C11) -> 0 | F76: litre biodiesel | G76: Year 0 | H76: Open road | I76: Biodiesel | J76: ='Emissions factors'!B27 -> Biodiesel (WTT) | K76: =SUMIF('Emissions factors'!B:B,Calculations!J76,'Emissions factors'!D:D) -> 1.92 | L76: =VLOOKUP(J76,'Emissions factors'!B:C,2,FALSE) -> kg CO2e/liter | M76: 0
D77: Construction work electric/hydrogen | E77: =C71*(SUM('Construction road'!G11:G13)*'Project description and input'!C11) -> 0 | F77: kWh | G77: Year 0 | H77: Open road | I77: Electricity | J77: ='Emissions factors'!B32 -> Electricity construction phase, Norwegian mix | K77: =SUMIF('Emissions factors'!B:B,Calculations!J77,'Emissions factors'!D:D) -> 0.023777 | L77: =VLOOKUP(J77,'Emissions factors'!B:C,2,FALSE) -> kg CO2e/kWh | M77: 0
B78: Concrete bridge (m) | C78: =SUMIF('Project description and input'!$M:$M,B78,'Project description and input'!$L:$L) -> 0 | D78: Concrete | E78: =C78*'Concrete bridge'!E5*'Project description and input'!C12 -> 0 | F78: kg concrete | G78: Year 0 | H78: Bridge | I78: Concrete | J78: ='Emissions factors'!B12 -> Concrete | K78: =SUMIF('Emissions factors'!B:B,Calculations!J78,'Emissions factors'!D:D) -> 0.1375 | L78: =VLOOKUP(J78,'Emissions factors'!B:C,2,FALSE) -> kg CO2e/kg | M78: 0
D79: Reinforcement steel | E79: =C78*'Concrete bridge'!E6*'Project description and input'!C12 -> 0 | F79: kg reinforcement steel | G79: Year 0 | H79: Bridge | I79: Reinforcement Steel | J79: ='Emissions factors'!B5 -> Reinforcement steel | K79: =SUMIF('Emissions factors'!B:B,Calculations!J79,'Emissions factors'!D:D) -> 0.5663 | L79: =VLOOKUP(J79,'Emissions factors'!B:C,2,FALSE) -> kg CO2e/kg | M79: 0
D80: Construction steel | E80: =C78*'Concrete bridge'!E7*'Project description and input'!C12 -> 0 | F80: kg steel | G80: Year 0 | H80: Bridge | I80: Steel | J80: ='Emissions factors'!B16 -> Steel | K80: =SUMIF('Emissions factors'!B:B,Calculations!J80,'Emissions factors'!D:D) -> 2.1038 | L80: =VLOOKUP(J80,'Emissions factors'!B:C,2,FALSE) -> kg CO2e/kg | M80: 0
D81: Wood | E81: =C78*'Concrete bridge'!E8*'Project description and input'!C12 -> 0 | F81: kg wood | G81: Year 0 | H81: Bridge | I81: Wood | J81: ='Emissions factors'!B19 -> Wood (glulam) | K81: =SUMIF('Emissions factors'!B:B,Calculations!J81,'Emissions factors'!D:D) -> 0.1570744681 | L81: =VLOOKUP(J81,'Emissions factors'!B:C,2,FALSE) -> kg CO2e/kg | M81: 0
D82: Slitelag stone mastic asphalt (Ska) | E82: =C78*'Concrete bridge'!E9*'Project description and input'!C12 -> 0 | F82: kg stone mastic asphalt | G82: År 0 | H82: Bridge | I82: Asphalt | J82: ='Emissions factors'!B7 -> Stone mastic asphalt (Ska) | K82: =SUMIF('Emissions factors'!B:B,Calculations!J82,'Emissions factors'!D:D) -> 0.061 | L82: =VLOOKUP(J82,'Emissions factors'!B:C,2,FALSE) -> kg CO2e/kg | M82: 0
D83: Binder course stone mastic asphalt (Ska) | E83: =C78*'Concrete bridge'!E10*'Project description and input'!C12 -> 0 | F83: kg stone mastic asphalt | G83: Year 0 | H83: Bridge | I83: Asphalt | J83: ='Emissions factors'!B7 -> Stone mastic asphalt (Ska) | K83: =SUMIF('Emissions factors'!B:B,Calculations!J83,'Emissions factors'!D:D) -> 0.061 | L83: =VLOOKUP(J83,'Emissions factors'!B:C,2,FALSE) -> kg CO2e/kg | M83: 0
D84: Moisture protection (Topeka) | E84: =C78*'Concrete bridge'!E11*'Project description and input'!C12 -> 0 | F84: kg topeka | G84: Year 0 | H84: Bridge | I84: Asphalt | J84: ='Emissions factors'!B11 -> Topeka | K84: =SUMIF('Emissions factors'!B:B,Calculations!J84,'Emissions factors'!D:D) -> 0.052 | L84: =VLOOKUP(J84,'Emissions factors'!B:C,2,FALSE) -> kg CO2e/kg | M84: 0
D85: Lamp posts | E85: =C78*'Addition road'!D5*'Calculation factors'!D111 -> 0 | F85: kg steel | G85: Year 0 | H85: Bridge | I85: Steel | J85: ='Emissions factors'!B16 -> Steel | K85: =SUMIF('Emissions factors'!B:B,Calculations!J85,'Emissions factors'!D:D) -> 2.1038 | L85: =VLOOKUP(J85,'Emissions factors'!B:C,2,FALSE) -> kg CO2e/kg | M85: 0
D86: Guard rail/safety fence | E86: =C78*'Addition road'!D7*'Calculation factors'!D113 -> 0 | F86: kg steel | G86: Year 0 | H86: Bridge | I86: Steel | J86: ='Emissions factors'!B16 -> Steel | K86: =SUMIF('Emissions factors'!B:B,Calculations!J86,'Emissions factors'!D:D) -> 2.1038 | L86: =VLOOKUP(J86,'Emissions factors'!B:C,2,FALSE) -> kg CO2e/kg | M86: 0
D87: Transport diesel | E87: =C78*(((SUM('Concrete bridge'!F5:F11)*'Project description and input'!C12)+(('Addition road'!E5*'Calculation factors'!D111)+('Addition road'!E7*'Calculation factors'!D113)))) -> 0 | F87: litre diesel | G87: Year 0 | H87: Bridge | I87: Diesel | J87: ='Emissions factors'!B29 -> Fossil diesel (WTW) | K87: =SUMIF('Emissions factors'!B:B,Calculations!J87,'Emissions factors'!D:D) -> 3.24 | L87: =VLOOKUP(J87,'Emissions factors'!B:C,2,FALSE) -> kg CO2e/liter | M87: 0
D88: Transport biodiesel | E88: =C78*(((SUM('Concrete bridge'!G5:G11)*'Project description and input'!C12)+(('Addition road'!F5*'Calculation factors'!D111)+('Addition road'!F7*'Calculation factors'!D113)))) -> 0 | F88: litre biodiesel | G88: Year 0 | H88: Bridge | I88: Biodiesel | J88: ='Emissions factors'!B27 -> Biodiesel (WTT) | K88: =SUMIF('Emissions factors'!B:B,Calculations!J88,'Emissions factors'!D:D) -> 1.92 | L88: =VLOOKUP(J88,'Emissions factors'!B:C,2,FALSE) -> kg CO2e/liter | M88: 0
D89: Transport electric/hydrogen | E89: =C78*(((SUM('Concrete bridge'!H5:H11)*'Project description and input'!C12)+(('Addition road'!G5*'Calculation factors'!D111)+('Addition road'!G7*'Calculation factors'!D113)))) -> 0 | F89: kWh | G89: Year 0 | H89: Bridge | I89: Electricity | J89: ='Emissions factors'!B32 -> Electricity construction phase, Norwegian mix | K89: =SUMIF('Emissions factors'!B:B,Calculations!J89,'Emissions factors'!D:D) -> 0.023777 | L89: =VLOOKUP(J89,'Emissions factors'!B:C,2,FALSE) -> kg CO2e/kWh | M89: =(E89*K89)/1000 -> 0
D90: Construction work diesel | E90: =C78*(((SUM('Concrete bridge'!E19:E28)*'Project description and input'!C12)+(('Addition road'!D18*'Calculation factors'!D113)+('Addition road'!D19*'Calculation factors'!D117)))) -> 0 | F90: litre diesel | G90: Year 0 | H90: Bridge | I90: Diesel | J90: ='Emissions factors'!B29 -> Fossil diesel (WTW) | K90: =SUMIF('Emissions factors'!B:B,Calculations!J90,'Emissions factors'!D:D) -> 3.24 | L90: =VLOOKUP(J90,'Emissions factors'!B:C,2,FALSE) -> kg CO2e/liter | M90: 0
D91: Construction work biodiesel | E91: =C78*(((SUM('Concrete bridge'!F19:F28)*'Project description and input'!C12)+(('Addition road'!E18*'Calculation factors'!D113)+('Addition road'!E19*'Calculation factors'!D117)))) -> 0 | F91: litre biodiesel | G91: Year 0 | H91: Bridge | I91: Biodiesel | J91: ='Emissions factors'!B27 -> Biodiesel (WTT) | K91: =SUMIF('Emissions factors'!B:B,Calculations!J91,'Emissions factors'!D:D) -> 1.92 | L91: =VLOOKUP(J91,'Emissions factors'!B:C,2,FALSE) -> kg CO2e/liter | M91: 0
D92: Construction work electric/hydrogen | E92: =C78*(((SUM('Concrete bridge'!G19:G28)*'Project description and input'!C12)+(('Addition road'!F18*'Calculation factors'!D113)+('Addition road'!F19*'Calculation factors'!D117)))) -> 0 | F92: kWh | G92: Year 0 | H92: Bridge | I92: Electricity | J92: ='Emissions factors'!B32 -> Electricity construction phase, Norwegian mix | K92: =SUMIF('Emissions factors'!B:B,Calculations!J92,'Emissions factors'!D:D) -> 0.023777 | L92: =VLOOKUP(J92,'Emissions factors'!B:C,2,FALSE) -> kg CO2e/kWh | M92: 0
B93: Steel bridge (m) | C93: =SUMIF('Project description and input'!$M:$M,B93,'Project description and input'!$L:$L) -> 0 | D93: Concrete | E93: =C93*'Steel bridge'!E5*'Project description and input'!C13 -> 0 | F93: kg concrete | G93: Year 0 | H93: Bridge | I93: Concrete | J93: ='Emissions factors'!B12 -> Concrete | K93: =SUMIF('Emissions factors'!B:B,Calculations!J93,'Emissions factors'!D:D) -> 0.1375 | L93: =VLOOKUP(J93,'Emissions factors'!B:C,2,FALSE) -> kg CO2e/kg | M93: 0
D94: Reinforcement steel | E94: =C93*'Steel bridge'!E6*'Project description and input'!C13 -> 0 | F94: kg reinforcement steel | G94: Year 0 | H94: Bridge | I94: Reinforcement Steel | J94: ='Emissions factors'!B5 -> Reinforcement steel | K94: =SUMIF('Emissions factors'!B:B,Calculations!J94,'Emissions factors'!D:D) -> 0.5663 | L94: =VLOOKUP(J94,'Emissions factors'!B:C,2,FALSE) -> kg CO2e/kg | M94: 0
D95: Construction steel | E95: =C93*'Steel bridge'!E7*'Project description and input'!C13 -> 0 | F95: kg steel | G95: Year 0 | H95: Bridge | I95: Steel | J95: ='Emissions factors'!B16 -> Steel | K95: =SUMIF('Emissions factors'!B:B,Calculations!J95,'Emissions factors'!D:D) -> 2.1038 | L95: =VLOOKUP(J95,'Emissions factors'!B:C,2,FALSE) -> kg CO2e/kg | M95: 0
D96: Wood | E96: =C78*'Steel bridge'!E8*'Project description and input'!C13 -> 0 | F96: kg wood | G96: Year 0 | H96: Bridge | I96: Wood | J96: ='Emissions factors'!B19 -> Wood (glulam) | K96: =SUMIF('Emissions factors'!B:B,Calculations!J96,'Emissions factors'!D:D) -> 0.1570744681 | L96: =VLOOKUP(J96,'Emissions factors'!B:C,2,FALSE) -> kg CO2e/kg | M96: 0
D97: Wearing course stone mastic asphalt (Ska) | E97: =C93*'Steel bridge'!E9*'Project description and input'!C13 -> 0 | F97: kg stone mastic asphalt | G97: Year 0 | H97: Bridge | I97: Asphalt | J97: ='Emissions factors'!B7 -> Stone mastic asphalt (Ska) | K97: =SUMIF('Emissions factors'!B:B,Calculations!J97,'Emissions factors'!D:D) -> 0.061 | L97: =VLOOKUP(J97,'Emissions factors'!B:C,2,FALSE) -> kg CO2e/kg | M97: 0
D98: Binder course stone mastic asphalt (Ska) | E98: =C93*'Steel bridge'!E10*'Project description and input'!C13 -> 0 | F98: kg stone mastic asphalt | G98: Year 0 | H98: Bridge | I98: Asphalt | J98: ='Emissions factors'!B7 -> Stone mastic asphalt (Ska) | K98: =SUMIF('Emissions factors'!B:B,Calculations!J98,'Emissions factors'!D:D) -> 0.061 | L98: =VLOOKUP(J98,'Emissions factors'!B:C,2,FALSE) -> kg CO2e/kg | M98: 0
D99: Moisture protection (Topeka) | E99: =C93*'Steel bridge'!E11*'Project description and input'!C13 -> 0 | F99: kg topeka | G99: Year 0 | H99: Bridge | I99: Asphalt | J99: ='Emissions factors'!B11 -> Topeka | K99: =SUMIF('Emissions factors'!B:B,Calculations!J99,'Emissions factors'!D:D) -> 0.052 | L99: =VLOOKUP(J99,'Emissions factors'!B:C,2,FALSE) -> kg CO2e/kg | M99: 0
D100: Lamp posts | E100: =C93*'Addition road'!D5*'Calculation factors'!D111 -> 0 | F100: kg steel | G100: Year 0 | H100: Bridge | I100: Steel | J100: ='Emissions factors'!B16 -> Steel | K100: =SUMIF('Emissions factors'!B:B,Calculations!J100,'Emissions factors'!D:D) -> 2.1038 | L100: =VLOOKUP(J100,'Emissions factors'!B:C,2,FALSE) -> kg CO2e/kg | M100: 0
D101: Guard rail/safety fence | E101: =C93*'Addition road'!D7*'Calculation factors'!D113 -> 0 | F101: kg steel | G101: Year 0 | H101: Bridge | I101: Steel | J101: ='Emissions factors'!B16 -> Steel | K101: =SUMIF('Emissions factors'!B:B,Calculations!J101,'Emissions factors'!D:D) -> 2.1038 | L101: =VLOOKUP(J101,'Emissions factors'!B:C,2,FALSE) -> kg CO2e/kg | M101: 0
D102: Transport diesel | E102: =C93*(SUM('Steel bridge'!F5:F11)*'Project description and input'!C13+('Addition road'!E5*'Calculation factors'!D111)+('Addition road'!E7*'Calculation factors'!D113)) -> 0 | F102: litre diesel | G102: Year 0 | H102: Bridge | I102: Diesel | J102: ='Emissions factors'!B29 -> Fossil diesel (WTW) | K102: =SUMIF('Emissions factors'!B:B,Calculations!J102,'Emissions factors'!D:D) -> 3.24 | L102: =VLOOKUP(J102,'Emissions factors'!B:C,2,FALSE) -> kg CO2e/liter | M102: 0
D103: Transport biodiesel | E103: =C93*(SUM('Steel bridge'!G5:G11)*'Project description and input'!C13+('Addition road'!F5*'Calculation factors'!D111)+('Addition road'!F7*'Calculation factors'!D113)) -> 0 | F103: litre biodiesel | G103: Year 0 | H103: Bridge | I103: Biodiesel | J103: ='Emissions factors'!B27 -> Biodiesel (WTT) | K103: =SUMIF('Emissions factors'!B:B,Calculations!J103,'Emissions factors'!D:D) -> 1.92 | L103: =VLOOKUP(J103,'Emissions factors'!B:C,2,FALSE) -> kg CO2e/liter | M103: 0
D104: Transport electric/hydrogen | E104: =C93*(SUM('Steel bridge'!H5:H11)*'Project description and input'!C13+('Addition road'!G5*'Calculation factors'!D111)+('Addition road'!G7*'Calculation factors'!D113)) -> 0 | F104: kWh | G104: Year 0 | H104: Bridge | I104: Electricity | J104: ='Emissions factors'!B32 -> Electricity construction phase, Norwegian mix | K104: =SUMIF('Emissions factors'!B:B,Calculations!J104,'Emissions factors'!D:D) -> 0.023777 | L104: =VLOOKUP(J104,'Emissions factors'!B:C,2,FALSE) -> kg CO2e/kWh | M104: 0
D105: Construction work diesel | E105: =C93*(((SUM('Steel bridge'!E19:E28)*'Project description and input'!C13)+(('Addition road'!D18*'Calculation factors'!D113)+('Addition road'!D19*'Calculation factors'!D117)))) -> 0 | F105: litre diesel | G105: Year 0 | H105: Bridge | I105: Diesel | J105: ='Emissions factors'!B29 -> Fossil diesel (WTW) | K105: =SUMIF('Emissions factors'!B:B,Calculations!J105,'Emissions factors'!D:D) -> 3.24 | L105: =VLOOKUP(J105,'Emissions factors'!B:C,2,FALSE) -> kg CO2e/liter | M105: 0
D106: Construction work biodiesel | E106: =C93*(((SUM('Steel bridge'!F19:F28)*'Project description and input'!C13)+(('Addition road'!E18*'Calculation factors'!D113)+('Addition road'!E19*'Calculation factors'!D117)))) -> 0 | F106: litre biodiesel | G106: Year 0 | H106: Bridge | I106: Biodiesel | J106: ='Emissions factors'!B27 -> Biodiesel (WTT) | K106: =SUMIF('Emissions factors'!B:B,Calculations!J106,'Emissions factors'!D:D) -> 1.92 | L106: =VLOOKUP(J106,'Emissions factors'!B:C,2,FALSE) -> kg CO2e/liter | M106: 0
D107: Construction work electric/hydrogen | E107: =C93*(((SUM('Steel bridge'!G17:G28)*'Project description and input'!C13)+(('Addition road'!F18*'Calculation factors'!D113)+('Addition road'!F19*'Calculation factors'!D117)))) -> 0 | F107: kWh | G107: Year 0 | H107: Bridge | I107: Electricity | J107: ='Emissions factors'!B32 -> Electricity construction phase, Norwegian mix | K107: =SUMIF('Emissions factors'!B:B,Calculations!J107,'Emissions factors'!D:D) -> 0.023777 | L107: =VLOOKUP(J107,'Emissions factors'!B:C,2,FALSE) -> kg CO2e/kWh | M107: 0
B108: Wood bridge (m) | C108: =SUMIF('Project description and input'!$M:$M,B108,'Project description and input'!$L:$L) -> 0 | D108: Concrete | E108: =C108*'Wood bridge'!E5*'Project description and input'!C14 -> 0 | F108: kg concrete | G108: Year 0 | H108: Bridge | I108: Concrete | J108: ='Emissions factors'!B12 -> Concrete | K108: =SUMIF('Emissions factors'!B:B,Calculations!J108,'Emissions factors'!D:D) -> 0.1375 | L108: =VLOOKUP(J108,'Emissions factors'!B:C,2,FALSE) -> kg CO2e/kg | M108: =(E108*K108)/1000 -> 0
D109: Reinforcement steel | E109: =C108*'Wood bridge'!E6*'Project description and input'!C14 -> 0 | F109: kg reinforcement steel | G109: Year 0 | H109: Bridge | I109: Reinforcement Steel | J109: ='Emissions factors'!B5 -> Reinforcement steel | K109: =SUMIF('Emissions factors'!B:B,Calculations!J109,'Emissions factors'!D:D) -> 0.5663 | L109: =VLOOKUP(J109,'Emissions factors'!B:C,2,FALSE) -> kg CO2e/kg | M109: 0
D110: Construction steel | E110: =C108*'Wood bridge'!E7*'Project description and input'!C14 -> 0 | F110: kg steel | G110: Year 0 | H110: Bridge | I110: Steel | J110: ='Emissions factors'!B16 -> Steel | K110: =SUMIF('Emissions factors'!B:B,Calculations!J110,'Emissions factors'!D:D) -> 2.1038 | L110: =VLOOKUP(J110,'Emissions factors'!B:C,2,FALSE) -> kg CO2e/kg | M110: 0
D111: Wood | E111: =C108*'Wood bridge'!E8*'Project description and input'!C14 -> 0 | F111: kg wood | G111: Year 0 | H111: Bridge | I111: Wood | J111: ='Emissions factors'!B19 -> Wood (glulam) | K111: =SUMIF('Emissions factors'!B:B,Calculations!J111,'Emissions factors'!D:D) -> 0.1570744681 | L111: =VLOOKUP(J111,'Emissions factors'!B:C,2,FALSE) -> kg CO2e/kg | M111: 0
D112: Wearing course stone mastic asphalt (Ska) | E112: =C108*'Wood bridge'!E9*'Project description and input'!C14 -> 0 | F112: kg stone mastic asphalt | G112: Year 0 | H112: Bridge | I112: Asphalt | J112: ='Emissions factors'!B7 -> Stone mastic asphalt (Ska) | K112: =SUMIF('Emissions factors'!B:B,Calculations!J112,'Emissions factors'!D:D) -> 0.061 | L112: =VLOOKUP(J112,'Emissions factors'!B:C,2,FALSE) -> kg CO2e/kg | M112: 0
D113: Binder course stone mastic asphalt (Ska) | E113: =C108*'Wood bridge'!E10*'Project description and input'!C14 -> 0 | F113: kg stone mastic asphalt | G113: Year 0 | H113: Bridge | I113: Asphalt | J113: ='Emissions factors'!B7 -> Stone mastic asphalt (Ska) | K113: =SUMIF('Emissions factors'!B:B,Calculations!J113,'Emissions factors'!D:D) -> 0.061 | L113: =VLOOKUP(J113,'Emissions factors'!B:C,2,FALSE) -> kg CO2e/kg | M113: 0
D114: Moisture protection (Topeka) | E114: =C108*'Wood bridge'!E11*'Project description and input'!C14 -> 0 | F114: kg topeka | G114: Year 0 | H114: Bridge | I114: Asphalt | J114: ='Emissions factors'!B11 -> Topeka | K114: =SUMIF('Emissions factors'!B:B,Calculations!J114,'Emissions factors'!D:D) -> 0.052 | L114: =VLOOKUP(J114,'Emissions factors'!B:C,2,FALSE) -> kg CO2e/kg | M114: 0
D115: Lamp posts | E115: =C108*'Addition road'!D5*'Calculation factors'!D111 -> 0 | F115: kg steel | G115: Year 0 | H115: Bridge | I115: Steel | J115: ='Emissions factors'!B16 -> Steel | K115: =SUMIF('Emissions factors'!B:B,Calculations!J115,'Emissions factors'!D:D) -> 2.1038 | L115: =VLOOKUP(J115,'Emissions factors'!B:C,2,FALSE) -> kg CO2e/kg | M115: 0
D116: Guard rail/safety fence | E116: =C108*'Addition road'!D7*'Calculation factors'!D113 -> 0 | F116: kg steel | G116: Year 0 | H116: Bridge | I116: Steel | J116: ='Emissions factors'!B16 -> Steel | K116: =SUMIF('Emissions factors'!B:B,Calculations!J116,'Emissions factors'!D:D) -> 2.1038 | L116: =VLOOKUP(J116,'Emissions factors'!B:C,2,FALSE) -> kg CO2e/kg | M116: 0
D117: Transport diesel | E117: =C108*(SUM('Wood bridge'!F5:F11)*'Project description and input'!C14+('Addition road'!E5*'Calculation factors'!D111)+('Addition road'!E7*'Calculation factors'!D113)) -> 0 | F117: litre diesel | G117: Year 0 | H117: Bridge | I117: Diesel | J117: ='Emissions factors'!B29 -> Fossil diesel (WTW) | K117: =SUMIF('Emissions factors'!B:B,Calculations!J117,'Emissions factors'!D:D) -> 3.24 | L117: =VLOOKUP(J117,'Emissions factors'!B:C,2,FALSE) -> kg CO2e/liter | M117: 0
D118: Transport biodiesel | E118: =C108*(SUM('Wood bridge'!G5:G11)*'Project description and input'!C14+('Addition road'!F5*'Calculation factors'!D111)+('Addition road'!F7*'Calculation factors'!D113)) -> 0 | F118: litre biodiesel | G118: Year 0 | H118: Bridge | I118: Biodiesel | J118: ='Emissions factors'!B27 -> Biodiesel (WTT) | K118: =SUMIF('Emissions factors'!B:B,Calculations!J118,'Emissions factors'!D:D) -> 1.92 | L118: =VLOOKUP(J118,'Emissions factors'!B:C,2,FALSE) -> kg CO2e/liter | M118: 0
D119: Transport electric/hydrogen | E119: =C108*(SUM('Wood bridge'!H5:H11)*'Project description and input'!C14+('Addition road'!G5*'Calculation factors'!D111)+('Addition road'!G7*'Calculation factors'!D113)) -> 0 | F119: kWh | G119: Year 0 | H119: Bridge | I119: Electricity | J119: ='Emissions factors'!B32 -> Electricity construction phase, Norwegian mix | K119: =SUMIF('Emissions factors'!B:B,Calculations!J119,'Emissions factors'!D:D) -> 0.023777 | L119: =VLOOKUP(J119,'Emissions factors'!B:C,2,FALSE) -> kg CO2e/kWh | M119: 0
D120: Construction work diesel | E120: =C108*(SUM('Wood bridge'!E19:E28)*'Project description and input'!C14+('Addition road'!D18*'Calculation factors'!D113)+('Addition road'!D19*'Calculation factors'!D117)) -> 0 | F120: litre diesel | G120: Year 0 | H120: Bridge | I120: Diesel | J120: ='Emissions factors'!B29 -> Fossil diesel (WTW) | K120: =SUMIF('Emissions factors'!B:B,Calculations!J120,'Emissions factors'!D:D) -> 3.24 | L120: =VLOOKUP(J120,'Emissions factors'!B:C,2,FALSE) -> kg CO2e/liter | M120: 0
D121: Construction work biodiesel | E121: =C108*(SUM('Wood bridge'!F19:F28)*'Project description and input'!C14+('Addition road'!E18*'Calculation factors'!D113)+('Addition road'!E19*'Calculation factors'!D117)) -> 0 | F121: litre biodiesel | G121: Year 0 | H121: Bridge | I121: Biodiesel | J121: ='Emissions factors'!B27 -> Biodiesel (WTT) | K121: =SUMIF('Emissions factors'!B:B,Calculations!J121,'Emissions factors'!D:D) -> 1.92 | L121: =VLOOKUP(J121,'Emissions factors'!B:C,2,FALSE) -> kg CO2e/liter | M121: 0
D122: Construction work electric/hydrogen | E122: =C108*(SUM('Wood bridge'!G17:G28)*'Project description and input'!C14+('Addition road'!F18*'Calculation factors'!D113)+('Addition road'!F19*'Calculation factors'!D117)) -> 0 | F122: kWh | G122: Year 0 | H122: Bridge | I122: Electricity | J122: ='Emissions factors'!B32 -> Electricity construction phase, Norwegian mix | K122: =SUMIF('Emissions factors'!B:B,Calculations!J122,'Emissions factors'!D:D) -> 0.023777 | L122: =VLOOKUP(J122,'Emissions factors'!B:C,2,FALSE) -> kg CO2e/kWh | M122: 0
B123: Tunnel single tube (m) | C123: =SUMIF('Project description and input'!$M:$M,B123,'Project description and input'!$L:$L) -> 0 | D123: Concrete | E123: =C123*'Tunnel single tube'!F10 -> 0 | F123: kg concrete | G123: Year 0 | H123: Tunnel | I123: Concrete | J123: ='Emissions factors'!B12 -> Concrete | K123: =SUMIF('Emissions factors'!B:B,Calculations!J123,'Emissions factors'!D:D) -> 0.1375 | L123: =VLOOKUP(J123,'Emissions factors'!B:C,2,FALSE) -> kg CO2e/kg | M123: 0 | O123: =E123*2 -> 0
D124: Reinforcement steel | E124: =C123*'Tunnel single tube'!F11 -> 0 | F124: kg reinforcement steel | G124: Year 0 | H124: Tunnel | I124: Reinforcement Steel | J124: ='Emissions factors'!B5 -> Reinforcement steel | K124: =SUMIF('Emissions factors'!B:B,Calculations!J124,'Emissions factors'!D:D) -> 0.5663 | L124: =VLOOKUP(J124,'Emissions factors'!B:C,2,FALSE) -> kg CO2e/kg | M124: 0 | O124: =E124*2 -> 0
D125: Safety bolts | E125: =C123*'Tunnel single tube'!F12 -> 0 | F125: kg steel | G125: Year 0 | H125: Tunnel | I125: Steel | J125: ='Emissions factors'!B16 -> Steel | K125: =SUMIF('Emissions factors'!B:B,Calculations!J125,'Emissions factors'!D:D) -> 2.1038 | L125: =VLOOKUP(J125,'Emissions factors'!B:C,2,FALSE) -> kg CO2e/kg | M125: 0 | O125: 0
D126: Frost protection | E126: =C123*'Tunnel single tube'!G13 -> 0 | F126: m2 isolation | G126: Year 0 | H126: Tunnel | I126: Frost protection tunnel | J126: ='Emissions factors'!B18 -> XPS/concrete element | K126: =SUMIF('Emissions factors'!B:B,Calculations!J126,'Emissions factors'!D:D) -> 50.265 | L126: =VLOOKUP(J126,'Emissions factors'!B:C,2,FALSE) -> kg CO2e/m2 | M126: =(E126*K126)/1000 -> 0 | O126: =E126*2 -> 0
D127: Sprayed concrete | E127: =C123*'Tunnel single tube'!F14 -> 0 | F127: kg shotcrete | G127: Year 0 | H127: Tunnel | I127: Frost protection tunnel | J127: ='Emissions factors'!B15 -> Shotcrete | K127: =SUMIF('Emissions factors'!B:B,Calculations!J127,'Emissions factors'!D:D) -> 0.1375 | L127: =VLOOKUP(J127,'Emissions factors'!B:C,2,FALSE) -> kg CO2e/kg | M127: =(E127*K127)/1000 -> 0 | O127: 0
D128: PE-foam | E128: =C123*'Tunnel single tube'!G15 -> 0 | F128: m2 PE-foam | G128: Year 0 | H128: Tunnel | I128: Frost protection tunnel | J128: ='Emissions factors'!B13 -> PE-foam | K128: =SUMIF('Emissions factors'!B:B,Calculations!J128,'Emissions factors'!D:D) -> 14.6 | L128: =VLOOKUP(J128,'Emissions factors'!B:C,2,FALSE) -> kg CO2e/m2 | M128: 0 | O128: 0
D129: Fiber reinforcement | E129: =C123*'Tunnel single tube'!F16 -> 0 | F129: kg fiber reinforcement | G129: Year 0 | H129: Tunnel | I129: Frost protection tunnel | J129: ='Emissions factors'!B24 -> Fiber reinforcement | K129: =SUMIF('Emissions factors'!B:B,Calculations!J129,'Emissions factors'!D:D) -> 0.77066 | L129: =VLOOKUP(J129,'Emissions factors'!B:C,2,FALSE) -> kg CO2e/kg | M129: =(E129*K129)/1000 -> 0 | O129: =E129*2 -> 0
D130: Reinforcement mesh | E130: =C123*'Tunnel single tube'!F17 -> 0 | F130: kg reinforcement mesh | G130: Year 0 | H130: Tunnel | I130: Frost protection tunnel | J130: ='Emissions factors'!B5 -> Reinforcement steel | K130: =SUMIF('Emissions factors'!B:B,Calculations!J130,'Emissions factors'!D:D) -> 0.5663 | L130: =VLOOKUP(J130,'Emissions factors'!B:C,2,FALSE) -> kg CO2e/kg | M130: =(E130*K130)/1000 -> 0 | O130: =E130*2 -> 0
D131: Plastic mebrane | E131: =C123*'Tunnel single tube'!G18 -> 0 | F131: m2 membrane | G131: Year 0 | H131: Tunnel | I131: Frost protection tunnel | J131: ='Emissions factors'!B23 -> Plastic mebrane | K131: =SUMIF('Emissions factors'!B:B,Calculations!J131,'Emissions factors'!D:D) -> 4.243333333 | L131: =VLOOKUP(J131,'Emissions factors'!B:C,2,FALSE) -> kg CO2e/m2 | M131: 0 | O131: 0
D132: Wearing course stone mastic asphalt (Ska) | E132: =C123*'Tunnel single tube'!F19 -> 0 | F132: kg stone mastic asphalt | G132: Year 0 | H132: Tunnel | I132: Asphalt | J132: ='Emissions factors'!B7 -> Stone mastic asphalt (Ska) | K132: =SUMIF('Emissions factors'!B:B,Calculations!J132,'Emissions factors'!D:D) -> 0.061 | L132: =VLOOKUP(J132,'Emissions factors'!B:C,2,FALSE) -> kg CO2e/kg | M132: 0 | O132: 0
D133: Binder course stone mastic asphalt (Ska) | E133: =C123*'Tunnel single tube'!F20 -> 0 | F133: kg stone mastic asphalt | G133: Year 0 | H133: Tunnel | I133: Asphalt | J133: ='Emissions factors'!B7 -> Stone mastic asphalt (Ska) | K133: =SUMIF('Emissions factors'!B:B,Calculations!J133,'Emissions factors'!D:D) -> 0.061 | L133: =VLOOKUP(J133,'Emissions factors'!B:C,2,FALSE) -> kg CO2e/kg | M133: 0 | O133: 0
D134: Upper base course asphalt concrete, base (Ag) | E134: =C123*'Tunnel single tube'!F21 -> 0 | F134: kg asphalt concrete, base | G134: Year 0 | H134: Tunnel | I134: Asphalt | J134: ='Emissions factors'!B8 -> Asphalt concrete, base (Ag) | K134: =SUMIF('Emissions factors'!B:B,Calculations!J134,'Emissions factors'!D:D) -> 0.0341 | L134: =VLOOKUP(J134,'Emissions factors'!B:C,2,FALSE) -> kg CO2e/kg | M134: 0 | O134: 0
D135: Guard rail/safety fence | E135: =C123*'Addition road'!D7*'Calculation factors'!D113 -> 0 | F135: kg steel | G135: Year 0 | H135: Tunnel | I135: Steel | J135: ='Emissions factors'!B16 -> Steel | K135: =SUMIF('Emissions factors'!B:B,Calculations!J135,'Emissions factors'!D:D) -> 2.1038 | L135: =VLOOKUP(J135,'Emissions factors'!B:C,2,FALSE) -> kg CO2e/kg | M135: 0 | O135: 0
D136: Transport diesel | E136: =C123*(SUM('Tunnel single tube'!H10:H21)+('Addition road'!E7*'Calculation factors'!D113)) -> 0 | F136: litre diesel | G136: Year 0 | H136: Tunnel | I136: Diesel | J136: ='Emissions factors'!B29 -> Fossil diesel (WTW) | K136: =SUMIF('Emissions factors'!B:B,Calculations!J136,'Emissions factors'!D:D) -> 3.24 | L136: =VLOOKUP(J136,'Emissions factors'!B:C,2,FALSE) -> kg CO2e/liter | M136: 0 | O136: 0
D137: Transport biodiesel | E137: =C123*(SUM('Tunnel single tube'!I10:I21)+('Addition road'!F7*'Calculation factors'!D113)) -> 0 | F137: litre biodiesel | G137: Year 0 | H137: Tunnel | I137: Biodiesel | J137: ='Emissions factors'!B27 -> Biodiesel (WTT) | K137: =SUMIF('Emissions factors'!B:B,Calculations!J137,'Emissions factors'!D:D) -> 1.92 | L137: =VLOOKUP(J137,'Emissions factors'!B:C,2,FALSE) -> kg CO2e/liter | M137: 0 | O137: 0
D138: Transport electric/hydrogen | E138: =C123*(SUM('Tunnel single tube'!J10:J21)+('Addition road'!G7*'Calculation factors'!D113)) -> 0 | F138: kWh | G138: Year 0 | H138: Tunnel | I138: Electricity | J138: ='Emissions factors'!B32 -> Electricity construction phase, Norwegian mix | K138: =SUMIF('Emissions factors'!B:B,Calculations!J138,'Emissions factors'!D:D) -> 0.023777 | L138: =VLOOKUP(J138,'Emissions factors'!B:C,2,FALSE) -> kg CO2e/kWh | M138: 0 | O138: 0
D139: Construction work diesel | E139: =C123*('Calculation factors'!D60*SUM('Tunnel single tube'!E27:E35)+('Addition road'!D18*'Calculation factors'!D113)+('Addition road'!D19*'Calculation factors'!D117)) -> 0 | F139: litre diesel | G139: Year 0 | H139: Tunnel | I139: Diesel | J139: ='Emissions factors'!B29 -> Fossil diesel (WTW) | K139: =SUMIF('Emissions factors'!B:B,Calculations!J139,'Emissions factors'!D:D) -> 3.24 | L139: =VLOOKUP(J139,'Emissions factors'!B:C,2,FALSE) -> kg CO2e/liter | M139: 0 | O139: 0
D140: Construction work biodiesel | E140: =C123*('Calculation factors'!D60*SUM('Tunnel single tube'!F27:F35)+('Addition road'!E18*'Calculation factors'!D113)+('Addition road'!E19*'Calculation factors'!D117)) -> 0 | F140: litre biodiesel | G140: Year 0 | H140: Tunnel | I140: Biodiesel | J140: ='Emissions factors'!B27 -> Biodiesel (WTT) | K140: =SUMIF('Emissions factors'!B:B,Calculations!J140,'Emissions factors'!D:D) -> 1.92 | L140: =VLOOKUP(J140,'Emissions factors'!B:C,2,FALSE) -> kg CO2e/liter | M140: 0 | O140: 0
D141: Construction work electric/hydrogen | E141: =C123*('Calculation factors'!D60*SUM('Tunnel single tube'!G27:G35)+('Addition road'!F18*'Calculation factors'!D113)+('Addition road'!F19*'Calculation factors'!D117)) -> 0 | F141: kWh | G141: Year 0 | H141: Tunnel | I141: Electricity | J141: ='Emissions factors'!B32 -> Electricity construction phase, Norwegian mix | K141: =SUMIF('Emissions factors'!B:B,Calculations!J141,'Emissions factors'!D:D) -> 0.023777 | L141: =VLOOKUP(J141,'Emissions factors'!B:C,2,FALSE) -> kg CO2e/kWh | M141: 0 | O141: 0
B142: Tunnel double tube (m) | C142: =SUMIF('Project description and input'!$M:$M,B142,'Project description and input'!$L:$L) -> 0 | D142: Concrete | E142: =C142*'Tunnel double tube'!F10*2 -> 0 | F142: kg concrete | G142: Year 0 | H142: Tunnel | I142: Concrete | J142: ='Emissions factors'!B12 -> Concrete | K142: =SUMIF('Emissions factors'!B:B,Calculations!J142,'Emissions factors'!D:D) -> 0.1375 | L142: =VLOOKUP(J142,'Emissions factors'!B:C,2,FALSE) -> kg CO2e/kg | M142: 0
D143: Reinforcement steel | E143: =C142*'Tunnel double tube'!F11*2 -> 0 | F143: kg reinforcement steel | G143: Year 0 | H143: Tunnel | I143: Reinforcement Steel | J143: ='Emissions factors'!B5 -> Reinforcement steel | K143: =SUMIF('Emissions factors'!B:B,Calculations!J143,'Emissions factors'!D:D) -> 0.5663 | L143: =VLOOKUP(J143,'Emissions factors'!B:C,2,FALSE) -> kg CO2e/kg | M143: 0
D144: Safety bolts | E144: =C142*'Tunnel double tube'!F12*2 -> 0 | F144: kg steel | G144: Year 0 | H144: Tunnel | I144: Steel | J144: ='Emissions factors'!B16 -> Steel | K144: =SUMIF('Emissions factors'!B:B,Calculations!J144,'Emissions factors'!D:D) -> 2.1038 | L144: =VLOOKUP(J144,'Emissions factors'!B:C,2,FALSE) -> kg CO2e/kg | M144: 0
D145: Frost protection | E145: =C142*'Tunnel double tube'!F13*2 -> 0 | F145: m2 isolation | G145: Year 0 | H145: Tunnel | I145: Frost protection tunnel | J145: ='Emissions factors'!B18 -> XPS/concrete element | K145: =SUMIF('Emissions factors'!B:B,Calculations!J145,'Emissions factors'!D:D) -> 50.265 | L145: =VLOOKUP(J145,'Emissions factors'!B:C,2,FALSE) -> kg CO2e/m2 | M145: 0
D146: Sprayed concrete | E146: =C142*'Tunnel double tube'!F14*2 -> 0 | F146: kg shotcrete | G146: Year 0 | H146: Tunnel | I146: Frost protection tunnel | J146: ='Emissions factors'!B15 -> Shotcrete | K146: =SUMIF('Emissions factors'!B:B,Calculations!J146,'Emissions factors'!D:D) -> 0.1375 | L146: =VLOOKUP(J146,'Emissions factors'!B:C,2,FALSE) -> kg CO2e/kg | M146: =(E146*K146)/1000 -> 0
D147: PE-foam | E147: =C142*'Tunnel double tube'!F15*2 -> 0 | F147: m2 PE-foam | G147: Year 0 | H147: Tunnel | I147: Frost protection tunnel | J147: ='Emissions factors'!B13 -> PE-foam | K147: =SUMIF('Emissions factors'!B:B,Calculations!J147,'Emissions factors'!D:D) -> 14.6 | L147: =VLOOKUP(J147,'Emissions factors'!B:C,2,FALSE) -> kg CO2e/m2 | M147: 0
D148: Fiber reinforcement | E148: =C142*'Tunnel double tube'!F16*2 -> 0 | F148: kg fiber reinforcement | G148: Year 0 | H148: Tunnel | I148: Frost protection tunnel | J148: ='Emissions factors'!B24 -> Fiber reinforcement | K148: =SUMIF('Emissions factors'!B:B,Calculations!J148,'Emissions factors'!D:D) -> 0.77066 | L148: =VLOOKUP(J148,'Emissions factors'!B:C,2,FALSE) -> kg CO2e/kg | M148: =(E148*K148)/1000 -> 0
D149: Reinforcement mesh | E149: =C142*'Tunnel double tube'!F17*2 -> 0 | F149: kg reinforcement mesh | G149: Year 0 | H149: Tunnel | I149: Frost protection tunnel | J149: ='Emissions factors'!B5 -> Reinforcement steel | K149: =SUMIF('Emissions factors'!B:B,Calculations!J149,'Emissions factors'!D:D) -> 0.5663 | L149: =VLOOKUP(J149,'Emissions factors'!B:C,2,FALSE) -> kg CO2e/kg | M149: 0
D150: Plastic mebrane | E150: =C142*'Tunnel double tube'!F18*2 -> 0 | F150: m2 membrane | G150: Year 0 | H150: Tunnel | I150: Frost protection tunnel | J150: ='Emissions factors'!B23 -> Plastic mebrane | K150: =SUMIF('Emissions factors'!B:B,Calculations!J150,'Emissions factors'!D:D) -> 4.243333333 | L150: =VLOOKUP(J150,'Emissions factors'!B:C,2,FALSE) -> kg CO2e/m2 | M150: 0
D151: Wearing course stone mastic asphalt (Ska) | E151: =C142*'Tunnel double tube'!F19*2 -> 0 | F151: kg stone mastic asphalt | G151: Year 0 | H151: Tunnel | I151: Asphalt | J151: ='Emissions factors'!B7 -> Stone mastic asphalt (Ska) | K151: =SUMIF('Emissions factors'!B:B,Calculations!J151,'Emissions factors'!D:D) -> 0.061 | L151: =VLOOKUP(J151,'Emissions factors'!B:C,2,FALSE) -> kg CO2e/kg | M151: 0
D152: Binder course stone mastic asphalt (Ska) | E152: =C142*'Tunnel double tube'!F20*2 -> 0 | F152: kg stone mastic asphalt | G152: Year 0 | H152: Tunnel | I152: Asphalt | J152: ='Emissions factors'!B7 -> Stone mastic asphalt (Ska) | K152: =SUMIF('Emissions factors'!B:B,Calculations!J152,'Emissions factors'!D:D) -> 0.061 | L152: =VLOOKUP(J152,'Emissions factors'!B:C,2,FALSE) -> kg CO2e/kg | M152: 0
D153: Upper base course asphalt concrete, base (Ag) | E153: =C142*'Tunnel double tube'!F21*2 -> 0 | F153: kg asphalt concrete, base | G153: Year 0 | H153: Tunnel | I153: Asphalt | J153: ='Emissions factors'!B8 -> Asphalt concrete, base (Ag) | K153: =SUMIF('Emissions factors'!B:B,Calculations!J153,'Emissions factors'!D:D) -> 0.0341 | L153: =VLOOKUP(J153,'Emissions factors'!B:C,2,FALSE) -> kg CO2e/kg | M153: 0
D154: Guard rail/safety fence | E154: =C142*'Addition road'!D7*'Calculation factors'!D113 -> 0 | F154: kg steel | G154: Year 0 | H154: Tunnel | I154: Steel | J154: ='Emissions factors'!B16 -> Steel | K154: =SUMIF('Emissions factors'!B:B,Calculations!J154,'Emissions factors'!D:D) -> 2.1038 | L154: =VLOOKUP(J154,'Emissions factors'!B:C,2,FALSE) -> kg CO2e/kg | M154: 0
D155: Transport diesel | E155: =C142*(SUM('Tunnel double tube'!H10:H21)+('Addition road'!E7*'Calculation factors'!D113/2))*2 -> 0 | F155: litre diesel | G155: Year 0 | H155: Tunnel | I155: Diesel | J155: ='Emissions factors'!B29 -> Fossil diesel (WTW) | K155: =SUMIF('Emissions factors'!B:B,Calculations!J155,'Emissions factors'!D:D) -> 3.24 | L155: =VLOOKUP(J155,'Emissions factors'!B:C,2,FALSE) -> kg CO2e/liter | M155: 0
D156: Transport biodiesel | E156: =C142*(SUM('Tunnel double tube'!I10:I21)+('Addition road'!F7*'Calculation factors'!D113/2))*2 -> 0 | F156: litre biodiesel | G156: Year 0 | H156: Tunnel | I156: Biodiesel | J156: ='Emissions factors'!B27 -> Biodiesel (WTT) | K156: =SUMIF('Emissions factors'!B:B,Calculations!J156,'Emissions factors'!D:D) -> 1.92 | L156: =VLOOKUP(J156,'Emissions factors'!B:C,2,FALSE) -> kg CO2e/liter | M156: 0
D157: Transport electric/hydrogen | E157: =C142*(SUM('Tunnel double tube'!J10:J21)+('Addition road'!G7*'Calculation factors'!D113/2))*2 -> 0 | F157: kWh | G157: Year 0 | H157: Tunnel | I157: Electricity | J157: ='Emissions factors'!B32 -> Electricity construction phase, Norwegian mix | K157: =SUMIF('Emissions factors'!B:B,Calculations!J157,'Emissions factors'!D:D) -> 0.023777 | L157: =VLOOKUP(J157,'Emissions factors'!B:C,2,FALSE) -> kg CO2e/kWh | M157: 0
D158: Construction work diesel | E158: =2*C142*('Calculation factors'!D61*SUM('Tunnel double tube'!E27:E35)+('Addition road'!D18*'Calculation factors'!D113/2)+('Addition road'!D19*'Calculation factors'!D117/2)) -> 0 | F158: litre diesel | G158: Year 0 | H158: Tunnel | I158: Diesel | J158: ='Emissions factors'!B29 -> Fossil diesel (WTW) | K158: =SUMIF('Emissions factors'!B:B,Calculations!J158,'Emissions factors'!D:D) -> 3.24 | L158: =VLOOKUP(J158,'Emissions factors'!B:C,2,FALSE) -> kg CO2e/liter | M158: 0
D159: Construction work biodiesel | E159: =2*C142*('Calculation factors'!D61*SUM('Tunnel double tube'!F27:F35)+('Addition road'!E18*'Calculation factors'!D113/2)+('Addition road'!E19*'Calculation factors'!D117/2)) -> 0 | F159: litre biodiesel | G159: Year 0 | H159: Tunnel | I159: Biodiesel | J159: ='Emissions factors'!B27 -> Biodiesel (WTT) | K159: =SUMIF('Emissions factors'!B:B,Calculations!J159,'Emissions factors'!D:D) -> 1.92 | L159: =VLOOKUP(J159,'Emissions factors'!B:C,2,FALSE) -> kg CO2e/liter | M159: 0
D160: Construction work electric/hydrogen | E160: =2*C142*('Calculation factors'!D61*SUM('Tunnel double tube'!G27:G35)+('Addition road'!F18*'Calculation factors'!D113/2)+('Addition road'!F19*'Calculation factors'!D117/2)) -> 0 | F160: kWh | G160: Year 0 | H160: Tunnel | I160: Electricity | J160: ='Emissions factors'!B32 -> Electricity construction phase, Norwegian mix | K160: =SUMIF('Emissions factors'!B:B,Calculations!J160,'Emissions factors'!D:D) -> 0.023777 | L160: =VLOOKUP(J160,'Emissions factors'!B:C,2,FALSE) -> kg CO2e/kWh | M160: 0
B161: Cement for injection (water not included) (kg) | C161: =SUMIF('Project description and input'!$M:$M,B161,'Project description and input'!$L:$L) -> 0 | D161: Cemnet | E161: =C161 -> 0 | F161: kg sement | G161: År 0 | H161: Tunnel | I161: Frost protection tunnel | J161: ='Emissions factors'!B25 -> Cement | K161: =SUMIF('Emissions factors'!B:B,Calculations!J161,'Emissions factors'!D:D) -> 0.7551941667 | L161: =VLOOKUP(J161,'Emissions factors'!B:C,2,FALSE) -> kg CO2e/kg | M161: =(E161*K161)/1000 -> 0
D162: Transport diesel | E162: =C161*'Other concrete and injection'!E7 -> 0 | F162: litre diesel | G162: Year 0 | H162: Tunnel | I162: Diesel | J162: ='Emissions factors'!B29 -> Fossil diesel (WTW) | K162: =SUMIF('Emissions factors'!B:B,Calculations!J162,'Emissions factors'!D:D) -> 3.24 | L162: =VLOOKUP(J162,'Emissions factors'!B:C,2,FALSE) -> kg CO2e/liter | M162: =(E162*K162)/1000 -> 0
D163: Transport biodiesel | E163: =C161*'Other concrete and injection'!F7 -> 0 | F163: litre biodiesel | G163: Year 0 | H163: Tunnel | I163: Biodiesel | J163: ='Emissions factors'!B27 -> Biodiesel (WTT) | K163: =SUMIF('Emissions factors'!B:B,Calculations!J163,'Emissions factors'!D:D) -> 1.92 | L163: =VLOOKUP(J163,'Emissions factors'!B:C,2,FALSE) -> kg CO2e/liter | M163: 0
D164: Transport electric/hydrogen | E164: =C161*'Other concrete and injection'!G7 -> 0 | F164: kWh | G164: Year 0 | H164: Tunnel | I164: Electricity | J164: ='Emissions factors'!B32 -> Electricity construction phase, Norwegian mix | K164: =SUMIF('Emissions factors'!B:B,Calculations!J164,'Emissions factors'!D:D) -> 0.023777 | L164: =VLOOKUP(J164,'Emissions factors'!B:C,2,FALSE) -> kg CO2e/kWh | M164: 0
D165: Construction work diesel | E165: =C161*'Other concrete and injection'!E12 -> 0 | F165: litre diesel | G165: Year 0 | H165: Tunnel | I165: Diesel | J165: ='Emissions factors'!B29 -> Fossil diesel (WTW) | K165: =SUMIF('Emissions factors'!B:B,Calculations!J165,'Emissions factors'!D:D) -> 3.24 | L165: =VLOOKUP(J165,'Emissions factors'!B:C,2,FALSE) -> kg CO2e/liter | M165: 0
D166: Construction work biodiesel | E166: =C161*'Other concrete and injection'!F12 -> 0 | F166: litre biodiesel | G166: Year 0 | H166: Tunnel | I166: Biodiesel | J166: ='Emissions factors'!B27 -> Biodiesel (WTT) | K166: =SUMIF('Emissions factors'!B:B,Calculations!J166,'Emissions factors'!D:D) -> 1.92 | L166: =VLOOKUP(J166,'Emissions factors'!B:C,2,FALSE) -> kg CO2e/liter | M166: 0
D167: Construction work electric/hydrogen | E167: =C161*'Other concrete and injection'!G12 -> 0 | F167: kWh | G167: Year 0 | H167: Tunnel | I167: Electricity | J167: ='Emissions factors'!B32 -> Electricity construction phase, Norwegian mix | K167: =SUMIF('Emissions factors'!B:B,Calculations!J167,'Emissions factors'!D:D) -> 0.023777 | L167: =VLOOKUP(J167,'Emissions factors'!B:C,2,FALSE) -> kg CO2e/kWh | M167: 0
B168: Culvert (concrete) (m2) | C168: =SUMIF('Project description and input'!$M:$M,B168,'Project description and input'!$L:$L) -> 0 | D168: Concrete | E168: =C168*Culvert!E5 -> 0 | F168: kg concrete | G168: Year 0 | H168: Culvert | I168: Concrete | J168: ='Emissions factors'!B12 -> Concrete | K168: =SUMIF('Emissions factors'!B:B,Calculations!J168,'Emissions factors'!D:D) -> 0.1375 | L168: =VLOOKUP(J168,'Emissions factors'!B:C,2,FALSE) -> kg CO2e/kg | M168: 0
D169: Reinforcement steel | E169: =C168*Culvert!E6 -> 0 | F169: kg reinforcement steel | G169: Year 0 | H169: Culvert | I169: Reinforcement Steel | J169: ='Emissions factors'!B5 -> Reinforcement steel | K169: =SUMIF('Emissions factors'!B:B,Calculations!J169,'Emissions factors'!D:D) -> 0.5663 | L169: =VLOOKUP(J169,'Emissions factors'!B:C,2,FALSE) -> kg CO2e/kg | M169: 0
D170: Transport diesel | E170: =C168*SUM(Culvert!F5:F6) -> 0 | F170: litre diesel | G170: Year 0 | H170: Culvert | I170: Diesel | J170: ='Emissions factors'!B29 -> Fossil diesel (WTW) | K170: =SUMIF('Emissions factors'!B:B,Calculations!J170,'Emissions factors'!D:D) -> 3.24 | L170: =VLOOKUP(J170,'Emissions factors'!B:C,2,FALSE) -> kg CO2e/liter | M170: 0
D171: Transport biodiesel | E171: =C168*SUM(Culvert!G5:G6) -> 0 | F171: litre biodiesel | G171: Year 0 | H171: Culvert | I171: Biodiesel | J171: ='Emissions factors'!B27 -> Biodiesel (WTT) | K171: =SUMIF('Emissions factors'!B:B,Calculations!J171,'Emissions factors'!D:D) -> 1.92 | L171: =VLOOKUP(J171,'Emissions factors'!B:C,2,FALSE) -> kg CO2e/liter | M171: 0
D172: Transport electric/hydrogen | E172: =C168*SUM(Culvert!H5:H6) -> 0 | F172: kWh | G172: Year 0 | H172: Culvert | I172: Electricity | J172: ='Emissions factors'!B32 -> Electricity construction phase, Norwegian mix | K172: =SUMIF('Emissions factors'!B:B,Calculations!J172,'Emissions factors'!D:D) -> 0.023777 | L172: =VLOOKUP(J172,'Emissions factors'!B:C,2,FALSE) -> kg CO2e/kWh | M172: 0
D173: Construction work diesel | F173: litre diesel | G173: Year 0 | H173: Culvert | I173: Diesel | J173: ='Emissions factors'!B29 -> Fossil diesel (WTW) | K173: =SUMIF('Emissions factors'!B:B,Calculations!J173,'Emissions factors'!D:D) -> 3.24 | L173: =VLOOKUP(J173,'Emissions factors'!B:C,2,FALSE) -> kg CO2e/liter | M173: 0
D174: Construction work biodiesel | F174: litre biodiesel | G174: Year 0 | H174: Culvert | I174: Biodiesel | J174: ='Emissions factors'!B27 -> Biodiesel (WTT) | K174: =SUMIF('Emissions factors'!B:B,Calculations!J174,'Emissions factors'!D:D) -> 1.92 | L174: =VLOOKUP(J174,'Emissions factors'!B:C,2,FALSE) -> kg CO2e/liter | M174: 0
D175: Construction work electric/hydrogen | E175: ='Project description and input'!C8*Culvert!G11 -> 0 | F175: kWh | G175: Year 0 | H175: Culvert | I175: Electricity | J175: ='Emissions factors'!B32 -> Electricity construction phase, Norwegian mix | K175: =SUMIF('Emissions factors'!B:B,Calculations!J175,'Emissions factors'!D:D) -> 0.023777 | L175: =VLOOKUP(J175,'Emissions factors'!B:C,2,FALSE) -> kg CO2e/kWh | M175: 0
B176: Ground stabilization with lime cement piles (kg) | C176: =SUMIF('Project description and input'!$M:$M,B176,'Project description and input'!$L:$L) -> 0 | D176: Lime cement | E176: =C176 -> 0 | F176: kg lime cement | G176: År 0 | H176: Open road | I176: Lime cement | J176: ='Emissions factors'!B22 -> Lime cement | K176: =SUMIF('Emissions factors'!B:B,Calculations!J176,'Emissions factors'!D:D) -> 0.9000970833 | L176: =VLOOKUP(J176,'Emissions factors'!B:C,2,FALSE) -> kg CO2e/kg | M176: 0
D177: Transport diesel | E177: =C176*'Ground stabilization'!D5 -> 0 | F177: litre diesel | G177: Year 0 | H177: Open road | I177: Diesel | J177: ='Emissions factors'!B29 -> Fossil diesel (WTW) | K177: =SUMIF('Emissions factors'!B:B,Calculations!J177,'Emissions factors'!D:D) -> 3.24 | L177: =VLOOKUP(J177,'Emissions factors'!B:C,2,FALSE) -> kg CO2e/liter | M177: 0
D178: Transport biodiesel | E178: =C176*'Ground stabilization'!E5 -> 0 | F178: litre biodiesel | G178: Year 0 | H178: Open road | I178: Biodiesel | J178: ='Emissions factors'!B27 -> Biodiesel (WTT) | K178: =SUMIF('Emissions factors'!B:B,Calculations!J178,'Emissions factors'!D:D) -> 1.92 | L178: =VLOOKUP(J178,'Emissions factors'!B:C,2,FALSE) -> kg CO2e/liter | M178: 0
D179: Transport electric/hydrogen | E179: =C176*'Ground stabilization'!F5 -> 0 | F179: kWh | G179: Year 0 | H179: Open road | I179: Electricity | J179: ='Emissions factors'!B32 -> Electricity construction phase, Norwegian mix | K179: =SUMIF('Emissions factors'!B:B,Calculations!J179,'Emissions factors'!D:D) -> 0.023777 | L179: =VLOOKUP(J179,'Emissions factors'!B:C,2,FALSE) -> kg CO2e/kWh | M179: 0
D180: Construction work diesel | E180: =C176*'Ground stabilization'!D11 -> 0 | F180: litre diesel | G180: Year 0 | H180: Open road | I180: Diesel | J180: ='Emissions factors'!B29 -> Fossil diesel (WTW) | K180: =SUMIF('Emissions factors'!B:B,Calculations!J180,'Emissions factors'!D:D) -> 3.24 | L180: =VLOOKUP(J180,'Emissions factors'!B:C,2,FALSE) -> kg CO2e/liter | M180: 0
D181: Construction work biodiesel | E181: =C176*'Ground stabilization'!E11 -> 0 | F181: litre biodiesel | G181: Year 0 | H181: Open road | I181: Biodiesel | J181: ='Emissions factors'!B27 -> Biodiesel (WTT) | K181: =SUMIF('Emissions factors'!B:B,Calculations!J181,'Emissions factors'!D:D) -> 1.92 | L181: =VLOOKUP(J181,'Emissions factors'!B:C,2,FALSE) -> kg CO2e/liter | M181: 0
D182: Construction work electric/hydrogen | E182: =C176*'Ground stabilization'!F11 -> 0 | F182: kWh | G182: Year 0 | H182: Open road | I182: Electricity | J182: ='Emissions factors'!B32 -> Electricity construction phase, Norwegian mix | K182: =SUMIF('Emissions factors'!B:B,Calculations!J182,'Emissions factors'!D:D) -> 0.023777 | L182: =VLOOKUP(J182,'Emissions factors'!B:C,2,FALSE) -> kg CO2e/kWh | M182: 0
B183: Walls (m) | C183: =SUMIF('Project description and input'!$M:$M,B183,'Project description and input'!$L:$L) -> 0 | D183: Concrete | E183: =C183*'Addition road'!D12 -> 0 | F183: kg concrete | G183: År 0 | H183: Open road | I183: Concrete | J183: ='Emissions factors'!B12 -> Concrete | K183: =SUMIF('Emissions factors'!B:B,Calculations!J183,'Emissions factors'!D:D) -> 0.1375 | L183: =VLOOKUP(J183,'Emissions factors'!B:C,2,FALSE) -> kg CO2e/kg | M183: =(E183*K183)/1000 -> 0
D184: Natural stone | E184: =C183*'Addition road'!D13 -> 0 | F184: kg natural stone | G184: År 0 | H184: Open road | I184: Crushed rock and rock | J184: ='Emissions factors'!B20 -> Natural stone | K184: =SUMIF('Emissions factors'!B:B,Calculations!J184,'Emissions factors'!D:D) -> 0.11233625 | L184: =VLOOKUP(J184,'Emissions factors'!B:C,2,FALSE) -> kg CO2e/kg | M184: 0
D185: Transport diesel | E185: =C183*SUM('Addition road'!E12:E13) -> 0 | F185: litre diesel | G185: Year 0 | H185: Open road | I185: Diesel | J185: ='Emissions factors'!B29 -> Fossil diesel (WTW) | K185: =SUMIF('Emissions factors'!B:B,Calculations!J185,'Emissions factors'!D:D) -> 3.24 | L185: =VLOOKUP(J185,'Emissions factors'!B:C,2,FALSE) -> kg CO2e/liter | M185: 0
D186: Transport biodiesel | E186: =C183*SUM('Addition road'!F12:F13) -> 0 | F186: litre biodiesel | G186: Year 0 | H186: Open road | I186: Biodiesel | J186: ='Emissions factors'!B27 -> Biodiesel (WTT) | K186: =SUMIF('Emissions factors'!B:B,Calculations!J186,'Emissions factors'!D:D) -> 1.92 | L186: =VLOOKUP(J186,'Emissions factors'!B:C,2,FALSE) -> kg CO2e/liter | M186: 0
D187: Transport electric/hydrogen | E187: =C183*SUM('Addition road'!G12:G13) -> 0 | F187: kWh | G187: Year 0 | H187: Open road | I187: Electricity | J187: ='Emissions factors'!B32 -> Electricity construction phase, Norwegian mix | K187: =SUMIF('Emissions factors'!B:B,Calculations!J187,'Emissions factors'!D:D) -> 0.023777 | L187: =VLOOKUP(J187,'Emissions factors'!B:C,2,FALSE) -> kg CO2e/kWh | M187: 0
D188: Construction work diesel | E188: =C183*'Addition road'!D22 -> 0 | F188: litre diesel | G188: Year 0 | H188: Open road | I188: Diesel | J188: ='Emissions factors'!B29 -> Fossil diesel (WTW) | K188: =SUMIF('Emissions factors'!B:B,Calculations!J188,'Emissions factors'!D:D) -> 3.24 | L188: =VLOOKUP(J188,'Emissions factors'!B:C,2,FALSE) -> kg CO2e/liter | M188: 0
D189: Construction work biodiesel | E189: =C183*'Addition road'!E22 -> 0 | F189: litre biodiesel | G189: Year 0 | H189: Open road | I189: Biodiesel | J189: ='Emissions factors'!B27 -> Biodiesel (WTT) | K189: =SUMIF('Emissions factors'!B:B,Calculations!J189,'Emissions factors'!D:D) -> 1.92 | L189: =VLOOKUP(J189,'Emissions factors'!B:C,2,FALSE) -> kg CO2e/liter | M189: 0
D190: Construction work electric/hydrogen | E190: =C183*'Addition road'!F22 -> 0 | F190: kWh | G190: Year 0 | H190: Open road | I190: Electricity | J190: ='Emissions factors'!B32 -> Electricity construction phase, Norwegian mix | K190: =SUMIF('Emissions factors'!B:B,Calculations!J190,'Emissions factors'!D:D) -> 0.023777 | L190: =VLOOKUP(J190,'Emissions factors'!B:C,2,FALSE) -> kg CO2e/kWh | M190: 0
B191: Noise barriers (m) | C191: =SUMIF('Project description and input'!$M:$M,B191,'Project description and input'!$L:$L) -> 0 | D191: Wood | E191: =C191*'Addition road'!D9 -> 0 | F191: kg wood | G191: År 0 | H191: Open road | I191: Wood | J191: ='Emissions factors'!B19 -> Wood (glulam) | K191: =SUMIF('Emissions factors'!B:B,Calculations!J191,'Emissions factors'!D:D) -> 0.1570744681 | L191: =VLOOKUP(J191,'Emissions factors'!B:C,2,FALSE) -> kg CO2e/kg | M191: 0
D192: Steel | E192: =C191*'Addition road'!D10 -> 0 | F192: kg steel | G192: År 0 | H192: Open road | I192: Steel | J192: ='Emissions factors'!B16 -> Steel | K192: =SUMIF('Emissions factors'!B:B,Calculations!J192,'Emissions factors'!D:D) -> 2.1038 | L192: =VLOOKUP(J192,'Emissions factors'!B:C,2,FALSE) -> kg CO2e/kg | M192: 0
D193: Concrete | E193: =C191*'Addition road'!D11 -> 0 | F193: kg concrete | G193: År 0 | H193: Open road | I193: Concrete | J193: ='Emissions factors'!B12 -> Concrete | K193: =SUMIF('Emissions factors'!B:B,Calculations!J193,'Emissions factors'!D:D) -> 0.1375 | L193: =VLOOKUP(J193,'Emissions factors'!B:C,2,FALSE) -> kg CO2e/kg | M193: =(E193*K193)/1000 -> 0
D194: Transport diesel | E194: =C191*SUM('Addition road'!E9:E11) -> 0 | F194: litre diesel | G194: Year 0 | H194: Open road | I194: Diesel | J194: ='Emissions factors'!B29 -> Fossil diesel (WTW) | K194: =SUMIF('Emissions factors'!B:B,Calculations!J194,'Emissions factors'!D:D) -> 3.24 | L194: =VLOOKUP(J194,'Emissions factors'!B:C,2,FALSE) -> kg CO2e/liter | M194: 0
D195: Transport biodiesel | E195: =C191*SUM('Addition road'!F9:F11) -> 0 | F195: litre biodiesel | G195: Year 0 | H195: Open road | I195: Biodiesel | J195: ='Emissions factors'!B27 -> Biodiesel (WTT) | K195: =SUMIF('Emissions factors'!B:B,Calculations!J195,'Emissions factors'!D:D) -> 1.92 | L195: =VLOOKUP(J195,'Emissions factors'!B:C,2,FALSE) -> kg CO2e/liter | M195: 0
D196: Transport electric/hydrogen | E196: =C191*SUM('Addition road'!G9:G11) -> 0 | F196: kWh | G196: Year 0 | H196: Open road | I196: Electricity | J196: ='Emissions factors'!B32 -> Electricity construction phase, Norwegian mix | K196: =SUMIF('Emissions factors'!B:B,Calculations!J196,'Emissions factors'!D:D) -> 0.023777 | L196: =VLOOKUP(J196,'Emissions factors'!B:C,2,FALSE) -> kg CO2e/kWh | M196: 0
D197: Construction work diesel | E197: =C191*'Addition road'!D21 -> 0 | F197: litre diesel | G197: Year 0 | H197: Open road | I197: Diesel | J197: ='Emissions factors'!B29 -> Fossil diesel (WTW) | K197: =SUMIF('Emissions factors'!B:B,Calculations!J197,'Emissions factors'!D:D) -> 3.24 | L197: =VLOOKUP(J197,'Emissions factors'!B:C,2,FALSE) -> kg CO2e/liter | M197: 0
D198: Construction work biodiesel | E198: =C191*'Addition road'!E21 -> 0 | F198: litre biodiesel | G198: Year 0 | H198: Open road | I198: Biodiesel | J198: ='Emissions factors'!B27 -> Biodiesel (WTT) | K198: =SUMIF('Emissions factors'!B:B,Calculations!J198,'Emissions factors'!D:D) -> 1.92 | L198: =VLOOKUP(J198,'Emissions factors'!B:C,2,FALSE) -> kg CO2e/liter | M198: 0
D199: Construction work electric/hydrogen | E199: =C191*'Addition road'!F21 -> 0 | F199: kWh | G199: Year 0 | H199: Open road | I199: Electricity | J199: ='Emissions factors'!B32 -> Electricity construction phase, Norwegian mix | K199: =SUMIF('Emissions factors'!B:B,Calculations!J199,'Emissions factors'!D:D) -> 0.023777 | L199: =VLOOKUP(J199,'Emissions factors'!B:C,2,FALSE) -> kg CO2e/kWh | M199: 0
B200: Other concrete (m3) | C200: =SUMIF('Project description and input'!$M:$M,B200,'Project description and input'!$L:$L) -> 0 | D200: Concrete | E200: =C200*'Other concrete and injection'!D5 -> 0 | F200: kg concrete | G200: År 0 | H200: Open road | I200: Concrete | J200: ='Emissions factors'!B12 -> Concrete | K200: =SUMIF('Emissions factors'!B:B,Calculations!J200,'Emissions factors'!D:D) -> 0.1375 | L200: =VLOOKUP(J200,'Emissions factors'!B:C,2,FALSE) -> kg CO2e/kg | M200: 0
D201: Transport diesel | E201: =C200*'Other concrete and injection'!E5 -> 0 | F201: liter diesel | G201: År 0 | H201: Open road | I201: Diesel | J201: ='Emissions factors'!B29 -> Fossil diesel (WTW) | K201: =SUMIF('Emissions factors'!B:B,Calculations!J201,'Emissions factors'!D:D) -> 3.24 | L201: =VLOOKUP(J201,'Emissions factors'!B:C,2,FALSE) -> kg CO2e/liter | M201: 0
... 222 more rows

Sheet Main road
B2: Materials and transport
B3: Category | C3: Material demand | E3: Transport | H3: Comments
C4: Volume per area [m3/m2] | D4: Mass per area [kg/m2] | E4: Amount of diesel [litre/m2] | F4: Amount of bio [litre/m2] | G4: Amount of elec. [kWh/m2]
B5: Wearing course (Ska) | C5: ='Calculation factors'!D23 -> 0.04 | D5: =C5*'Calculation factors'!D6 -> 100 | E5: =(D5/1000)*'Transport and energy demand'!D30*'Transport and energy demand'!D7*'Transport and energy demand'!N30 -> 0.1 | F5: =(D5/1000)*'Transport and energy demand'!D30*'Transport and energy demand'!D7*'Transport and energy demand'!M30 -> 0 | G5: =(D5/1000)*'Transport and energy demand'!H30*'Transport and energy demand'!D7*'Transport and energy demand'!L30 -> 0
B6: Binder course (Agb) | C6: ='Calculation factors'!D24 -> 0.04 | D6: =C6*'Calculation factors'!D7 -> 100 | E6: =(D6/1000)*'Transport and energy demand'!D30*'Transport and energy demand'!D7*'Transport and energy demand'!N30 -> 0.1 | F6: =(D6/1000)*'Transport and energy demand'!D30*'Transport and energy demand'!D7*'Transport and energy demand'!M30 -> 0 | G6: =(D6/1000)*'Transport and energy demand'!H30*'Transport and energy demand'!D7*'Transport and energy demand'!L30 -> 0
B7: Upper base course (Ag) | C7: ='Calculation factors'!D25 -> 0.13 | D7: =C7*'Calculation factors'!D8 -> 312 | E7: =(D7/1000)*'Transport and energy demand'!D31*'Transport and energy demand'!D8*'Transport and energy demand'!N31 -> 0.312 | F7: =(D7/1000)*'Transport and energy demand'!D31*'Transport and energy demand'!D8*'Transport and energy demand'!M31 -> 0 | G7: =(D7/1000)*'Transport and energy demand'!H31*'Transport and energy demand'!D8*'Transport and energy demand'!L31 -> 0
B10: Constructions work
B11: Category | C11: Type of machinery | D11: Construction work | H11: Comments
D12: Construction work [m2/h] | E12: Amount of diesel [litre/m2] | F12: Amount of bio [litre/m2] | G12: Amount of elec. [kWh/m2]
B13: Wearing course | C13: Steamroller | D13: =('Transport and energy demand'!D67*1000)/D5 -> 750 | E13: =('Transport and energy demand'!D49/D13)*'Transport and energy demand'!N49 -> 0.004 | F13: =('Transport and energy demand'!D49/D13)*'Transport and energy demand'!M49 -> 0 | G13: =('Transport and energy demand'!H49/D13)*'Transport and energy demand'!L49 -> 0
C14: Tractor | D14: =('Transport and energy demand'!D68*1000)/D5 -> 3000 | E14: =('Transport and energy demand'!D50/D14)*'Transport and energy demand'!N50 -> 0.001666666667 | F14: =('Transport and energy demand'!D50/D14)*'Transport and energy demand'!M50 -> 0 | G14: =('Transport and energy demand'!H50/D14)*'Transport and energy demand'!L50 -> 0
C15: Paver | D15: =('Transport and energy demand'!D69*1000)/D5 -> 37.5 | E15: =('Transport and energy demand'!D51/D15)*'Transport and energy demand'!N51 -> 0.08 | F15: =('Transport and energy demand'!D51/D15)*'Transport and energy demand'!M51 -> 0 | G15: =('Transport and energy demand'!H51/D15)*'Transport and energy demand'!L51 -> 0
B16: Binder course | C16: Steamroller | D16: =('Transport and energy demand'!D67*1000)/D6 -> 750 | E16: =('Transport and energy demand'!D49/D16)*'Transport and energy demand'!N49 -> 0.004 | F16: =('Transport and energy demand'!D49/D16)*'Transport and energy demand'!M49 -> 0 | G16: =('Transport and energy demand'!H49/D16)*'Transport and energy demand'!L49 -> 0
C17: Tractor | D17: =('Transport and energy demand'!D68*1000)/D6 -> 3000 | E17: =('Transport and energy demand'!D50/D17)*'Transport and energy demand'!N50 -> 0.001666666667 | F17: =('Transport and energy demand'!D50/D17)*'Transport and energy demand'!M50 -> 0 | G17: =('Transport and energy demand'!H50/D17)*'Transport and energy demand'!L50 -> 0
C18: Paver | D18: =('Transport and energy demand'!D69*1000)/D6 -> 37.5 | E18: =('Transport and energy demand'!D51/D18)*'Transport and energy demand'!N51 -> 0.08 | F18: =('Transport and energy demand'!D51/D18)*'Transport and energy demand'!M51 -> 0 | G18: =('Transport and energy demand'!H51/D18)*'Transport and energy demand'!L51 -> 0
B19: Upper base course | C19: Steamroller | D19: =('Transport and energy demand'!D67*1000)/D7 -> 240.3846154 | E19: =('Transport and energy demand'!D49/D19)*'Transport and energy demand'!N49 -> 0.01248 | F19: =('Transport and energy demand'!D49/D19)*'Transport and energy demand'!M49 -> 0 | G19: =('Transport and energy demand'!H49/D19)*'Transport and energy demand'!L49 -> 0
C20: Tractor | D20: =('Transport and energy demand'!D68*1000)/D7 -> 961.5384615 | E20: =('Transport and energy demand'!D50/D20)*'Transport and energy demand'!N50 -> 0.0052 | F20: =('Transport and energy demand'!D50/D20)*'Transport and energy demand'!M50 -> 0 | G20: =('Transport and energy demand'!H50/D20)*'Transport and energy demand'!L50 -> 0
C21: Paver | D21: =('Transport and energy demand'!D69*1000)/D7 -> 12.01923077 | E21: =('Transport and energy demand'!D51/D21)*'Transport and energy demand'!N51 -> 0.2496 | F21: =('Transport and energy demand'!D51/D21)*'Transport and energy demand'!M51 -> 0 | G21: =('Transport and energy demand'!H51/D21)*'Transport and energy demand'!L51 -> 0

Sheet Secondary road
B2: Materials and transport
B3: Category | C3: Material demand | E3: Transport | H3: Kommentar
C4: Volume per area [m3/m2] | D4: Mass per area [kg/m2] | E4: Amount of diesel [litre/m2] | F4: Amount of bio [litre/m2] | G4: Amount of elec. [kWh/m2]
B5: Wearing course (Agb) | C5: ='Calculation factors'!D23 -> 0.04 | D5: =C5*'Calculation factors'!D7 -> 100 | E5: =(D5/1000)*'Transport and energy demand'!D30*'Transport and energy demand'!D7*'Transport and energy demand'!N30 -> 0.1 | F5: =(D5/1000)*'Transport and energy demand'!D30*'Transport and energy demand'!D7*'Transport and energy demand'!M30 -> 0 | G5: =(D5/1000)*'Transport and energy demand'!H30*'Transport and energy demand'!D7*'Transport and energy demand'!L30 -> 0
B6: Binder course (Agb) | C6: ='Calculation factors'!D24 -> 0.04 | D6: =C6*'Calculation factors'!D7 -> 100 | E6: =(D6/1000)*'Transport and energy demand'!D30*'Transport and energy demand'!D7*'Transport and energy demand'!N30 -> 0.1 | F6: =(D6/1000)*'Transport and energy demand'!D30*'Transport and energy demand'!D7*'Transport and energy demand'!M30 -> 0 | G6: =(D6/1000)*'Transport and energy demand'!H30*'Transport and energy demand'!D7*'Transport and energy demand'!L30 -> 0
B7: Upper base course (Ag) | C7: ='Calculation factors'!D25 -> 0.13 | D7: =C7*'Calculation factors'!D8 -> 312 | E7: =(D7/1000)*'Transport and energy demand'!D31*'Transport and energy demand'!D8*'Transport and energy demand'!N31 -> 0.312 | F7: =(D7/1000)*'Transport and energy demand'!D31*'Transport and energy demand'!D8*'Transport and energy demand'!M31 -> 0 | G7: =(D7/1000)*'Transport and energy demand'!H31*'Transport and energy demand'!D8*'Transport and energy demand'!L31 -> 0
B10: Constructions work
B11: Category | C11: Type of machinery | D11: Construction work | H11: Kommentar
D12: Construction work [m2/h] | E12: Amount of diesel [litre/m2] | F12: Amount of bio [litre/m2] | G12: Amount of elec. [kWh/m2]
B13: Wearing course | C13: Steamroller | D13: =('Transport and energy demand'!D67*1000)/D5 -> 750 | E13: =('Transport and energy demand'!D49/D13)*'Transport and energy demand'!N49 -> 0.004 | F13: =('Transport and energy demand'!D49/D13)*'Transport and energy demand'!M49 -> 0 | G13: =('Transport and energy demand'!H49/D13)*'Transport and energy demand'!L49 -> 0
C14: Tractor | D14: =('Transport and energy demand'!D68*1000)/D5 -> 3000 | E14: =('Transport and energy demand'!D50/D14)*'Transport and energy demand'!N50 -> 0.001666666667 | F14: =('Transport and energy demand'!D50/D14)*'Transport and energy demand'!M50 -> 0 | G14: =('Transport and energy demand'!H50/D14)*'Transport and energy demand'!L50 -> 0
C15: Paver | D15: =('Transport and energy demand'!D69*1000)/D5 -> 37.5 | E15: =('Transport and energy demand'!D51/D15)*'Transport and energy demand'!N51 -> 0.08 | F15: =('Transport and energy demand'!D51/D15)*'Transport and energy demand'!M51 -> 0 | G15: =('Transport and energy demand'!H51/D15)*'Transport and energy demand'!L51 -> 0
B16: Binder course | C16: Steamroller | D16: =('Transport and energy demand'!D67*1000)/D6 -> 750 | E16: =('Transport and energy demand'!D49/D16)*'Transport and energy demand'!N49 -> 0.004 | F16: =('Transport and energy demand'!D49/D16)*'Transport and energy demand'!M49 -> 0 | G16: =('Transport and energy demand'!H49/D16)*'Transport and energy demand'!L49 -> 0
C17: Tractor | D17: =('Transport and energy demand'!D68*1000)/D6 -> 3000 | E17: =('Transport and energy demand'!D50/D17)*'Transport and energy demand'!N50 -> 0.001666666667 | F17: =('Transport and energy demand'!D50/D17)*'Transport and energy demand'!M50 -> 0 | G17: =('Transport and energy demand'!H50/D17)*'Transport and energy demand'!L50 -> 0
C18: Paver | D18: =('Transport and energy demand'!D69*1000)/D6 -> 37.5 | E18: =('Transport and energy demand'!D51/D18)*'Transport and energy demand'!N51 -> 0.08 | F18: =('Transport and energy demand'!D51/D18)*'Transport and energy demand'!M51 -> 0 | G18: =('Transport and energy demand'!H51/D18)*'Transport and energy demand'!L51 -> 0
B19: Upper base course | C19: Steamroller | D19: =('Transport and energy demand'!D67*1000)/D7 -> 240.3846154 | E19: =('Transport and energy demand'!D49/D19)*'Transport and energy demand'!N49 -> 0.01248 | F19: =('Transport and energy demand'!D49/D19)*'Transport and energy demand'!M49 -> 0 | G19: =('Transport and energy demand'!H49/D19)*'Transport and energy demand'!L49 -> 0
C20: Tractor | D20: =('Transport and energy demand'!D68*1000)/D7 -> 961.5384615 | E20: =('Transport and energy demand'!D50/D20)*'Transport and energy demand'!N50 -> 0.0052 | F20: =('Transport and energy demand'!D50/D20)*'Transport and energy demand'!M50 -> 0 | G20: =('Transport and energy demand'!H50/D20)*'Transport and energy demand'!L50 -> 0
C21: Paver | D21: =('Transport and energy demand'!D69*1000)/D7 -> 12.01923077 | E21: =('Transport and energy demand'!D51/D21)*'Transport and energy demand'!N51 -> 0.2496 | F21: =('Transport and energy demand'!D51/D21)*'Transport and energy demand'!M51 -> 0 | G21: =('Transport and energy demand'!H51/D21)*'Transport and energy demand'!L51 -> 0

Sheet Construction road
B2: Materials and transport
B3: Category | C3: Material demand | E3: Transport | H3: Comments
C4: Volume per area [m3/m2] | D4: Mass per area [kg/m2] | E4: Amount of diesel [litre/m2] | F4: Amount of bio [litre/m2] | G4: Amount of elec. [kWh/m2]
B5: Upper base course (Ag) | C5: ='Calculation factors'!D25 -> 0.13 | D5: =C5*'Calculation factors'!D8 -> 312 | E5: =(D5/1000)*'Transport and energy demand'!D31*'Transport and energy demand'!D8*'Transport and energy demand'!N31 -> 0.312 | F5: =(D5/1000)*'Transport and energy demand'!D31*'Transport and energy demand'!D8*'Transport and energy demand'!M31 -> 0 | G5: =(D5/1000)*'Transport and energy demand'!H31*'Transport and energy demand'!D8*'Transport and energy demand'!L31 -> 0
B8: Construction work
B9: Category | C9: Type of machinery | D9: Construction work | H9: Comments
D10: Construction work [m2/h] | E10: Amount of diesel [litre/m2] | F10: Amount of bio [litre/m2] | G10: Amount of elec. [kWh/m2]
B11: Upper base course | C11: Steamroller | D11: =('Transport and energy demand'!D67*1000)/D5 -> 240.3846154 | E11: =('Transport and energy demand'!D49/D11)*'Transport and energy demand'!N49 -> 0.01248 | F11: =('Transport and energy demand'!D49/D11)*'Transport and energy demand'!M49 -> 0 | G11: =('Transport and energy demand'!H49/D11)*'Transport and energy demand'!L49 -> 0
C12: Tractor | D12: =('Transport and energy demand'!D68*1000)/D5 -> 961.5384615 | E12: =('Transport and energy demand'!D50/D12)*'Transport and energy demand'!N50 -> 0.0052 | F12: =('Transport and energy demand'!D50/D12)*'Transport and energy demand'!M50 -> 0 | G12: =('Transport and energy demand'!H50/D12)*'Transport and energy demand'!L50 -> 0
C13: Paver | D13: =('Transport and energy demand'!D69*1000)/D5 -> 12.01923077 | E13: =('Transport and energy demand'!D51/D13)*'Transport and energy demand'!N51 -> 0.2496 | F13: =('Transport and energy demand'!D51/D13)*'Transport and energy demand'!M51 -> 0 | G13: =('Transport and energy demand'!H51/D13)*'Transport and energy demand'!L51 -> 0

Sheet Tunnel single tube
B1: Tunnel single tube
B2: Background data
B3: Total length of single tube tunnels [m] | C3: =Calculations!C123 -> 0 | D3: (Collected from input tab/calculations)
B4: Number of single tube tunnels | C4: ='Project description and input'!C6 -> 0
B5: Tunnel cross section | C5: ='Calculation factors'!D60 -> 10.5
B7: Materialer og transport
B8: Category | C8: Type of material | D8: Materialmengder | H8: Transport | K8: Kommentar
D9: Volume per area [m3/m2] | E9: Mass per area [kg/m2] | F9: Amount of material [kg/m] | G9: Amount of material [m2/m] | H9: Amount of diesel [litre/m] | I9: Amount of bio [litre/m] | J9: Amount of elec. [kWh/m]
B10: Construction | C10: Concrete portal | D10: =IFERROR(('Calculation factors'!D62*2*C4)/('Calculation factors'!D60*'Tunnel single tube'!C3),0) -> 0 | E10: =D10*'Calculation factors'!D4 -> 0 | F10: =E10*'Calculation factors'!D60 -> 0 | H10: =(F10/1000)*'Transport and energy demand'!D33*'Transport and energy demand'!D10*'Transport and energy demand'!N33 -> 0 | I10: =(F10/1000)*'Transport and energy demand'!D33*'Transport and energy demand'!D10*'Transport and energy demand'!M33 -> 0 | J10: =(F10/1000)*'Transport and energy demand'!H33*'Transport and energy demand'!D10*'Transport and energy demand'!L33 -> 0
C11: Reinforcement portal | E11: =IFERROR(('Calculation factors'!D64*2*C4)/('Calculation factors'!D60*'Tunnel single tube'!C3),0) -> 0 | F11: =E11*'Calculation factors'!D60 -> 0 | H11: =(F11/1000)*'Transport and energy demand'!D35*'Transport and energy demand'!D12*'Transport and energy demand'!N35 -> 0 | I11: =(F11/1000)*'Transport and energy demand'!D35*'Transport and energy demand'!D12*'Transport and energy demand'!M35 -> 0 | J11: =(F11/1000)*'Transport and energy demand'!H35*'Transport and energy demand'!D12*'Transport and energy demand'!L35 -> 0
C12: Safety bolts | E12: ='Calculation factors'!D47/9.5 -> 4.631578947 | F12: ='Calculation factors'!D47*('Calculation factors'!D60/9.5) -> 48.63157895 | H12: =(F12/1000)*'Transport and energy demand'!D34*'Transport and energy demand'!D11*'Transport and energy demand'!N34 -> 1.556210526 | I12: =(F12/1000)*'Transport and energy demand'!D34*'Transport and energy demand'!D11*'Transport and energy demand'!M34 -> 0 | J12: =(F12/1000)*'Transport and energy demand'!H34*'Transport and energy demand'!D11*'Transport and energy demand'!L34 -> 0 | K12: Calculation taken from "Metoderapport"
B13: Frost protection arch | C13: XPS-/concrete material | E13: =(VLOOKUP(C5,'Calculation factors'!M61:S72,3,FALSE)*'Calculation factors'!D12*'Calculation factors'!D29)/C5 -> 760.6186381 | F13: =E13*C5 -> 7986.4957 | G13: =IF(E13=0,0,VLOOKUP(C5,'Calculation factors'!M61:S72,3,FALSE)) -> 22.13 | H13: =(F13/1000)*'Transport and energy demand'!D37*'Transport and energy demand'!D14*'Transport and energy demand'!N37 -> 31.9459828 | I13: =(F13/1000)*'Transport and energy demand'!D37*'Transport and energy demand'!D14*'Transport and energy demand'!M37 -> 0 | J13: =(F13/1000)*'Transport and energy demand'!H37*'Transport and energy demand'!D14*'Transport and energy demand'!L37 -> 0
C14: Sprayed concrete | D14: =_xlfn.XLOOKUP(C5,'Calculation factors'!M61:M72,'Calculation factors'!O61:O72,'Calculation factors'!O66)*'Calculation factors'!D30/C5 -> 0 | E14: =D14*'Calculation factors'!D20 -> 0 | F14: =E14*C5 -> 0 | G14: =IF(E14=0,0,_xlfn.XLOOKUP(C5,'Calculation factors'!M61:M72,'Calculation factors'!O61:O72,'Calculation factors'!O66)) -> 0 | H14: =(F14/1000)*'Transport and energy demand'!D43*'Transport and energy demand'!D20*'Transport and energy demand'!N43 -> 0 | I14: =(F14/1000)*'Transport and energy demand'!D43*'Transport and energy demand'!D20*'Transport and energy demand'!M43 -> 0 | J14: =(F14/1000)*'Transport and energy demand'!H43*'Transport and energy demand'!D20*'Transport and energy demand'!L43 -> 0
C15: PE-foam | D15: =_xlfn.XLOOKUP(C5,'Calculation factors'!M61:M72,'Calculation factors'!O61:O72,'Calculation factors'!O66)*'Calculation factors'!D31/'Tunnel single tube'!C5 -> 0 | E15: =D15*'Calculation factors'!D21 -> 0 | F15: =E15*C5 -> 0 | G15: =IF(E15=0,0,_xlfn.XLOOKUP(C5,'Calculation factors'!M61:M72,'Calculation factors'!O61:O72,'Calculation factors'!O66)) -> 0 | H15: =(F15/1000)*'Transport and energy demand'!D44*'Transport and energy demand'!D21*'Transport and energy demand'!N44 -> 0 | I15: =(F15/1000)*'Transport and energy demand'!D44*'Transport and energy demand'!D21*'Transport and energy demand'!M44 -> 0 | J15: =(F15/1000)*'Transport and energy demand'!H44*'Transport and energy demand'!D21*'Transport and energy demand'!L44 -> 0
C16: Fiber reinforcement | E16: =D14*'Calculation factors'!D32 -> 0 | F16: =E16*C5 -> 0 | H16: =(F16/1000)*'Transport and energy demand'!D45*'Transport and energy demand'!D22*'Transport and energy demand'!N45 -> 0 | I16: =(F16/1000)*'Transport and energy demand'!D45*'Transport and energy demand'!D22*'Transport and energy demand'!M45 -> 0 | J16: =(F16/1000)*'Transport and energy demand'!H45*'Transport and energy demand'!D22*'Transport and energy demand'!L45 -> 0
C17: Reinforcement mesh | E17: =_xlfn.XLOOKUP(C5,'Calculation factors'!M61:M72,'Calculation factors'!O61:O72,'Calculation factors'!O66)/C5*'Calculation factors'!D33 -> 0 | F17: =E17*C5 -> 0 | G17: =IF(E17=0,0,_xlfn.XLOOKUP(C5,'Calculation factors'!M61:M72,'Calculation factors'!O61:O72,'Calculation factors'!O66)) -> 0 | H17: =(F17/1000)*'Transport and energy demand'!D46*'Transport and energy demand'!D23*'Transport and energy demand'!N46 -> 0 | I17: =(F17/1000)*'Transport and energy demand'!D46*'Transport and energy demand'!D23*'Transport and energy demand'!M46 -> 0 | J17: =(F17/1000)*'Transport and energy demand'!H46*'Transport and energy demand'!D23*'Transport and energy demand'!L46 -> 0
C18: Plastic mebrane | E18: =_xlfn.XLOOKUP(C5,'Calculation factors'!M61:M72,'Calculation factors'!O61:O72,'Calculation factors'!O66)*'Calculation factors'!D34/C5 -> 1.466902857 | F18: =E18*C5 -> 15.40248 | G18: =_xlfn.XLOOKUP(C5,'Calculation factors'!M61:M72,'Calculation factors'!O61:O72,'Calculation factors'!O66) -> 22.13 | H18: =(F18/1000)*'Transport and energy demand'!D42*'Transport and energy demand'!D19*'Transport and energy demand'!N42 -> 0.49287936 | I18: =(F18/1000)*'Transport and energy demand'!D42*'Transport and energy demand'!D19*'Transport and energy demand'!M42 -> 0 | J18: =(F18/1000)*'Transport and energy demand'!H42*'Transport and energy demand'!D19*'Transport and energy demand'!L42 -> 0
B19: Pavement | C19: Wearing course (Ska) | D19: ='Calculation factors'!D23 -> 0.04 | E19: ='Calculation factors'!D7*D19 -> 100 | F19: =E19*'Calculation factors'!D60 -> 1050 | H19: =(F19/1000)*'Transport and energy demand'!D30*'Transport and energy demand'!D7*'Transport and energy demand'!N30 -> 1.05 | I19: =(F19/1000)*'Transport and energy demand'!D30*'Transport and energy demand'!D7*'Transport and energy demand'!M30 -> 0 | J19: =(F19/1000)*'Transport and energy demand'!H30*'Transport and energy demand'!D7*'Transport and energy demand'!L30 -> 0
C20: Binder course (Ska) | D20: ='Calculation factors'!D24 -> 0.04 | E20: ='Calculation factors'!D7*D20 -> 100 | F20: =E20*'Calculation factors'!D60 -> 1050 | H20: =(F20/1000)*'Transport and energy demand'!D30*'Transport and energy demand'!D7*'Transport and energy demand'!N30 -> 1.05 | I20: =(F20/1000)*'Transport and energy demand'!D30*'Transport and energy demand'!D7*'Transport and energy demand'!M30 -> 0 | J20: =(F20/1000)*'Transport and energy demand'!H30*'Transport and energy demand'!D7*'Transport and energy demand'!L30 -> 0
C21: Upper base course (Ag) | D21: ='Calculation factors'!D25 -> 0.13 | E21: ='Calculation factors'!D8*D21 -> 312 | F21: =E21*'Calculation factors'!D60 -> 3276 | H21: =(F21/1000)*'Transport and energy demand'!D31*'Transport and energy demand'!D8*'Transport and energy demand'!N31 -> 3.276 | I21: =(F21/1000)*'Transport and energy demand'!D31*'Transport and energy demand'!D8*'Transport and energy demand'!M31 -> 0 | J21: =(F21/1000)*'Transport and energy demand'!H31*'Transport and energy demand'!D8*'Transport and energy demand'!L31 -> 0
B24: Anleggsarbeid
B25: Category | C25: Type of machinery | D25: Construction work | H25: Comments
D26: Construction work [m2/h] | E26: Amount of diesel [litre/m2] | F26: Amount of bio [litre/m2] | G26: Amount of elec. [kWh/m2]
B27: Wearing course | C27: Steamroller | D27: =('Transport and energy demand'!D67*1000)/E19 -> 750 | E27: =('Transport and energy demand'!D49/D27)*'Transport and energy demand'!N49 -> 0.004 | F27: =('Transport and energy demand'!D49/D27)*'Transport and energy demand'!M49 -> 0 | G27: =('Transport and energy demand'!H49/D27)*'Transport and energy demand'!L49 -> 0
C28: Tractor | D28: =('Transport and energy demand'!D68*1000)/E19 -> 3000 | E28: =('Transport and energy demand'!D50/D28)*'Transport and energy demand'!N50 -> 0.001666666667 | F28: =('Transport and energy demand'!D50/D28)*'Transport and energy demand'!M50 -> 0 | G28: =('Transport and energy demand'!H50/D28)*'Transport and energy demand'!L50 -> 0
C29: Paver | D29: =('Transport and energy demand'!D69*1000)/E19 -> 37.5 | E29: =('Transport and energy demand'!D51/D29)*'Transport and energy demand'!N51 -> 0.08 | F29: =('Transport and energy demand'!D51/D29)*'Transport and energy demand'!M51 -> 0 | G29: =('Transport and energy demand'!H51/D29)*'Transport and energy demand'!L51 -> 0
B30: Binder course | C30: Steamroller | D30: =('Transport and energy demand'!D67*1000)/E20 -> 750 | E30: =('Transport and energy demand'!D49/D30)*'Transport and energy demand'!N49 -> 0.004 | F30: =('Transport and energy demand'!D49/D30)*'Transport and energy demand'!M49 -> 0 | G30: =('Transport and energy demand'!H49/D30)*'Transport and energy demand'!L49 -> 0
C31: Tractor | D31: =('Transport and energy demand'!D68*1000)/E20 -> 3000 | E31: =('Transport and energy demand'!D50/D31)*'Transport and energy demand'!N50 -> 0.001666666667 | F31: =('Transport and energy demand'!D50/D31)*'Transport and energy demand'!M50 -> 0 | G31: =('Transport and energy demand'!H50/D31)*'Transport and energy demand'!L50 -> 0
C32: Paver | D32: =('Transport and energy demand'!D69*1000)/E20 -> 37.5 | E32: =('Transport and energy demand'!D51/D32)*'Transport and energy demand'!N51 -> 0.08 | F32: =('Transport and energy demand'!D51/D32)*'Transport and energy demand'!M51 -> 0 | G32: =('Transport and energy demand'!H51/D32)*'Transport and energy demand'!L51 -> 0
B33: Upper base course | C33: Steamroller | D33: =('Transport and energy demand'!D67*1000)/E21 -> 240.3846154 | E33: =('Transport and energy demand'!D49/D33)*'Transport and energy demand'!N49 -> 0.01248 | F33: =('Transport and energy demand'!D49/D33)*'Transport and energy demand'!M49 -> 0 | G33: =('Transport and energy demand'!H49/D33)*'Transport and energy demand'!L49 -> 0
C34: Tractor | D34: =('Transport and energy demand'!D68*1000)/E21 -> 961.5384615 | E34: =('Transport and energy demand'!D50/D34)*'Transport and energy demand'!N50 -> 0.0052 | F34: =('Transport and energy demand'!D50/D34)*'Transport and energy demand'!M50 -> 0 | G34: =('Transport and energy demand'!H50/D34)*'Transport and energy demand'!L50 -> 0
C35: Paver | D35: =('Transport and energy demand'!D69*1000)/E21 -> 12.01923077 | E35: =('Transport and energy demand'!D51/D35)*'Transport and energy demand'!N51 -> 0.2496 | F35: =('Transport and energy demand'!D51/D35)*'Transport and energy demand'!M51 -> 0 | G35: =('Transport and energy demand'!H51/D35)*'Transport and energy demand'!L51 -> 0

Sheet Tunnel double tube
B1: Tunnel dobbeltløp
B2: Bakgrunnsdata
B3: Samlet lengde dobbeltløpstunneler [m] | C3: =Calculations!C142 -> 0 | D3: (Collected from input tab/calculations)
B4: Antall dobbeltløpstunneler | C4: ='Project description and input'!C7 -> 0
B5: Tunnelprofil | C5: ='Calculation factors'!D61 -> 9.5
B7: Materials og transport
B8: Category | C8: Type of material | D8: Material demand | H8: Transport | K8: Comments
D9: Volume per area [m3/m2] | E9: Mass per area [kg/m2] | F9: Amount of material [kg/m] | G9: Amount of material [m2/m] | H9: Amount of diesel [litre/m] | I9: Amount of bio [litre/m] | J9: Amount of elec. [kWh/m]
B10: Construction | C10: Concrete portal | D10: =IFERROR(('Calculation factors'!D63*2*C4)/('Calculation factors'!D61*C3),0) -> 0 | E10: =D10*'Calculation factors'!D4 -> 0 | F10: =E10*'Calculation factors'!D61 -> 0 | H10: =(F10/1000)*'Transport and energy demand'!D33*'Transport and energy demand'!D10*'Transport and energy demand'!N33 -> 0 | I10: =(F10/1000)*'Transport and energy demand'!D33*'Transport and energy demand'!D10*'Transport and energy demand'!M33 -> 0 | J10: =(F10/1000)*'Transport and energy demand'!H33*'Transport and energy demand'!D10*'Transport and energy demand'!L33 -> 0
C11: Reinforcement portal | E11: =IFERROR(('Calculation factors'!D65*2*C4)/('Calculation factors'!D61*C3),0) -> 0 | F11: =E11*'Calculation factors'!D61 -> 0 | H11: =(F11/1000)*'Transport and energy demand'!D35*'Transport and energy demand'!D12*'Transport and energy demand'!N35 -> 0 | I11: =(F11/1000)*'Transport and energy demand'!D35*'Transport and energy demand'!D12*'Transport and energy demand'!M35 -> 0 | J11: =(F11/1000)*'Transport and energy demand'!H35*'Transport and energy demand'!D12*'Transport and energy demand'!L35 -> 0
C12: Safety bolts | E12: ='Calculation factors'!D47/9.5 -> 4.631578947 | F12: ='Calculation factors'!D47*('Calculation factors'!D61/9.5) -> 44 | H12: =(F12/1000)*'Transport and energy demand'!D34*'Transport and energy demand'!D11*'Transport and energy demand'!N34 -> 1.408 | I12: =(F12/1000)*'Transport and energy demand'!D34*'Transport and energy demand'!D11*'Transport and energy demand'!M34 -> 0 | J12: =(F12/1000)*'Transport and energy demand'!H34*'Transport and energy demand'!D11*'Transport and energy demand'!L34 -> 0 | K12: Calculation taken from "Metoderapport"
B13: Frost protection arch | C13: XPS-/concrete material | E13: =(VLOOKUP(C5,'Calculation factors'!M61:S72,3,FALSE)*'Calculation factors'!D12*'Calculation factors'!D29)/C5 -> 799.2763789 | F13: =E13*C5 -> 7593.1256 | G13: =IF(E13=0,0,VLOOKUP(C5,'Calculation factors'!M61:S72,3,FALSE)) -> 21.04 | H13: =(F13/1000)*'Transport and energy demand'!D37*'Transport and energy demand'!D14*'Transport and energy demand'!N37 -> 30.3725024 | I13: =(F13/1000)*'Transport and energy demand'!D37*'Transport and energy demand'!D14*'Transport and energy demand'!M37 -> 0 | J13: =(F13/1000)*'Transport and energy demand'!D37*'Transport and energy demand'!D14*'Transport and energy demand'!L37 -> 0
C14: Sprayed concrete | D14: =_xlfn.XLOOKUP(C5,'Calculation factors'!M61:M72,'Calculation factors'!O61:O72,'Calculation factors'!O66)*'Calculation factors'!D30/'Tunnel single tube'!C5 -> 0 | E14: =D14*'Calculation factors'!D20 -> 0 | F14: =E14*C5 -> 0 | G14: =IF(E14=0,0,_xlfn.XLOOKUP(C5,'Calculation factors'!M61:M72,'Calculation factors'!O61:O72,'Calculation factors'!O66)) -> 0 | H14: =(F14/1000)*'Transport and energy demand'!D43*'Transport and energy demand'!D20*'Transport and energy demand'!N43 -> 0 | I14: =(F14/1000)*'Transport and energy demand'!D43*'Transport and energy demand'!D20*'Transport and energy demand'!M43 -> 0 | J14: =(F14/1000)*'Transport and energy demand'!H43*'Transport and energy demand'!D20*'Transport and energy demand'!L43 -> 0
C15: PE-foam | D15: =_xlfn.XLOOKUP(C5,'Calculation factors'!M61:M72,'Calculation factors'!O61:O72,'Calculation factors'!O66)*'Calculation factors'!D31/'Tunnel single tube'!C5 -> 0 | E15: =D15*'Calculation factors'!D21 -> 0 | F15: =E15*C5 -> 0 | G15: =IF(E15=0,0,_xlfn.XLOOKUP(C5,'Calculation factors'!M61:M72,'Calculation factors'!O61:O72,'Calculation factors'!O66)) -> 0 | H15: =(F15/1000)*'Transport and energy demand'!D44*'Transport and energy demand'!D21*'Transport and energy demand'!N44 -> 0 | I15: =(F15/1000)*'Transport and energy demand'!D44*'Transport and energy demand'!D21*'Transport and energy demand'!M44 -> 0 | J15: =(F15/1000)*'Transport and energy demand'!H44*'Transport and energy demand'!D21*'Transport and energy demand'!L44 -> 0
C16: Fiber reinforcement | E16: =D14*'Calculation factors'!D32 -> 0 | F16: =E16*C5 -> 0 | H16: =(F16/1000)*'Transport and energy demand'!D45*'Transport and energy demand'!D22*'Transport and energy demand'!N45 -> 0 | I16: =(F16/1000)*'Transport and energy demand'!D45*'Transport and energy demand'!D22*'Transport and energy demand'!M45 -> 0 | J16: =(F16/1000)*'Transport and energy demand'!H45*'Transport and energy demand'!D22*'Transport and energy demand'!L45 -> 0
C17: Reinforcement mesh | E17: =_xlfn.XLOOKUP(C5,'Calculation factors'!M61:M72,'Calculation factors'!O61:O72,'Calculation factors'!O66)/C5*'Calculation factors'!D33 -> 0 | F17: =E17*C5 -> 0 | G17: =IF(E17=0,0,_xlfn.XLOOKUP(C5,'Calculation factors'!M61:M72,'Calculation factors'!O61:O72,'Calculation factors'!O66)) -> 0 | H17: =(F17/1000)*'Transport and energy demand'!D46*'Transport and energy demand'!D23*'Transport and energy demand'!N46 -> 0 | I17: =(F17/1000)*'Transport and energy demand'!D46*'Transport and energy demand'!D23*'Transport and energy demand'!M46 -> 0 | J17: =(F17/1000)*'Transport and energy demand'!H46*'Transport and energy demand'!D23*'Transport and energy demand'!L46 -> 0
C18: Plastic mebrane | E18: =_xlfn.XLOOKUP(C5,'Calculation factors'!M61:M72,'Calculation factors'!O61:O72,'Calculation factors'!O66)*'Calculation factors'!D34/C5 -> 1.541456842 | F18: =E18*C5 -> 14.64384 | G18: =_xlfn.XLOOKUP(C5,'Calculation factors'!M61:M72,'Calculation factors'!O61:O72,'Calculation factors'!O66) -> 21.04 | H18: =(F18/1000)*'Transport and energy demand'!D42*'Transport and energy demand'!D19*'Transport and energy demand'!N42 -> 0.46860288 | I18: =(F18/1000)*'Transport and energy demand'!D42*'Transport and energy demand'!D19*'Transport and energy demand'!M42 -> 0 | J18: =(F18/1000)*'Transport and energy demand'!H42*'Transport and energy demand'!D19*'Transport and energy demand'!L42 -> 0
B19: Pavement | C19: Binder course (Ska) | D19: ='Calculation factors'!D23 -> 0.04 | E19: ='Calculation factors'!D7*D19 -> 100 | F19: =E19*'Calculation factors'!D61 -> 950 | H19: =(F19/1000)*'Transport and energy demand'!D30*'Transport and energy demand'!D7*'Transport and energy demand'!N30 -> 0.95 | I19: =(F19/1000)*'Transport and energy demand'!D30*'Transport and energy demand'!D7*'Transport and energy demand'!M30 -> 0 | J19: =(F19/1000)*'Transport and energy demand'!H30*'Transport and energy demand'!D7*'Transport and energy demand'!L30 -> 0
C20: Upper base course (Ag) | D20: ='Calculation factors'!D24 -> 0.04 | E20: ='Calculation factors'!D7*D20 -> 100 | F20: =E20*'Calculation factors'!D61 -> 950 | H20: =(F20/1000)*'Transport and energy demand'!D30*'Transport and energy demand'!D7*'Transport and energy demand'!N30 -> 0.95 | I20: =(F20/1000)*'Transport and energy demand'!D30*'Transport and energy demand'!D7*'Transport and energy demand'!M30 -> 0 | J20: =(F20/1000)*'Transport and energy demand'!H30*'Transport and energy demand'!D7*'Transport and energy demand'!L30 -> 0
C21: Lower base course | D21: ='Calculation factors'!D25 -> 0.13 | E21: ='Calculation factors'!D8*D21 -> 312 | F21: =E21*'Calculation factors'!D61 -> 2964 | H21: =(F21/1000)*'Transport and energy demand'!D31*'Transport and energy demand'!D8*'Transport and energy demand'!N31 -> 2.964 | I21: =(F21/1000)*'Transport and energy demand'!D31*'Transport and energy demand'!D8*'Transport and energy demand'!M31 -> 0 | J21: =(F21/1000)*'Transport and energy demand'!H31*'Transport and energy demand'!D8*'Transport and energy demand'!L31 -> 0
B24: Construction work
B25: Kategori | C25: Maskintype | D25: Construction work | H25: Comments
D26: Construction work [m2/h] | E26: Amount of diesel [litre/m2] | F26: Amount of bio [litre/m2] | G26: Amount of elec. [kWh/m2]
B27: Wearing course | C27: Steamroller | D27: =('Transport and energy demand'!D67*1000)/E19 -> 750 | E27: =('Transport and energy demand'!D49/D27)*'Transport and energy demand'!N49 -> 0.004 | F27: =('Transport and energy demand'!D49/D27)*'Transport and energy demand'!M49 -> 0 | G27: =('Transport and energy demand'!H49/D27)*'Transport and energy demand'!L49 -> 0
C28: Tractor | D28: =('Transport and energy demand'!D68*1000)/E19 -> 3000 | E28: =('Transport and energy demand'!D50/D28)*'Transport and energy demand'!N50 -> 0.001666666667 | F28: =('Transport and energy demand'!D50/D28)*'Transport and energy demand'!M50 -> 0 | G28: =('Transport and energy demand'!H50/D28)*'Transport and energy demand'!L50 -> 0
C29: Paver | D29: =('Transport and energy demand'!D69*1000)/E19 -> 37.5 | E29: =('Transport and energy demand'!D51/D29)*'Transport and energy demand'!N51 -> 0.08 | F29: =('Transport and energy demand'!D51/D29)*'Transport and energy demand'!M51 -> 0 | G29: =('Transport and energy demand'!H51/D29)*'Transport and energy demand'!L51 -> 0
B30: Binder course | C30: Steamroller | D30: =('Transport and energy demand'!D67*1000)/E20 -> 750 | E30: =('Transport and energy demand'!D49/D30)*'Transport and energy demand'!N49 -> 0.004 | F30: =('Transport and energy demand'!D49/D30)*'Transport and energy demand'!M49 -> 0 | G30: =('Transport and energy demand'!H49/D30)*'Transport and energy demand'!L49 -> 0
C31: Tractor | D31: =('Transport and energy demand'!D68*1000)/E20 -> 3000 | E31: =('Transport and energy demand'!D50/D31)*'Transport and energy demand'!N50 -> 0.001666666667 | F31: =('Transport and energy demand'!D50/D31)*'Transport and energy demand'!M50 -> 0 | G31: =('Transport and energy demand'!H50/D31)*'Transport and energy demand'!L50 -> 0
C32: Paver | D32: =('Transport and energy demand'!D69*1000)/E20 -> 37.5 | E32: =('Transport and energy demand'!D51/D32)*'Transport and energy demand'!N51 -> 0.08 | F32: =('Transport and energy demand'!D51/D32)*'Transport and energy demand'!M51 -> 0 | G32: =('Transport and energy demand'!H51/D32)*'Transport and energy demand'!L51 -> 0
B33: Upper base course | C33: Steamroller | D33: =('Transport and energy demand'!D67*1000)/E21 -> 240.3846154 | E33: =('Transport and energy demand'!D49/D33)*'Transport and energy demand'!N49 -> 0.01248 | F33: =('Transport and energy demand'!D49/D33)*'Transport and energy demand'!M49 -> 0 | G33: =('Transport and energy demand'!H49/D33)*'Transport and energy demand'!L49 -> 0
C34: Tractor | D34: =('Transport and energy demand'!D68*1000)/E21 -> 961.5384615 | E34: =('Transport and energy demand'!D50/D34)*'Transport and energy demand'!N50 -> 0.0052 | F34: =('Transport and energy demand'!D50/D34)*'Transport and energy demand'!M50 -> 0 | G34: =('Transport and energy demand'!H50/D34)*'Transport and energy demand'!L50 -> 0
C35: Paver | D35: =('Transport and energy demand'!D69*1000)/E21 -> 12.01923077 | E35: =('Transport and energy demand'!D51/D35)*'Transport and energy demand'!N51 -> 0.2496 | F35: =('Transport and energy demand'!D51/D35)*'Transport and energy demand'!M51 -> 0 | G35: =('Transport and energy demand'!H51/D35)*'Transport and energy demand'!L51 -> 0

Sheet Concrete bridge
B2: Materials and transport
B3: Category | C3: Type of material | D3: Material demand | F3: Transport | I3: Comments
D4: Volume per area [m3/m2] | E4: Mass per area [kg/m2] | F4: Amount of diesel [litre/m2] | G4: Amount of bio [litre/m2] | H4: Amount of elec. [kWh/m2]
B5: Construction | C5: Concrete | E5: ='Calculation factors'!D35 -> 3500 | F5: =(E5/1000)*'Transport and energy demand'!D33*'Transport and energy demand'!D10*'Transport and energy demand'!N33 -> 3.5 | G5: =(E5/1000)*'Transport and energy demand'!D33*'Transport and energy demand'!D10*'Transport and energy demand'!M33 -> 0 | H5: =(E5/1000)*'Transport and energy demand'!H33*'Transport and energy demand'!D10*'Transport and energy demand'!L33 -> 0
C6: Reinforcement steel | E6: ='Calculation factors'!D38 -> 210 | F6: =(E6/1000)*'Transport and energy demand'!D35*'Transport and energy demand'!D12*'Transport and energy demand'!N35 -> 6.72 | G6: =(E6/1000)*'Transport and energy demand'!D35*'Transport and energy demand'!D12*'Transport and energy demand'!M35 -> 0 | H6: =(E6/1000)*'Transport and energy demand'!H35*'Transport and energy demand'!D12*'Transport and energy demand'!L35 -> 0
C7: Structual steel | E7: ='Calculation factors'!D41 -> 40 | F7: =(E7/1000)*'Transport and energy demand'!D34*'Transport and energy demand'!D11*'Transport and energy demand'!N34 -> 1.28 | G7: =(E7/1000)*'Transport and energy demand'!D34*'Transport and energy demand'!D11*'Transport and energy demand'!M34 -> 0 | H7: =(E7/1000)*'Transport and energy demand'!H34*'Transport and energy demand'!D11*'Transport and energy demand'!L34 -> 0
C8: Wood for formwork | E8: ='Calculation factors'!D45 -> 420 | F8: =(E8/1000)*'Transport and energy demand'!D39*'Transport and energy demand'!D16*'Transport and energy demand'!N39 -> 4.2 | G8: =(E8/1000)*'Transport and energy demand'!D39*'Transport and energy demand'!D16*'Transport and energy demand'!M39 -> 0 | H8: =(E8/1000)*'Transport and energy demand'!H39*'Transport and energy demand'!D16*'Transport and energy demand'!L39 -> 0
B9: Pavement | C9: Wearing course (Ska) | D9: ='Calculation factors'!D23 -> 0.04 | E9: =D9*'Calculation factors'!D7 -> 100 | F9: =(E9/1000)*'Transport and energy demand'!D30*'Transport and energy demand'!D7*'Transport and energy demand'!N30 -> 0.1 | G9: =(E9/1000)*'Transport and energy demand'!D30*'Transport and energy demand'!D7*'Transport and energy demand'!M30 -> 0 | H9: =(E9/1000)*'Transport and energy demand'!H30*'Transport and energy demand'!D7*'Transport and energy demand'!L30 -> 0
C10: Binder course (Ska) | D10: ='Calculation factors'!D24 -> 0.04 | E10: =D10*'Calculation factors'!D7 -> 100 | F10: =(E10/1000)*'Transport and energy demand'!D30*'Transport and energy demand'!D7*'Transport and energy demand'!N30 -> 0.1 | G10: =(E10/1000)*'Transport and energy demand'!D30*'Transport and energy demand'!D7*'Transport and energy demand'!M30 -> 0 | H10: =(E10/1000)*'Transport and energy demand'!H30*'Transport and energy demand'!D7*'Transport and energy demand'!L30 -> 0
C11: Fuktisolation (Topeka) | D11: ='Calculation factors'!D28 -> 0.012 | E11: =D11*'Calculation factors'!D13 -> 30 | F11: =(E11/1000)*'Transport and energy demand'!D36*'Transport and energy demand'!D13*'Transport and energy demand'!N36 -> 0.03 | G11: =(E11/1000)*'Transport and energy demand'!D36*'Transport and energy demand'!D13*'Transport and energy demand'!M36 -> 0 | H11: =(E11/1000)*'Transport and energy demand'!H36*'Transport and energy demand'!D13*'Transport and energy demand'!L36 -> 0
B14: Construction work
B15: Kategori | C15: Maskintype | D15: Construction work | H15: Comments
D16: Working speed [m2/h] | E16: Amount of diesel [litre/m2] | F16: Amount of bio [litre/m2] | G16: Amount of elec. [kWh/m2]
B17: Construction | C17: Crane first 400 m2 | D17: ='Transport and energy demand'!D73 -> 1.666666667 | G17: =('Transport and energy demand'!H55/D17)*'Transport and energy demand'!L55 -> 29.16 | H17: Assumed 100% elec.
C18: Crane rest of bridge | D18: ='Transport and energy demand'!D74 -> 3.333333333 | G18: =('Transport and energy demand'!H55/D18)*'Transport and energy demand'!L55 -> 14.58 | H18: Assumed 100% elec.
C19: Excavator | D19: =('Transport and energy demand'!D70*1000)/(E5+E6+E8) -> 36.31961259 | E19: =('Transport and energy demand'!D52/D19)*'Transport and energy demand'!N52 -> 0.5506666667 | F19: =('Transport and energy demand'!D52/D19)*'Transport and energy demand'!M52 -> 0 | G19: =('Transport and energy demand'!H52/D19)*'Transport and energy demand'!L52 -> 0
B20: Wearing course | C20: Steamroller | D20: =('Transport and energy demand'!D67*1000)/E9 -> 750 | E20: =('Transport and energy demand'!D49/D20)*'Transport and energy demand'!N49 -> 0.004 | F20: =('Transport and energy demand'!D49/D20)*'Transport and energy demand'!M49 -> 0 | G20: =('Transport and energy demand'!H49/D20)*'Transport and energy demand'!L49 -> 0
C21: Tractor | D21: =('Transport and energy demand'!D68*1000)/E9 -> 3000 | E21: =('Transport and energy demand'!D50/D21)*'Transport and energy demand'!N50 -> 0.001666666667 | F21: =('Transport and energy demand'!D50/D21)*'Transport and energy demand'!M50 -> 0 | G21: =('Transport and energy demand'!H50/D21)*'Transport and energy demand'!L50 -> 0
C22: Paver | D22: =('Transport and energy demand'!D69*1000)/E9 -> 37.5 | E22: =('Transport and energy demand'!D51/D22)*'Transport and energy demand'!N51 -> 0.08 | F22: =('Transport and energy demand'!D51/D22)*'Transport and energy demand'!M51 -> 0 | G22: =('Transport and energy demand'!H51/D22)*'Transport and energy demand'!L51 -> 0
B23: Binder course | C23: Steamroller | D23: =('Transport and energy demand'!D67*1000)/E10 -> 750 | E23: =('Transport and energy demand'!D49/D23)*'Transport and energy demand'!N49 -> 0.004 | F23: =('Transport and energy demand'!D49/D23)*'Transport and energy demand'!M49 -> 0 | G23: =('Transport and energy demand'!H49/D23)*'Transport and energy demand'!L49 -> 0
C24: Tractor | D24: =('Transport and energy demand'!D68*1000)/E10 -> 3000 | E24: =('Transport and energy demand'!D50/D24)*'Transport and energy demand'!N50 -> 0.001666666667 | F24: =('Transport and energy demand'!D50/D24)*'Transport and energy demand'!M50 -> 0 | G24: =('Transport and energy demand'!H50/D24)*'Transport and energy demand'!L50 -> 0
C25: Paver | D25: =('Transport and energy demand'!D69*1000)/E10 -> 37.5 | E25: =('Transport and energy demand'!D51/D25)*'Transport and energy demand'!N51 -> 0.08 | F25: =('Transport and energy demand'!D51/D25)*'Transport and energy demand'!M51 -> 0 | G25: =('Transport and energy demand'!H51/D25)*'Transport and energy demand'!L51 -> 0
B26: Moisture protection | C26: Steamroller | D26: =('Transport and energy demand'!D67*1000)/E11 -> 2500 | E26: =('Transport and energy demand'!D49/D26)*'Transport and energy demand'!N49 -> 0.0012 | F26: =('Transport and energy demand'!D49/D26)*'Transport and energy demand'!M49 -> 0 | G26: =('Transport and energy demand'!H49/D26)*'Transport and energy demand'!L49 -> 0
C27: Tractor | D27: =('Transport and energy demand'!D68*1000)/E11 -> 10000 | E27: =('Transport and energy demand'!D50/D27)*'Transport and energy demand'!N50 -> 0.0005 | F27: =('Transport and energy demand'!D50/D27)*'Transport and energy demand'!M50 -> 0 | G27: =('Transport and energy demand'!H50/D27)*'Transport and energy demand'!L50 -> 0
C28: Paver | D28: =('Transport and energy demand'!D69*1000)/E11 -> 125 | E28: =('Transport and energy demand'!D51/D28)*'Transport and energy demand'!N51 -> 0.024 | F28: =('Transport and energy demand'!D51/D28)*'Transport and energy demand'!M51 -> 0 | G28: =('Transport and energy demand'!H51/D28)*'Transport and energy demand'!L51 -> 0

Sheet Steel bridge
B2: Materials og transport
B3: Category | C3: Type of material | D3: Material demand | F3: Transport | I3: Comments
D4: Volume per area [m3/m2] | E4: Mass per area [kg/m2] | F4: Amount of diesel [litre/m2] | G4: Amount of bio [litre/m2] | H4: Amount of elec. [kWh/m2]
B5: Construction | C5: Concrete | E5: ='Calculation factors'!D36 -> 2500 | F5: =(E5/1000)*'Transport and energy demand'!D33*'Transport and energy demand'!D10*'Transport and energy demand'!N33 -> 2.5 | G5: =(E5/1000)*'Transport and energy demand'!D33*'Transport and energy demand'!D10*'Transport and energy demand'!M33 -> 0 | H5: =(E5/1000)*'Transport and energy demand'!H33*'Transport and energy demand'!D10*'Transport and energy demand'!L33 -> 0
C6: Reinforcement steel | E6: ='Calculation factors'!D39 -> 100 | F6: =(E6/1000)*'Transport and energy demand'!D35*'Transport and energy demand'!D12*'Transport and energy demand'!N35 -> 3.2 | G6: =(E6/1000)*'Transport and energy demand'!D35*'Transport and energy demand'!D12*'Transport and energy demand'!M35 -> 0 | H6: =(E6/1000)*'Transport and energy demand'!H35*'Transport and energy demand'!D12*'Transport and energy demand'!L35 -> 0
C7: Steel construction | E7: ='Calculation factors'!D42 -> 300 | F7: =(E7/1000)*'Transport and energy demand'!D34*'Transport and energy demand'!D11*'Transport and energy demand'!N34 -> 9.6 | G7: =(E7/1000)*'Transport and energy demand'!D34*'Transport and energy demand'!D11*'Transport and energy demand'!M34 -> 0 | H7: =(E7/1000)*'Transport and energy demand'!H34*'Transport and energy demand'!D11*'Transport and energy demand'!L34 -> 0
B8: Pavement | C8: Wearing course (Ska) | E8: ='Calculation factors'!D46 -> 300 | F8: =(E8/1000)*'Transport and energy demand'!D39*'Transport and energy demand'!D16*'Transport and energy demand'!N39 -> 3 | G8: =(E8/1000)*'Transport and energy demand'!D39*'Transport and energy demand'!D16*'Transport and energy demand'!M39 -> 0 | H8: =(E8/1000)*'Transport and energy demand'!H39*'Transport and energy demand'!D16*'Transport and energy demand'!L39 -> 0
C9: Binder course (Ska) | D9: ='Calculation factors'!D23 -> 0.04 | E9: =D9*'Calculation factors'!D7 -> 100 | F9: =(E9/1000)*'Transport and energy demand'!D30*'Transport and energy demand'!D7*'Transport and energy demand'!N30 -> 0.1 | G9: =(E9/1000)*'Transport and energy demand'!D30*'Transport and energy demand'!D7*'Transport and energy demand'!M30 -> 0 | H9: =(E9/1000)*'Transport and energy demand'!H30*'Transport and energy demand'!D7*'Transport and energy demand'!L30 -> 0
C10: Moisture protection (Topeka) | D10: ='Calculation factors'!D24 -> 0.04 | E10: =D10*'Calculation factors'!D7 -> 100 | F10: =(E10/1000)*'Transport and energy demand'!D30*'Transport and energy demand'!D7*'Transport and energy demand'!N30 -> 0.1 | G10: =(E10/1000)*'Transport and energy demand'!D30*'Transport and energy demand'!D7*'Transport and energy demand'!M30 -> 0 | H10: =(E10/1000)*'Transport and energy demand'!H30*'Transport and energy demand'!D7*'Transport and energy demand'!L30 -> 0
C11: Fuktisolasjon (Topeka) | D11: ='Calculation factors'!D28 -> 0.012 | E11: =D11*'Calculation factors'!D13 -> 30 | F11: =(E11/1000)*'Transport and energy demand'!D36*'Transport and energy demand'!D13*'Transport and energy demand'!N36 -> 0.03 | G11: =(E11/1000)*'Transport and energy demand'!D36*'Transport and energy demand'!D13*'Transport and energy demand'!M36 -> 0 | H11: =(E11/1000)*'Transport and energy demand'!H36*'Transport and energy demand'!D13*'Transport and energy demand'!L36 -> 0
B14: Construction work
B15: Category | C15: Type of machinery | D15: Construction work | H15: Comments
D16: Working speed [m2/h] | E16: Amount of diesel [litre/m2] | F16: Amount of bio [litre/m2] | G16: Amount of elec. [kWh/m2]
B17: Construction | C17: Crane first 400 m2 | D17: ='Transport and energy demand'!D73 -> 1.666666667 | G17: =('Transport and energy demand'!H55/D17)*'Transport and energy demand'!L55 -> 29.16 | H17: Assumed 100 % el
C18: Crane rest of bridge | D18: ='Transport and energy demand'!D74 -> 3.333333333 | G18: =('Transport and energy demand'!H55/D18)*'Transport and energy demand'!L55 -> 14.58 | H18: Assumed 100 % el
C19: Excavator | D19: =('Transport and energy demand'!D70*1000)/(E5+E6+E7+E8) -> 46.875 | E19: =('Transport and energy demand'!D52/D19)*'Transport and energy demand'!N52 -> 0.4266666667 | F19: =('Transport and energy demand'!D52/D19)*'Transport and energy demand'!M52 -> 0 | G19: =('Transport and energy demand'!H52/D19)*'Transport and energy demand'!L52 -> 0
B20: Wearing course | C20: Steamroller | D20: =('Transport and energy demand'!D67*1000)/E9 -> 750 | E20: =('Transport and energy demand'!D49/D20)*'Transport and energy demand'!N49 -> 0.004 | F20: =('Transport and energy demand'!D49/D20)*'Transport and energy demand'!M49 -> 0 | G20: =('Transport and energy demand'!H49/D20)*'Transport and energy demand'!L49 -> 0
C21: Tractor | D21: =('Transport and energy demand'!D68*1000)/E9 -> 3000 | E21: =('Transport and energy demand'!D50/D21)*'Transport and energy demand'!N50 -> 0.001666666667 | F21: =('Transport and energy demand'!D50/D21)*'Transport and energy demand'!M50 -> 0 | G21: =('Transport and energy demand'!H50/D21)*'Transport and energy demand'!L50 -> 0
C22: Paver | D22: =('Transport and energy demand'!D69*1000)/E9 -> 37.5 | E22: =('Transport and energy demand'!D51/D22)*'Transport and energy demand'!N51 -> 0.08 | F22: =('Transport and energy demand'!D51/D22)*'Transport and energy demand'!M51 -> 0 | G22: =('Transport and energy demand'!H51/D22)*'Transport and energy demand'!L51 -> 0
B23: Binder course | C23: Steamroller | D23: =('Transport and energy demand'!D67*1000)/E10 -> 750 | E23: =('Transport and energy demand'!D49/D23)*'Transport and energy demand'!N49 -> 0.004 | F23: =('Transport and energy demand'!D49/D23)*'Transport and energy demand'!M49 -> 0 | G23: =('Transport and energy demand'!H49/D23)*'Transport and energy demand'!L49 -> 0
C24: Tractor | D24: =('Transport and energy demand'!D68*1000)/E10 -> 3000 | E24: =('Transport and energy demand'!D50/D24)*'Transport and energy demand'!N50 -> 0.001666666667 | F24: =('Transport and energy demand'!D50/D24)*'Transport and energy demand'!M50 -> 0 | G24: =('Transport and energy demand'!H50/D24)*'Transport and energy demand'!L50 -> 0
C25: Paver | D25: =('Transport and energy demand'!D69*1000)/E10 -> 37.5 | E25: =('Transport and energy demand'!D51/D25)*'Transport and energy demand'!N51 -> 0.08 | F25: =('Transport and energy demand'!D51/D25)*'Transport and energy demand'!M51 -> 0 | G25: =('Transport and energy demand'!H51/D25)*'Transport and energy demand'!L51 -> 0
B26: Moisture protection | C26: Steamroller | D26: =('Transport and energy demand'!D67*1000)/E11 -> 2500 | E26: =('Transport and energy demand'!D49/D26)*'Transport and energy demand'!N49 -> 0.0012 | F26: =('Transport and energy demand'!D49/D26)*'Transport and energy demand'!M49 -> 0 | G26: =('Transport and energy demand'!H49/D26)*'Transport and energy demand'!L49 -> 0
C27: Tractor | D27: =('Transport and energy demand'!D68*1000)/E11 -> 10000 | E27: =('Transport and energy demand'!D50/D27)*'Transport and energy demand'!N50 -> 0.0005 | F27: =('Transport and energy demand'!D50/D27)*'Transport and energy demand'!M50 -> 0 | G27: =('Transport and energy demand'!H50/D27)*'Transport and energy demand'!L50 -> 0
C28: Paver | D28: =('Transport and energy demand'!D69*1000)/E11 -> 125 | E28: =('Transport and energy demand'!D51/D28)*'Transport and energy demand'!N51 -> 0.024 | F28: =('Transport and energy demand'!D51/D28)*'Transport and energy demand'!M51 -> 0 | G28: =('Transport and energy demand'!H51/D28)*'Transport and energy demand'!L51 -> 0

Sheet Wood bridge
B2: Materials og transport
B3: Category | C3: Type of material | D3: Material demand | F3: Transport | I3: Comments
D4: Volume per area [m3/m2] | E4: Mass per area [kg/m2] | F4: Amount of diesel [litre/m2] | G4: Amount of bio [litre/m2] | H4: Amount of elec. [kWh/m2]
B5: Construction | C5: Concrete | E5: ='Calculation factors'!D37 -> 3440 | F5: =(E5/1000)*'Transport and energy demand'!D33*'Transport and energy demand'!D10*'Transport and energy demand'!N33 -> 3.44 | G5: =(E5/1000)*'Transport and energy demand'!D33*'Transport and energy demand'!D10*'Transport and energy demand'!M33 -> 0 | H5: =(E5/1000)*'Transport and energy demand'!H33*'Transport and energy demand'!D10*'Transport and energy demand'!L33 -> 0
C6: Reinforcement steel | E6: ='Calculation factors'!D40 -> 150 | F6: =(E6/1000)*'Transport and energy demand'!D35*'Transport and energy demand'!D12*'Transport and energy demand'!N35 -> 4.8 | G6: =(E6/1000)*'Transport and energy demand'!D35*'Transport and energy demand'!D12*'Transport and energy demand'!M35 -> 0 | H6: =(E6/1000)*'Transport and energy demand'!H35*'Transport and energy demand'!D12*'Transport and energy demand'!L35 -> 0
C7: Steel construction | E7: ='Calculation factors'!D43 -> 60 | F7: =(E7/1000)*'Transport and energy demand'!D34*'Transport and energy demand'!D11*'Transport and energy demand'!N34 -> 1.92 | G7: =(E7/1000)*'Transport and energy demand'!D34*'Transport and energy demand'!D11*'Transport and energy demand'!M34 -> 0 | H7: =(E7/1000)*'Transport and energy demand'!H34*'Transport and energy demand'!D11*'Transport and energy demand'!L34 -> 0
C8: Wood | E8: ='Calculation factors'!D44 -> 430 | F8: =(E8/1000)*'Transport and energy demand'!D39*'Transport and energy demand'!D16*'Transport and energy demand'!N39 -> 4.3 | G8: =(E8/1000)*'Transport and energy demand'!D39*'Transport and energy demand'!D16*'Transport and energy demand'!M39 -> 0 | H8: =(E8/1000)*'Transport and energy demand'!H39*'Transport and energy demand'!D16*'Transport and energy demand'!L39 -> 0
B9: Pavement | C9: Wearing course (Ska) | D9: ='Calculation factors'!D23 -> 0.04 | E9: =D9*'Calculation factors'!D7 -> 100 | F9: =(E9/1000)*'Transport and energy demand'!D30*'Transport and energy demand'!D7*'Transport and energy demand'!N30 -> 0.1 | G9: =(E9/1000)*'Transport and energy demand'!D30*'Transport and energy demand'!D7*'Transport and energy demand'!M30 -> 0 | H9: =(E9/1000)*'Transport and energy demand'!H30*'Transport and energy demand'!D7*'Transport and energy demand'!L30 -> 0
C10: Binder course (Ska) | D10: ='Calculation factors'!D24 -> 0.04 | E10: =D10*'Calculation factors'!D7 -> 100 | F10: =(E10/1000)*'Transport and energy demand'!D30*'Transport and energy demand'!D7*'Transport and energy demand'!N30 -> 0.1 | G10: =(E10/1000)*'Transport and energy demand'!D30*'Transport and energy demand'!D7*'Transport and energy demand'!M30 -> 0 | H10: =(E10/1000)*'Transport and energy demand'!H30*'Transport and energy demand'!D7*'Transport and energy demand'!L30 -> 0
C11: Moisture protection (Topeka) | D11: ='Calculation factors'!D28 -> 0.012 | E11: =D11*'Calculation factors'!D13 -> 30 | F11: =(E11/1000)*'Transport and energy demand'!D36*'Transport and energy demand'!D13*'Transport and energy demand'!N36 -> 0.03 | G11: =(E11/1000)*'Transport and energy demand'!D36*'Transport and energy demand'!D13*'Transport and energy demand'!M36 -> 0 | H11: =(E11/1000)*'Transport and energy demand'!H36*'Transport and energy demand'!D13*'Transport and energy demand'!L36 -> 0
B14: Construction work
B15: Category | C15: Type of machinery | D15: Construction work | H15: Comments
D16: Working speed [m2/h] | E16: Amount of diesel [litre/m2] | F16: Amount of bio [litre/m2] | G16: Amount of elec. [kWh/m2]
B17: Construction | C17: Crane first 400 m2 | D17: ='Transport and energy demand'!D73 -> 1.666666667 | G17: =('Transport and energy demand'!H55/D17)*'Transport and energy demand'!L55 -> 29.16 | H17: Assumed 100% elec.
C18: Crane rest of bridge | D18: ='Transport and energy demand'!D74 -> 3.333333333 | G18: =('Transport and energy demand'!H55/D18)*'Transport and energy demand'!L55 -> 14.58 | H18: Assumed 100% elec.
C19: Excavator | D19: =('Transport and energy demand'!D70*1000)/(E5+E6+E7+E8) -> 36.76470588 | E19: =('Transport and energy demand'!D52/D19)*'Transport and energy demand'!N52 -> 0.544 | F19: =('Transport and energy demand'!D52/D19)*'Transport and energy demand'!M52 -> 0 | G19: =('Transport and energy demand'!H52/D19)*'Transport and energy demand'!L52 -> 0
B20: Wearing course | C20: Steamroller | D20: =('Transport and energy demand'!D67*1000)/E9 -> 750 | E20: =('Transport and energy demand'!D49/D20)*'Transport and energy demand'!N49 -> 0.004 | F20: =('Transport and energy demand'!D49/D20)*'Transport and energy demand'!M49 -> 0 | G20: =('Transport and energy demand'!H49/D20)*'Transport and energy demand'!L49 -> 0
C21: Tractor | D21: =('Transport and energy demand'!D68*1000)/E9 -> 3000 | E21: =('Transport and energy demand'!D50/D21)*'Transport and energy demand'!N50 -> 0.001666666667 | F21: =('Transport and energy demand'!D50/D21)*'Transport and energy demand'!M50 -> 0 | G21: =('Transport and energy demand'!H50/D21)*'Transport and energy demand'!L50 -> 0
C22: Paver | D22: =('Transport and energy demand'!D69*1000)/E9 -> 37.5 | E22: =('Transport and energy demand'!D51/D22)*'Transport and energy demand'!N51 -> 0.08 | F22: =('Transport and energy demand'!D51/D22)*'Transport and energy demand'!M51 -> 0 | G22: =('Transport and energy demand'!H51/D22)*'Transport and energy demand'!L51 -> 0
B23: Binder course | C23: Steamroller | D23: =('Transport and energy demand'!D67*1000)/E10 -> 750 | E23: =('Transport and energy demand'!D49/D23)*'Transport and energy demand'!N49 -> 0.004 | F23: =('Transport and energy demand'!D49/D23)*'Transport and energy demand'!M49 -> 0 | G23: =('Transport and energy demand'!H49/D23)*'Transport and energy demand'!L49 -> 0
C24: Tractor | D24: =('Transport and energy demand'!D68*1000)/E10 -> 3000 | E24: =('Transport and energy demand'!D50/D24)*'Transport and energy demand'!N50 -> 0.001666666667 | F24: =('Transport and energy demand'!D50/D24)*'Transport and energy demand'!M50 -> 0 | G24: =('Transport and energy demand'!H50/D24)*'Transport and energy demand'!L50 -> 0
C25: Paver | D25: =('Transport and energy demand'!D69*1000)/E10 -> 37.5 | E25: =('Transport and energy demand'!D51/D25)*'Transport and energy demand'!N51 -> 0.08 | F25: =('Transport and energy demand'!D51/D25)*'Transport and energy demand'!M51 -> 0 | G25: =('Transport and energy demand'!H51/D25)*'Transport and energy demand'!L51 -> 0
B26: Moisture protection | C26: Steamroller | D26: =('Transport and energy demand'!D67*1000)/E11 -> 2500 | E26: =('Transport and energy demand'!D49/D26)*'Transport and energy demand'!N49 -> 0.0012 | F26: =('Transport and energy demand'!D49/D26)*'Transport and energy demand'!M49 -> 0 | G26: =('Transport and energy demand'!H49/D26)*'Transport and energy demand'!L49 -> 0
C27: Tractor | D27: =('Transport and energy demand'!D68*1000)/E11 -> 10000 | E27: =('Transport and energy demand'!D50/D27)*'Transport and energy demand'!N50 -> 0.0005 | F27: =('Transport and energy demand'!D50/D27)*'Transport and energy demand'!M50 -> 0 | G27: =('Transport and energy demand'!H50/D27)*'Transport and energy demand'!L50 -> 0
C28: Paver | D28: =('Transport and energy demand'!D69*1000)/E11 -> 125 | E28: =('Transport and energy demand'!D51/D28)*'Transport and energy demand'!N51 -> 0.024 | F28: =('Transport and energy demand'!D51/D28)*'Transport and energy demand'!M51 -> 0 | G28: =('Transport and energy demand'!H51/D28)*'Transport and energy demand'!L51 -> 0

Sheet Culvert
B2: Materials and transport
B3: Category | C3: Type of material | D3: Material demand | F3: Transport | I3: Comments
D4: Volume [m3/m2] | E4: Mass per area [kg/m2] | F4: Amount of diesel [litre/m2] | G4: Amount of bio [litre/m2] | H4: Amount of elec. [kWh/m2]
B5: Construction | C5: Concrete | D5: =IFERROR(('Calculation factors'!D54*2)+(2*'Calculation factors'!D54*'Calculation factors'!D55/'Project description and input'!C15),0) -> 0 | E5: =(D5*'Calculation factors'!D4) -> 0 | F5: =(E5/1000)*'Transport and energy demand'!D33*'Transport and energy demand'!D10*'Transport and energy demand'!N33 -> 0 | G5: =(E5/1000)*'Transport and energy demand'!D33*'Transport and energy demand'!D10*'Transport and energy demand'!M33 -> 0 | H5: =(E5/1000)*'Transport and energy demand'!H33*'Transport and energy demand'!D10*'Transport and energy demand'!L33 -> 0
C6: Reinforcement steel | E6: =E5/'Calculation factors'!D56 -> 0 | F6: =(E6/1000)*'Transport and energy demand'!D35*'Transport and energy demand'!D12*'Transport and energy demand'!N35 -> 0 | G6: =(E6/1000)*'Transport and energy demand'!D35*'Transport and energy demand'!D12*'Transport and energy demand'!M35 -> 0 | H6: =(E6/1000)*'Transport and energy demand'!H35*'Transport and energy demand'!D12*'Transport and energy demand'!L35 -> 0
B8: Construction work
B9: Category | C9: Type of machinery | D9: Energy demand | H9: Comments
D10: Working speed [timer/p] | E10: Amount of diesel [litre/p] | F10: Amount of bio [litre/p] | G10: Amount of elec. [kWh/p]
B11: Construction | C11: Tower crane | D11: ='Calculation factors'!D57 -> 18 | E11: - | F11: - | G11: =D11*'Transport and energy demand'!H55*'Transport and energy demand'!L55 -> 874.8

Sheet Vegetation and land use change
B2: Transport
B3: Category | D3: Transport | I3: Kommentar
D4: Weight [kg/m2] | E4: Weight [kg/m3] | F4: Amount of diesel [litre/m2] | G4: Amount of bio [litre/m2] | H4: Amount of elec. [kWh/m2]
B5: Soil | C5: Soil masses used in project | D5: ='Calculation factors'!D14*'Calculation factors'!D119 -> 488.7463592 | F5: =(D5/1000)*'Transport and energy demand'!D26*'Transport and energy demand'!D4*'Transport and energy demand'!N26 -> 0 | G5: =(D5/1000)*'Transport and energy demand'!D26*'Transport and energy demand'!D4*'Transport and energy demand'!M26 -> 0 | H5: =(D5/1000)*'Transport and energy demand'!H26*'Transport and energy demand'!D4*'Transport and energy demand'!L26 -> 0
C6: Soil masses to landfill | D6: ='Calculation factors'!D14*'Calculation factors'!D119 -> 488.7463592 | F6: =(D6/1000)*'Transport and energy demand'!D27*'Transport and energy demand'!D5*'Transport and energy demand'!N27 -> 0.1954985437 | G6: =(D5/1000)*'Transport and energy demand'!D27*'Transport and energy demand'!D5*'Transport and energy demand'!M27 -> 0 | H6: =(D5/1000)*'Transport and energy demand'!H27*'Transport and energy demand'!D5*'Transport and energy demand'!L27 -> 0
B8: Anleggsarbeid
B9: Category | C9: Energy demand | I9: Kommentar
C10: Volume per area [m3/m2] | D10: Weight [kg/m2] | E10: Construction work [h/m2] | F10: Amount of diesel [litre/m2] | G10: Amount of bio [litre/m2] | H10: Amount of elec. [kWh/m2]
B11: Removal of vegetation cover | C11: ='Calculation factors'!D119 -> 0.3 | D11: =C11*'Calculation factors'!D14 -> 488.7463592 | E11: =((D11/1000)/'Transport and energy demand'!D70)*2 -> 0.006516618123 | F11: =E11*'Transport and energy demand'!D52*'Transport and energy demand'!N52 -> 0.1303323625 | G11: =E11*'Transport and energy demand'!D52*'Transport and energy demand'!M52 -> 0 | H11: =E11*'Transport and energy demand'!H52*'Transport and energy demand'!L52 -> 0 | I11: For Construction work [h/m2]: is multiplied woth 2 because the masses are also discharged somewhere.
B13: Land use changes
B14: Type of vegetation
C15: Amount [m2]
B16: Cleared forest - low site quality | C16: ='Project description and input'!C23*'Project description and input'!C26 -> 0
B17: Cleared forest - medium site quality | C17: ='Project description and input'!C23*'Project description and input'!C27 -> 0
B18: Cleared forest - high site quality | C18: ='Project description and input'!C23*'Project description and input'!C28 -> 0
B19: Marsh | C19: ='Project description and input'!C23*'Project description and input'!C29 -> 0
B20: Agricultural land | C20: ='Project description and input'!C23*'Project description and input'!C30 -> 0
B21: Built land | C21: ='Project description and input'!C23*'Project description and input'!C31 -> 0

Sheet Blasting and crushed rock
B2: Materials og transport
B3: Category | D3: Materials | E3: Transport stone | I3: Comments
D4: Vekt tovex [kg/fm3] | E4: Vekt [kg/fm3] | F4: Mengde diesel [L/fm3] | G4: Mengde bio [L/fm3] | H4: Mengde el [kWh/fm3]
B5: Blasting in rock | C5: Explosives | D5: ='Calculation factors'!D49 -> 2.2 | E5: ='Calculation factors'!D16*D5 -> 5940
B6: Open-air blasting | C6: Explosives | D6: ='Calculation factors'!D48 -> 1 | E6: ='Calculation factors'!D16*D6 -> 2700
C7: Rock masses used in project | E7: ='Calculation factors'!D16 -> 2700 | F7: =(E7/1000)*'Transport and energy demand'!D26*'Transport and energy demand'!D4*'Transport and energy demand'!N26 -> 0 | G7: =(E7/1000)*'Transport and energy demand'!D26*'Transport and energy demand'!D4*'Transport and energy demand'!M26 -> 0 | H7: =(E7/1000)*'Transport and energy demand'!H26*'Transport and energy demand'!D4*'Transport and energy demand'!L26 -> 0
C8: Rock masses to landfill | E8: ='Calculation factors'!D16 -> 2700 | F8: =(E8/1000)*'Transport and energy demand'!D27*'Transport and energy demand'!D5*'Transport and energy demand'!N27 -> 1.08 | G8: =(E8/1000)*'Transport and energy demand'!D27*'Transport and energy demand'!D5*'Transport and energy demand'!M27 -> 0 | H8: =(E8/1000)*'Transport and energy demand'!H27*'Transport and energy demand'!D5*'Transport and energy demand'!L27 -> 0
C9: Rock masses used in project via crushing plant | E9: ='Calculation factors'!D16 -> 2700 | F9: =(E9/1000)*'Transport and energy demand'!D28*'Transport and energy demand'!D6*'Transport and energy demand'!N28*2 -> 2.16 | G9: =(E9/1000)*'Transport and energy demand'!D28*'Transport and energy demand'!D6*'Transport and energy demand'!M28*2 -> 0 | H9: =(E9/1000)*'Transport and energy demand'!H28*'Transport and energy demand'!D6*'Transport and energy demand'!L28*2 -> 0
E10: Vekt [kg/m3] | F10: Mengde diesel [L/m3] | G10: Mengde bio [L/m3] | H10: Mengde el [kWh/m3]
B11: External crushed stone | C11: Crusher coarsely crushed and finely crushed | E11: ='Calculation factors'!D9*(1-'Calculation factors'!D51)+'Calculation factors'!D10*'Calculation factors'!D51 -> 1550 | F11: =(E11/1000)*'Transport and energy demand'!D32*'Transport and energy demand'!D9*'Transport and energy demand'!N32 -> 1.55 | G11: =(E11/1000)*'Transport and energy demand'!D32*'Transport and energy demand'!D9*'Transport and energy demand'!M32 -> 0 | H11: =(E11/1000)*'Transport and energy demand'!H32*'Transport and energy demand'!D9*'Transport and energy demand'!L32 -> 0
B13: Construction work
B14: Category | C14: Type of machinery | D14: Construction work | H14: Comments
D15: Weight [kg/fm3] | E15: Amount of diesel [litre/fm3] | F15: Amount of bio [litre/fm3] | G15: Amount of elec. [kWh/fm3]
B16: Loading of blasting stones | C16: Excavator | D16: ='Calculation factors'!D16 -> 2700 | E16: =((D16/1000)/'Transport and energy demand'!D70)*'Transport and energy demand'!D52*'Transport and energy demand'!N52 -> 0.36 | F16: =((D16/1000)/'Transport and energy demand'!D70)*'Transport and energy demand'!D52*'Transport and energy demand'!M52 -> 0 | G16: =((D16/1000)/'Transport and energy demand'!D70)*'Transport and energy demand'!H52*'Transport and energy demand'!L52 -> 0
B17: Unloading / laying of blasting stones | C17: Excavator | D17: ='Calculation factors'!D16 -> 2700 | E17: =((D17/1000)/'Transport and energy demand'!D70)*'Transport and energy demand'!D52*'Transport and energy demand'!N52 -> 0.36 | F17: =((D17/1000)/'Transport and energy demand'!D70)*'Transport and energy demand'!D52*'Transport and energy demand'!M52 -> 0 | G17: =((D17/1000)/'Transport and energy demand'!D70)*'Transport and energy demand'!H52*'Transport and energy demand'!L52 -> 0 | H17: Assumed to be the same as loading
B18: Blasting stones | C18: Coarse crusher | D18: ='Calculation factors'!D16 -> 2700 | E18: =((D18/1000)/'Transport and energy demand'!D71)*'Transport and energy demand'!D53*'Transport and energy demand'!N53 -> 0.54 | F18: =((D18/1000)/'Transport and energy demand'!D71)*'Transport and energy demand'!D53*'Transport and energy demand'!M53 -> 0 | G18: =((D18/1000)/'Transport and energy demand'!D71)*'Transport and energy demand'!H53*'Transport and energy demand'!L53 -> 0
B19: Blasting stones | C19: Fine crusher | D19: ='Calculation factors'!D16 -> 2700 | E19: =((D19/1000)/'Transport and energy demand'!D72)*'Transport and energy demand'!D54*'Transport and energy demand'!N54 -> 0.27 | F19: =((D19/1000)/'Transport and energy demand'!D72)*'Transport and energy demand'!D54*'Transport and energy demand'!M54 -> 0 | G19: =((D18/1000)/'Transport and energy demand'!D72)*'Transport and energy demand'!H54*'Transport and energy demand'!L54 -> 0
D20: Vekt [kg/m3] | E20: Mengde diesel [L/m3] | F20: Mengde bio [L/m3] | G20: Mengde el [kWh/m3]
B21: Unloading / laying of external crushed stone | C21: Excavator | D21: ='Calculation factors'!D9*(1-'Calculation factors'!D51)+'Calculation factors'!D10*'Calculation factors'!D51 -> 1550 | E21: =((D21/1000)/'Transport and energy demand'!D70)*'Transport and energy demand'!D52*'Transport and energy demand'!N52 -> 0.2066666667 | F21: =((D21/1000)/'Transport and energy demand'!D70)*'Transport and energy demand'!D52*'Transport and energy demand'!M52 -> 0 | G21: =((D21/1000)/'Transport and energy demand'!D70)*'Transport and energy demand'!H52*'Transport and energy demand'!L52 -> 0

Sheet Addition road
B2: Materials and transport
B3: Category | C3: Type of material | D3: Material demand | F3: Transport | I3: Comments
D4: Amount of veistrekning [kg/m] | E4: Amount of diesel [litre/p] | F4: Amount of bio [litre/p] | G4: Amount of elec. [kWh/p]
B5: Lampposts main stretch | C5: Steel | D5: ='Calculation factors'!D103*'Calculation factors'!D104/1000 -> 5.066666667 | E5: =(D5/1000)*'Transport and energy demand'!D34*'Transport and energy demand'!D11*'Transport and energy demand'!N34 -> 0.1621333333 | F5: =(D5/1000)*'Transport and energy demand'!D34*'Transport and energy demand'!D11*'Transport and energy demand'!M34 -> 0 | G5: =(D5/1000)*'Transport and energy demand'!H33*'Transport and energy demand'!D11*'Transport and energy demand'!L34 -> 0 | H5: Only relevant for open main road and bridges. Per row of lamp posts.
B6: Llampposts sideways | C6: Steel | D6: ='Calculation factors'!D103*'Calculation factors'!D105/1000 -> 0 | E6: =(D6/1000)*'Transport and energy demand'!D34*'Transport and energy demand'!D11*'Transport and energy demand'!N34 -> 0 | F6: =(D6/1000)*'Transport and energy demand'!D34*'Transport and energy demand'!D11*'Transport and energy demand'!M34 -> 0 | G6: =(D6/1000)*'Transport and energy demand'!H33*'Transport and energy demand'!D11*'Transport and energy demand'!L34 -> 0 | H6: Only relevant for open secondary roads. Per row of lamp posts.
B7: Car protection/railings | C7: Steel | D7: ='Calculation factors'!D106 -> 16.86 | E7: =(D7/1000)*'Transport and energy demand'!D34*'Transport and energy demand'!D11*'Transport and energy demand'!N34 -> 0.53952 | F7: =(D7/1000)*'Transport and energy demand'!D34*'Transport and energy demand'!D11*'Transport and energy demand'!M34 -> 0 | G7: =(D7/1000)*'Transport and energy demand'!H33*'Transport and energy demand'!D11*'Transport and energy demand'!L34 -> 0 | H7: By car protection
D8: Amount of wall/shield [kg/m] | E8: Amount of diesel [litre/p] | F8: Amount of bio [litre/p] | G8: Amount of elec. [kWh/p]
B9: Noise shield | C9: Wood | D9: ='Calculation factors'!D98*'Calculation factors'!D99*'Calculation factors'!D18 -> 117.5 | E9: =(D9/1000)*'Transport and energy demand'!D39*'Transport and energy demand'!D16*'Transport and energy demand'!N39 -> 1.175 | F9: =(D9/1000)*'Transport and energy demand'!D39*'Transport and energy demand'!D16*'Transport and energy demand'!M39 -> 0 | G9: =(D9/1000)*'Transport and energy demand'!H39*'Transport and energy demand'!D16*'Transport and energy demand'!L39 -> 0
C10: Steel | D10: ='Calculation factors'!D100 -> 23.5 | E10: =(D10/1000)*'Transport and energy demand'!D34*'Transport and energy demand'!D11*'Transport and energy demand'!N34 -> 0.752 | F10: =(D10/1000)*'Transport and energy demand'!D34*'Transport and energy demand'!D11*'Transport and energy demand'!M34 -> 0 | G10: =(D10/1000)*'Transport and energy demand'!H34*'Transport and energy demand'!D11*'Transport and energy demand'!L34 -> 0
C11: Concrete | D11: ='Calculation factors'!D101 -> 84 | E11: =(D11/1000)*'Transport and energy demand'!D33*'Transport and energy demand'!D10*'Transport and energy demand'!N33 -> 0.084 | F11: =(D11/1000)*'Transport and energy demand'!D33*'Transport and energy demand'!D10*'Transport and energy demand'!M33 -> 0 | G11: =(D11/1000)*'Transport and energy demand'!H33*'Transport and energy demand'!D10*'Transport and energy demand'!L33 -> 0
B12: Wall | C12: Concrete | D12: ='Calculation factors'!D94*'Calculation factors'!D96*'Calculation factors'!D4*(1-'Calculation factors'!D97) -> 3000 | E12: =(D12/1000)*'Transport and energy demand'!D33*'Transport and energy demand'!D10*'Transport and energy demand'!N33 -> 3 | F12: =(D12/1000)*'Transport and energy demand'!D33*'Transport and energy demand'!D10*'Transport and energy demand'!M33 -> 0 | G12: =(D12/1000)*'Transport and energy demand'!H33*'Transport and energy demand'!D10*'Transport and energy demand'!L33 -> 0 | H12: Based on the proportion of concrete wall per meter of wall
C13: Natural stone | D13: ='Calculation factors'!D95*'Calculation factors'!D96*'Calculation factors'!D19*'Calculation factors'!D97 -> 0 | E13: =(D13/1000)*'Transport and energy demand'!D40*'Transport and energy demand'!D17*'Transport and energy demand'!N40 -> 0 | F13: =(D13/1000)*'Transport and energy demand'!D40*'Transport and energy demand'!D17*'Transport and energy demand'!M40 -> 0 | G13: =(D13/1000)*'Transport and energy demand'!H40*'Transport and energy demand'!D17*'Transport and energy demand'!L40 -> 0 | H13: Based on the proportion of natural stone wall per meter of wall
B15: Anleggsarbeid
B16: Category | C16: Type of machinery | D16: Energy demand | H16: Comments
D17: Amount of diesel [litre/p] | E17: Amount of bio [litre/p] | F17: Amount of elec. [kWh/p]
B18: Installation of car protection/railings | C18: Pelerigg/lastebil | D18: ='Transport and energy demand'!D58*'Transport and energy demand'!N58 -> 0.4 | E18: ='Transport and energy demand'!D58*'Transport and energy demand'!M58 -> 0 | F18: ='Transport and energy demand'!H58*'Transport and energy demand'!L58 -> 0 | G18: In the calculationg of greenhouse gas emissions it is assumed four safety fences on four lane roads and two on two lane roads.
B19: Road marking | C19: Formerkebil (pickup) | D19: ='Transport and energy demand'!D56*'Transport and energy demand'!N56 -> 0.0059 | E19: ='Transport and energy demand'!D56*'Transport and energy demand'!M56 -> 0 | F19: ='Transport and energy demand'!H56*'Transport and energy demand'!L56 -> 0
B20: Establishment of ditch | C20: Excavator | D20: ='Transport and energy demand'!D57*'Transport and energy demand'!N57 -> 40 | E20: ='Transport and energy demand'!D57*'Transport and energy demand'!M57 -> 0 | F20: ='Transport and energy demand'!H57*'Transport and energy demand'!L57 -> 0
B21: Establishment of nouise shield | C21: Special maskin | D21: ='Transport and energy demand'!D63*'Transport and energy demand'!N63 -> 0.5 | E21: ='Transport and energy demand'!D63*'Transport and energy demand'!M63 -> 0 | F21: ='Transport and energy demand'!H63*'Transport and energy demand'!L63 -> 0
B22: Establishment og wall | C22: Excavator | D22: ='Transport and energy demand'!D52/('Transport and energy demand'!D79*('Calculation factors'!D4/1000*(1-'Calculation factors'!D97)+'Calculation factors'!D19/1000*'Calculation factors'!D97))*(D12+D13)/1000*'Transport and energy demand'!N52 -> 10.41666667 | E22: ='Transport and energy demand'!D52/('Transport and energy demand'!D79*('Calculation factors'!D4/1000*(1-'Calculation factors'!D97)+'Calculation factors'!D19/1000*'Calculation factors'!D97))*(D12+D13)/1000*'Transport and energy demand'!M52 -> 0 | F22: ='Transport and energy demand'!H52/('Transport and energy demand'!D79*('Calculation factors'!D4/1000*(1-'Calculation factors'!D97)+'Calculation factors'!D19/1000*'Calculation factors'!D97))*(D12+D13)/1000*'Transport and energy demand'!L52 -> 0 | G22: Assume excavator

Sheet Operation and maintenance
B1: Operation and maintenance
B2: Background data
B3: ÅDT | C3: ='Project description and input'!C17 -> 12000
B5: Materialer, strømforbruk og transport
B6: Main category | C6: Subcategory | D6: Production factor type | E6: Material demand | F6: Energy demand | J6: Comments
E7: Mass per road distance [kg/m] | F7: Amount of diesel [litre/m] | G7: Amount of bio [litre/m] | H7: Amount of elec. [kWh/m] | I7: Amount of elec. [kWh/(m*m)] | J7: All quantities in this tab are stated per year. For maintenance performed at replacement intervals, the values apply for the years in which maintenance takes place. Construction roads are omitted from all calculations related to operation.
B8: Continuous operation | C8: Lighting open main road | D8: Electricity | H8: ='Calculation factors'!D81*'Calculation factors'!D104/1000 -> 16 | J8: Is multiplied by the number of lighting rows and total length of open main road and bridge to find total consumption for the section.
C9: Lighting open secpndary road | D9: Electricity | H9: ='Calculation factors'!D81*'Calculation factors'!D105/1000 -> 0 | J9: Is multiplied by the number of lighting rows and total length of secondary road to find total consumption for the section.
C10: Lighting tunnel | D10: Electricity | H10: ='Calculation factors'!D82 -> 34 | J10: Is multiplied by the number of tubes and tunnel length to find consumption for each tunnel.
C11: Pump operation singel run tunnel | D11: Electricity | H11: ='Calculation factors'!D88*'Calculation factors'!D66+'Calculation factors'!D87*(1-'Calculation factors'!D66) -> 0 | J11: Is multiplied by the total length of single tube tunnels to find the total consumption for the section.
C12: Pump operation double run tunnel | D12: Electricity | H12: ='Calculation factors'!D88*2*'Calculation factors'!D67+'Calculation factors'!D87*2*(1-'Calculation factors'!D67) -> 0 | J12: Is multiplied by the total length of double tube tunnels to find the total consumption for the section.
C13: Fan operation singel run tunnel | D13: Electricity | H13: ='Calculation factors'!D66*'Calculation factors'!D84/1000*'Operation and maintenance'!C3+(1-'Calculation factors'!D66)*'Calculation factors'!D83/1000*'Operation and maintenance'!C3 -> 44.4 | J13: Is multiplied by the total length of single tube tunnels to find the total consumption for the section. Formula from "Metoderapport" p. 46
C14: Fan operation double run tunnel | D14: Electricity | H14: ='Calculation factors'!D67*'Calculation factors'!D86/1000*'Operation and maintenance'!C3+(1-'Calculation factors'!D67)*'Calculation factors'!D85/1000*'Operation and maintenance'!C3 -> 44.4 | J14: Is multiplied by the total length of double tube tunnels to find the total consumption for the section. Formula from "Metoderapport" p. 46
B15: Seasonal operation | C15: Ditch clearing | D15: Solid masses/vegetation | E15: ='Calculation factors'!D17*'Calculation factors'!D92 -> 186.2 | F15: =E15/1000*'Transport and energy demand'!D5*'Transport and energy demand'!D38*'Transport and energy demand'!N38 -> 0.07448 | G15: =E15/1000*'Transport and energy demand'!D5*'Transport and energy demand'!D38*'Transport and energy demand'!M38 -> 0 | H15: =E15/1000*'Transport and energy demand'!D5*'Transport and energy demand'!H38*'Transport and energy demand'!L38 -> 0 | J15: Operating interval with default value of 3 years (can be replaced with project-specific value in the calculation factor tab). Is multiplied by the number of ditches and total section length to find total consumption for the section.
C16: Salt | D16: Salt | E16: ='Calculation factors'!D89*1000/1000 -> 10.5 | F16: =E16/1000*'Transport and energy demand'!D15*'Transport and energy demand'!D38*'Transport and energy demand'!N38 -> 0.105 | G16: =E16/1000*'Transport and energy demand'!D15*'Transport and energy demand'!D38*'Transport and energy demand'!M38 -> 0 | H16: =E16/1000*'Transport and energy demand'!D15*'Transport and energy demand'!H38*'Transport and energy demand'!L38 -> 0 | J16: Is multiplied by the total section length to find the total consumption for the section.
B17: Maintenance | C17: Light poles main road and bridge replacement | D17: Steel | E17: ='Calculation factors'!D103*'Calculation factors'!D104/1000 -> 5.066666667 | F17: =(E17/1000)*'Transport and energy demand'!D34*'Transport and energy demand'!D11*'Transport and energy demand'!N34 -> 0.1621333333 | G17: =(E17/1000)*'Transport and energy demand'!D34*'Transport and energy demand'!D11*'Transport and energy demand'!M34 -> 0 | H17: =(E17/1000)*'Transport and energy demand'!H33*'Transport and energy demand'!D11*'Transport and energy demand'!L34 -> 0 | J17: Replacement interval given by lifetime with default value equal to 30 years (can be replaced with project-specific value in the calculation factor tab). Is multiplied by the number of lighting rows and total length of open main road and bridge to find total consumption for the section.
C18: Lampposts sideways replacement | D18: Steel | E18: ='Calculation factors'!D103*'Calculation factors'!D105/1000 -> 0 | F18: =(E18/1000)*'Transport and energy demand'!D34*'Transport and energy demand'!D11*'Transport and energy demand'!N34 -> 0 | G18: =(E18/1000)*'Transport and energy demand'!D34*'Transport and energy demand'!D11*'Transport and energy demand'!M34 -> 0 | H18: =(E18/1000)*'Transport and energy demand'!H33*'Transport and energy demand'!D11*'Transport and energy demand'!L34 -> 0 | J18: Replacement interval given by lifetime with default value equal to 30 years (can be replaced with project-specific value in the calculation factor tab). Is multiplied by the number of lighting rows and total length of secondary road and bridge to find total consumption for the section.
C19: Guard rail/safety fence replacement | D19: Steel | E19: ='Calculation factors'!D106 -> 16.86 | F19: =(E19/1000)*'Transport and energy demand'!D34*'Transport and energy demand'!D11*'Transport and energy demand'!N34 -> 0.53952 | G19: =(E19/1000)*'Transport and energy demand'!D34*'Transport and energy demand'!D11*'Transport and energy demand'!M34 -> 0 | H19: =(E19/1000)*'Transport and energy demand'!H33*'Transport and energy demand'!D11*'Transport and energy demand'!L34 -> 0 | J19: Replacement interval given by lifetime with default value equal to 30 years (can be replaced with project-specific value in the calculation factor tab). Is multiplied by the number of safety fences and total section length to find the total consumption for the section.
B21: Anleggsarbeid
B22: Main category | C22: Category | D22: Type of machinery | E22: Energy demand | H22: Comments
E23: Amount of diesel [litre/m] | F23: Amount of bio [litre/m] | G23: Amount of elec. [kWh/m] | H23: All quantities in this tab are stated per year. For maintenance performed at replacement intervals, the values apply for the years in which maintenance takes place. Construction roads are omitted from all calculations related to operation.
B24: Seasonal operation | C24: Roadside mowing | D24: Wheel loader/ tractor | E24: ='Transport and energy demand'!D59/'Transport and energy demand'!D78*'Transport and energy demand'!N59 -> 0.001 | F24: ='Transport and energy demand'!D59/'Transport and energy demand'!D78*'Transport and energy demand'!M59 -> 0 | G24: ='Transport and energy demand'!H59/'Transport and energy demand'!D78*'Transport and energy demand'!L59 -> 0 | H24: Is multiplied by the total length of open road and the number of ditches to find the total consumption for the section.
C25: Ditch clearing | D25: Excavator | E25: ='Transport and energy demand'!D52/'Transport and energy demand'!D76*'Transport and energy demand'!N52 -> 0.06666666667 | F25: ='Transport and energy demand'!D52/'Transport and energy demand'!D76*'Transport and energy demand'!M52 -> 0 | G25: ='Transport and energy demand'!H52/'Transport and energy demand'!D76*'Transport and energy demand'!L52 -> 0 | H25: Operating interval with default value of 3 years (can be replaced with project-specific value in the calculation factor tab). Is multiplied by the number of ditches and total section length to find total consumption for the section.
C26: Sweeping | D26: Wheel loader | E26: ='Transport and energy demand'!D60/'Transport and energy demand'!D77*'Transport and energy demand'!N60 -> 0.00375 | F26: ='Transport and energy demand'!D60/'Transport and energy demand'!D77*'Transport and energy demand'!M60 -> 0 | G26: ='Transport and energy demand'!H60/'Transport and energy demand'!D77*'Transport and energy demand'!L60 -> 0 | H26: Is multiplied by section length and number of lanes to find total consumption for each part of the section.
C27: Spreading salt | D27: Salt truck (truck) | E27: ='Transport and energy demand'!D61/1000*'Calculation factors'!D91*'Transport and energy demand'!N61 -> 0.064 | F27: ='Transport and energy demand'!D61/1000*'Calculation factors'!D91*'Transport and energy demand'!M61 -> 0 | G27: ='Transport and energy demand'!H61/1000*'Calculation factors'!D91*'Transport and energy demand'!L61 -> 0 | H27: Is multiplied by the total length of open main road and bridges and half of the number of lanes to find the total consumption for each part of the section (assuming that two lanes are salted at the same time).
C28: Ploughing | D28: Snowplough | E28: ='Transport and energy demand'!D62/1000*'Calculation factors'!D90*'Transport and energy demand'!N62 -> 0.463808 | F28: ='Transport and energy demand'!D62/1000*'Calculation factors'!D90*'Transport and energy demand'!M62 -> 0 | G28: ='Transport and energy demand'!H62/1000*'Calculation factors'!D90*'Transport and energy demand'!L62 -> 0 | H28: Is multiplied by the total length of the open main road and bridges to find the total consumption for each part of the section.
B29: Maintenance | C29: Replacement of guardrail/railing | D29: Piling rig/lorry | E29: ='Transport and energy demand'!D58*'Transport and energy demand'!N58 -> 0.4 | F29: ='Transport and energy demand'!D58*'Transport and energy demand'!M58 -> 0 | G29: ='Transport and energy demand'!H58*'Transport and energy demand'!L58 -> 0 | H29: Replacement interval given by lifetime with default value equal to 30 years (can be replaced with project-specific value in the calculation factor tab). Is multiplied by the number of safety fences and total section length to find the total consumption for the section.

Sheet Re-asphalting
B1: Re-asphalting
B2: Background data
B3: Share that is re-asphalted | C3: ='Calculation factors'!D80 -> 0.65
B5: Materials and transport
B6: Category | C6: Material demand | E6: Transport | H6: Comments
C7: Volume/area [m3/m2] | D7: Mass per area [kg/m2] | E7: Amount of diesel [litre/m2] | F7: Amount of bio [litre/m2] | G7: Amount of elec. [kWh/m2]
B8: Wearing course (Ska) | C8: ='Calculation factors'!D23 -> 0.04 | D8: =C8*'Calculation factors'!D6*C3 -> 65 | E8: =(D8/1000)*'Transport and energy demand'!D30*'Transport and energy demand'!D7*'Transport and energy demand'!N30 -> 0.065 | F8: =(D8/1000)*'Transport and energy demand'!D30*'Transport and energy demand'!D7*'Transport and energy demand'!M30 -> 0 | G8: =(D8/1000)*'Transport and energy demand'!H30*'Transport and energy demand'!D7*'Transport and energy demand'!L30 -> 0
B9: Wearing course (Agb) | C9: ='Calculation factors'!D23 -> 0.04 | D9: =C9*'Calculation factors'!D7*C3 -> 65 | E9: =(D9/1000)*'Transport and energy demand'!D30*'Transport and energy demand'!D7*'Transport and energy demand'!N30 -> 0.065 | F9: =(D9/1000)*'Transport and energy demand'!D30*'Transport and energy demand'!D7*'Transport and energy demand'!M30 -> 0 | G9: =(D9/1000)*'Transport and energy demand'!H30*'Transport and energy demand'!D7*'Transport and energy demand'!L30 -> 0
B11: Construction work
B12: Category | C12: Type of machinery | D12: Construction work | H12: Comments
D13: Working speed [m2/h] | E13: Amount of diesel [litre/m2] | F13: Amount of bio [litre/m2] | G13: Amount of elec. [kWh/m2]
B14: Removal | C14: Excavator | D14: =('Transport and energy demand'!D70*1000)/D9 -> 2307.692308 | E14: =('Transport and energy demand'!D52/D14)*'Transport and energy demand'!N52 -> 0.008666666667 | F14: =('Transport and energy demand'!D52/D14)*'Transport and energy demand'!M52 -> 0 | G14: =('Transport and energy demand'!H52/D14)*'Transport and energy demand'!L52 -> 0
B15: Asphalting | C15: Steamroller | D15: =('Transport and energy demand'!D67*1000)/D9 -> 1153.846154 | E15: =('Transport and energy demand'!D49/D15)*'Transport and energy demand'!N49 -> 0.0026 | F15: =('Transport and energy demand'!D49/D15)*'Transport and energy demand'!M49 -> 0 | G15: =('Transport and energy demand'!H49/D15)*'Transport and energy demand'!L49 -> 0
C16: Tractor | D16: =('Transport and energy demand'!D68*1000)/D9 -> 4615.384615 | E16: =('Transport and energy demand'!D50/D16)*'Transport and energy demand'!N50 -> 0.001083333333 | F16: =('Transport and energy demand'!D50/D16)*'Transport and energy demand'!M50 -> 0 | G16: =('Transport and energy demand'!H50/D16)*'Transport and energy demand'!L50 -> 0
C17: Paver | D17: =('Transport and energy demand'!D69*1000)/D9 -> 57.69230769 | E17: =('Transport and energy demand'!D51/D17)*'Transport and energy demand'!N51 -> 0.052 | F17: =('Transport and energy demand'!D51/D17)*'Transport and energy demand'!M51 -> 0 | G17: =('Transport and energy demand'!H51/D17)*'Transport and energy demand'!L51 -> 0

Sheet Beregningsfaktorer arbeidsfane (hidden)
A1: OK? | B1: Faktor | C1: Gammel verdi | D1: Enhet | E1: Fane | F1: Bruksområde | G1: Kategori | H1: Dokumentasjon gammel verdi | I1: VegLCA | J1: Dokumentasjon VegLCA | K1: Kommentar | L1: Vurdering | M1: Foreslått ny verdi | N1: Enhet | O1: Dokumentasjon verdi i oppdatert verktøy | P1: Evt. kommentar ny verdi i verktøy | Q1: Evt. lenker kilder
B2: Massetettheter
A3: OK | B3: Betong massetetthet | C3: 2400 | D3: kg/m3 | E3: Tunnel (begge) | F3: Beregning av dieselforbruk transport m.m. | G3: Massetetthet | H3: Ingen | I3: 2400 | J3: Norsk betongforening Publikasjon 37: Lavkarbonbetong (2015) | K3: Samme i VegLCA, god dokumentasjon | L3: Beholde | M3: =IF(L3="Beholde",C3,IF(L3="Fjerne","-","")) -> 2400 | N3: =IF(L3="Beholde",D3,IF(L3="Fjerne","-",IF(OR(L3="Oppdatere",L3="Legge til",L3="Bake inn i annen faktor"),D3,""))) -> kg/m3 | O3: Norsk betongforening Publikasjon 37: Lavkarbonbetong (2015)
A4: OK | B4: Armeringsstål massetetthet | C4: 7800 | D4: kg/m3 | E4: Tunnel (begge) | F4: Brukes ikke | G4: Massetetthet | H4: Ingen | I4: 7400 | J4: Densities of solids, The engineering toolbox (men denne oppgir 7850?) | K4: 7850 i metoderapport og på engineering toolbox, foreslår å bruke det. VegLCA bør vurdere oppdatering. | L4: Oppdatere | M4: 7850 | N4: =IF(L4="Beholde",D4,IF(L4="Fjerne","-",IF(OR(L4="Oppdatere",L4="Legge til",L4="Bake inn i annen faktor"),D4,""))) -> kg/m3 | O4: Metoderapport s. 8, Engineering Toolbox, https://www.engineeringtoolbox.com/metal-alloys-densities-d_50.html
A5: OK | B5: Sikringsbolter massetetthet | C5: 7800 | D5: kg/m3 | E5: Tunnel (begge) | F5: Brukes ikke | G5: Massetetthet | H5: Ingen | I5: 7400 | J5: Densities of solids, The engineering toolbox (men denne oppgir 7850?) | K5: Samme som armeringsstål - bare ha én for stål. 7850 i metoderapport og på engineering toolbox, foreslår å bruke det. VegLCA bør vurdere oppdatering. | L5: Fjerne | M5: =IF(L5="Beholde",C5,IF(L5="Fjerne","-","")) -> - | N5: - | O5: =IF(OR(L5="Fjerne",L5="Bake inn i annen faktor"),"-","") -> -
A6: OK | B6: Asfaltbetong massetetthet | C6: 2500 | D6: kg/m3 | E6: Tunnel (begge) | F6: Beregning av dieselforbruk transport m.m. | G6: Massetetthet | H6: Ingen | I6: 2500 | J6: Klimamodul EFFEKT 6.74 | K6: Til slitelag, bindlag og skulder. Anbefalt verdi etter samkjøring. Står i metoderapport s. 34. | L6: Beholde | M6: 2500 | N6: kg/m3 | O6: Metoderapport s. 34
A7: OK | B7: Asfaltgrus massetetthet | C7: 2400 | D7: kg/m3 | E7: Tunnel (begge) | F7: Beregning av dieselforbruk transport m.m. for bærelag | G7: Massetetthet | H7: Metoderapport s. 32 | I7: 2400 | J7: Klimamodul EFFEKT 6.74 | K7: Til bærelag. Verdi i metoderapport er for AP, mens Ag har 2,65. Beholder 2400 for å sørge for høyest mulig grad av samsvar | L7: Beholde | M7: 2400 | N7: kg/m3 | O7: Klimamodul EFFEKT 6.74
A8: OK | B8: Pukk/grus frostsikring massetetthet | C8: 1800 | D8: kg/m3 | F8: Beregning av dieselforbruk transport m.m. | G8: Massetetthet | H8: Ingen | I8: 1500 | J8: Forsterkningslag i kult fra metoderapport s. 32 | K8: VegLCA er ikke oppdatert etter anbefalt verdi i samkjøringsprosjekt | L8: Oppdatere | M8: 1550 | N8: kg/m3 | O8: Anbefalt verdi i samkjøringsprosjekt, snitt av minimums- og maksimumsverdi (1,4-1,7) i EPDer
A9: OK | B9: Pukk/grus forsterkningslag massetetthet | C9: 1500 | D9: kg/m3 | E9: Tunnel (begge) | F9: Beregning av dieselforbruk transport m.m. | G9: Massetetthet | H9: Forsterkningslag i kult fra metoderapport s. 32 | I9: 1500 | J9: Forsterkningslag i kult fra metoderapport s. 32 | K9: VegLCA er ikke oppdatert etter anbefalt verdi i samkjøringsprosjekt | L9: Oppdatere | M9: 1550 | N9: kg/m3 | O9: Anbefalt verdi i samkjøringsprosjekt, snitt av minimums- og maksimumsverdi (1,4-1,7) i EPDer | Q9: https://www.epd-norge.no/getfile.php/139362-1537176670/EPDer/Byggevarer/Asfalt/NEPD-1257-403_Crushed-Stone-Bergkrossprodukter_1_1.pdf | R9: https://www.epd-norge.no/getfile.php/138731-1520978061/EPDer/Byggevarer/Asfalt/527_Crushed-stone-construction-aggregate-products--Oslo-and-Baerum_no.pdf
A10: OK | B10: XPS massetetthet | C10: 25 | D10: kg/m3 | E10: Utslippsfaktorer | F10: Beregning av massetetthet XPS-/betongelement brukt til frostsikring i tunnel | G10: Massetetthet | H10: Ingen | I10: 35 | J10: Antakelser basert på produsentdata fra Foamular, PakBoard, Thermals) | K10: Oppdatere til VegLCA sin faktor for å sørge for høyest mulig grad av samsvar, i tillegg til manglende dokumentasjon for vår faktor. 35 kg/m3 samsvarer godt med informasjon på nett. | L10: Oppdatere | M10: 35 | N10: kg/m3 | O10: VegLCA (kommunikasjon med leverandører)
A11: OK | B11: XPS-/betongelement til frostsikring i tunnel massetetthet | C11: 1800 | D11: kg/m3 | E11: Tunnel (begge) | F11: Beregning av dieselforbruk transport m.m. | G11: Massetetthet | H11: Ingen | I11: IR | J11: =IF(I11="IR","-","") -> - | K11: Estimert som gjennomsnittet av massetetthetene til betong og XPS basert på EPD fra Ølen betong der elementene består av 50 mm XPS og 150 mm betong (150 * 2400 + 50 * 25)/200 = 1800 kg/m3. Usikkert hvor massetetthet til XPS er hentet fra. I samkjøringsprosjekt står det at massetetthet til XPS ikke er relevant i NIRAS' verktøy. Foreslår å heller benytte 35 kg/m3 som i VegLCA | L11: Oppdatere | M11: =(50*M10+150*M3)/(M24*1000) -> 1808.75 | N11: kg/m3 | O11: EPD XPS-/betongelement Ølen betong
A12: OK | B12: Topeka massetetthet | C12: IR | D12: kg/m3 | F12: Beregning av dieselforbruk transport m.m. | G12: Massetetthet | H12: - | I12: 2500 | J12: Samme som asfalt, dvs. Klimamodul EFFEKT | L12: Legge til | M12: 2500 | N12: kg/m3 | O12: Metoderapport s. 34, bruker samme som asfaltbetong
A13: OK | B13: Vegetasjonsdekke massetetthet | C13: 2000 | D13: kg/m3 | E13: Fjerning av vegetasjon | G13: Massetetthet | L13: Oppdatere | M13: 1300 | N13: kg/m3 | O13: Metoderapport s. 32
A14: OK | B14: Myr massetetthet | G14: Massetetthet | L14: Oppdatere | M14: 150 | N14: kg/m3 | O14: "Utredning myr", Hadsel kommune (Asplan Viak, 2017)
A15: OK | B15: Massetetthet sprengstein | C15: 2650 | D15: kg/m3 | E15: Masser | G15: Massetetthet | L15: Beholde | M15: 2650 | N15: kg/m3 | O15: Metoderapport s. 32
A16: OK | B16: Masser fra grøfterensk massetetthet | C16: 1600 | D16: kg/m3 | E16: Drift | G16: Massetetthet | L16: Oppdatere | M16: 1300 | N16: kg/m3 | O16: Metoderapport s. 32
B17: Materialtykkelser/-mengder
A18: OK | B18: Slitelag tykkelse | C18: 0.045 | D18: m | E18: Vei, tunnel (begge), bru (begge), asfalt annet | F18: Beregning av materialforbruk og transport m.m. | G18: Materialtykkelse | H18: N200 | I18: IR | J18: - | L18: Beholde | M18: 0.045 | N18: m | O18: N200
A19: OK | B19: Bindlag tykkelse | C19: 0.035 | D19: m | E19: Vei, tunnel (begge), bru (begge), asfalt annet | F19: Beregning av materialforbruk og transport m.m. | G19: Materialtykkelse | H19: N200 | I19: IR | J19: - | L19: Beholde | M19: 0.035 | N19: m | O19: N200
A20: OK | B20: Bærelag tykkelse | C20: 0.13 | D20: m | E20: Vei, tunnel (begge), bru (begge), asfalt annet | F20: Beregning av materialforbruk og transport m.m. | G20: Materialtykkelse | H20: N200 | I20: IR | J20: - | L20: Beholde | M20: 0.13 | N20: m | O20: N200
A21: OK | B21: Forsterkningslag tykkelse | C21: 0.45 | D21: m | E21: Vei, tunnel (begge), bru (begge), asfalt annet | F21: Beregning av materialforbruk og transport m.m. | G21: Materialtykkelse | H21: N200 | I21: IR | J21: - | L21: Beholde | M21: 0.45 | N21: m | O21: N200
A22: OK | B22: Frostsikringslag vei tykkelse | C22: 1,74 eller 1,09 | D22: m | E22: Vei, asfalt annet | F22: Beregning av materialforbruk og transport m.m. | G22: Materialtykkelse | H22: N200 | I22: IR | J22: - | K22: Avhenger av andel av veien plassert på fjell. Dersom fjell: 1,09. Foreslår å heller sette standard tykkelse 1,74 og evt. redusere i hht. N200 basert på klimasone og telefarlighetsklasse | L22: Oppdatere | M22: 1.74 | N22: m | O22: N200
A23: OK | B23: Topeka tykkelse | C23: IR | D23: m | E23: Bru | F23: Beregning av materialforbruk og transport m.m. | G23: Materialtykkelse | H23: - | I23: 0.012 | J23: Ikke kommentert | K23: VegLCA bruker det samme i beregningene, men det er ikke eksplisitt | L23: Legge til | M23: 0.012 | N23: m | O23: SVV Håndbok R762 | P23: R: endret fra 0,12 til 0,012, antar at det var en skrivefeil?
A24: OK | B24: Frostsikringselement tunnel tykkelse | C24: 0.2 | D24: m | E24: Tunnel (begge) | F24: Beregning av materialforbruk og transport m.m. | G24: Materialtykkelse | H24: EPD for element fra Ølen Betong | I24: IR | J24: - | K24: Standardelement til frostsikring av tunnel fra Ølen Betong, basert på EPD: Element for samferdselstunneler med 150 mm tykkelse i betong og 50 mm XPS 200 kpa isolasjon. | L24: Beholde | M24: 0.2 | N24: m | O24: EPD for element fra Ølen Betong
A25: OK | B25: Mengde sprengstoff sprengning i dagen | C25: 1 | D25: kg/fm3 | E25: Bru (begge), masser | F25: Beregning av utslipp knyttet sprenging | G25: Materialmengde | H25: Metoderapport | I25: IR | J25: =IF(I25="IR","-","") -> - | L25: Beholde | M25: =IF(L25="Beholde",C25,IF(L25="Fjerne","-","")) -> 1 | N25: kg/fm3 | O25: Metoderapport og dokumentasjon EFFEKT 2015 (SVV Rapport 358) | P25: EFFEKT og Metoderapport oppgir ikke kilden de har brukt, og verdien bør derfor sokumenteres bedre i samtlige verktøy
A26: OK | B26: Mengde sprengstoff sprengning tunnel | C26: 2.2 | D26: kg/fm3 | E26: Masser | F26: Beregning av utslipp knyttet sprenging | G26: Materialmengde | H26: NIRAS erfaringstall og rapport fra 2009 mener 2,2 kg sprengstoff | I26: IR | J26: =IF(I26="IR","-","") -> - | K26: "200% høyere sprengstofforbruk i tunnel. Antar dobbelt så mye arbeid som for vei i dagen" - stemmer ikke helt? | L26: Beholde | M26: =IF(L26="Beholde",C26,IF(L26="Fjerne","-","")) -> 2.2 | N26: kg/fm3 | O26: Metoderapport og dokumentasjon EFFEKT 2015 (SVV Rapport 358). | P26: Dette tallet ser ut til å være noe høyt sammenliknet med andre kilder på nett. EFFEKT og Metoderapport oppgir ikke kilden de har brukt, og verdien bør derfor sokumenteres bedre i samtlige verktøy
A27: OK | B27: Asfaltbetong bru tykkelse | C27: 0.08 | D27: m | E27: Bru (begge) | F27: Beregning av materialforbruk og transport m.m. | G27: Materialtykkelse | H27: Ingen | I27: IR | J27: - | K27: Naturlig å anta samme tykkelse som slitelag + bindlag på vei --> 0,08 m. Legger ikke inn en egen faktor for dette. | L27: Fjerne | M27: =IF(L27="Beholde",C27,IF(L27="Fjerne","-","")) -> - | N27: - | O27: N200 (i N400 henvises det til N200 for bindlag og slitelag)
A28: OK | B28: Fuktisolering bru mengde | C28: 1.9 | D28: kg/m2 | E28: Bru (begge) | F28: Beregning av materialforbruk og transport m.m. | G28: Materialmengde | H28: Samkjøringsprosjekt | I28: IR | J28: - | K28: Samkjøringsprosjektet sier 0,94 m2 fuktisolering per m2 bru og at laget består av polymermodifisert bitumen og sand. Erstatter med Topeka | L28: Fjerne | M28: - | N28: - | O28: =IF(OR(L28="Fjerne",L28="Bake inn i annen faktor"),"-","") -> -
A29: OK | B29: Frostsikring bru tykkelse | C29: 0.035 | D29: m | E29: Bru (begge) | F29: Beregning av materialforbruk og transport m.m. | G29: Materialtykkelse | H29: Ingen | I29: IR | J29: - | K29: "Frostsikringslag med plater av ekstrudert polystyren (XPS) Antatt tykkelse 100 mm. Tetthet: 25 kg/m3". Erstatter med Topeka | L29: Fjerne | M29: - | N29: - | O29: -
A30: OK | B30: Betongmengde til betongbru | C30: 1.14 | D30: m3/m2 | E30: Betongbru | F30: Material- og transportutslipp forbundet med betong | G30: Materialmengde | H30: Fra samkjørings-prosjekt og Metoderapport | I30: IR | J30: - | K30: Verdi ser ut til å være basert på gjennomsnitt for 10 betongbruer i fellesprosjektet E16. Finner ikke dokumentasjon på dette og velger derfor å benytte gjennomsnitt fra samtlige 12 betongbruer i Metoderapporten | L30: Oppdatere | M30: 1.29 | N30: m3/m2 | O30: Metoderapport s. 47, gjennomsnitt for samtlige betongbruer, ikke vektet etter areal av bru
A31: OK | B31: Betongmengde til stålbru | C31: 0.00094 | D31: m3/m2 | E31: Stålbru | F31: Material- og transportutslipp forbundet med betong | G31: Materialmengde | H31: Fra samkjørings-prosjekt og Metoderapport | I31: IR | J31: - | K31: Verdi ser ut til å være basert på gjennomsnitt for 10 betongbruer i fellesprosjektet E16. Finner ikke dokumentasjon på dette og velger derfor å benytte gjennomsnitt fra samtlige 8 stålbruer i Metoderapporten | L31: Oppdatere | M31: 0.743 | N31: m3/m2 | O31: Metoderapport s. 47, gjennomsnitt for samtlige stålbruer, ikke vektet etter areal av bru
A32: OK | B32: Mengde armeringsstål til betongbru | C32: 180 | D32: kg/m2 | E32: Betongbru | F32: Material- og transportutslipp forbundet med stål | G32: Materialmengde | H32: Samkjøringsprosjekt | I32: IR | J32: - | K32: Verdi ser ut til å være basert på gjennomsnitt for 10 betongbruer i fellesprosjektet E16. Finner ikke dokumentasjon på dette og velger derfor å benytte gjennomsnitt fra samtlige 12 betongbruer i Metoderapporten | L32: Oppdatere | M32: 231 | N32: kg/m2 | O32: Metoderapport s. 47, gjennomsnitt for samtlige betongbruer, ikke vektet etter areal av bru
A33: OK | B33: Mengde armeringsstål til stålbru | C33: 90 | D33: kg/m2 | E33: Stålbru | F33: Material- og transportutslipp forbundet med stål | G33: Materialmengde | H33: Samkjøringsprosjekt | I33: IR | J33: - | K33: Verdi ser ut til å være basert på gjennomsnitt for 10 betongbruer i fellesprosjektet E16. Finner ikke dokumentasjon på dette og velger derfor å benytte gjennomsnitt fra samtlige 8 stålbruer i Metoderapporten | L33: Oppdatere | M33: 125 | N33: kg/m2 | O33: Metoderapport s. 47, gjennomsnitt for samtlige stålbruer, ikke vektet etter areal av bru
A34: OK | B34: Mengde konstruksjonsstål til betongbru | C34: 18 | D34: kg/m2 | E34: Betongbru | F34: Material- og transportutslipp forbundet med stål | G34: Materialmengde | H34: Samkjøringsprosjekt | I34: IR | J34: - | K34: Verdi ser ut til å være basert på gjennomsnitt for 10 betongbruer i fellesprosjektet E16. Finner ikke dokumentasjon på dette og velger derfor å benytte gjennomsnitt fra samtlige 12 betongbruer i Metoderapporten | L34: Oppdatere | M34: 0 | N34: kg/m2 | O34: Metoderapport s. 47, gjennomsnitt for samtlige betongbruer, ikke vektet etter areal av bru
A35: OK | B35: Mengde konstruksjonsstål til stålbru | C35: 300 | D35: kg/m2 | E35: Stålbru | F35: Material- og transportutslipp forbundet med stål | G35: Materialmengde | H35: Samkjøringsprosjekt | I35: IR | J35: - | K35: Usikker på dokumentasjon på dette. Velger derfor å benytte gjennomsnitt fra samtlige 8 stålbruer i Metoderapporten | L35: Oppdatere | M35: 219 | N35: kg/m2 | O35: Metoderapport s. 47, gjennomsnitt for samtlige stålbruer, ikke vektet etter areal av bru
A36: OK | B36: Masse som må sprenges for bygging av bru | C36: 0.02 | D36: m3/m2 | E36: Bru (begge) | F36: Beregning av utslipp knyttet sprenging | G36: Materialmengde | H36: Ingen | I36: IR | J36: - | K36: Gitt i samkjøringsprosjekt, trolig basert på gjennomsnitt for 10 betongbruer i fellesprosjektet E16. Finner ikke dokumentasjon for å verifisere dette, men i mangel på andre tilgjengelige data, beholdes tallet. | L36: Fjerne | M36: =IF(L36="Beholde",C36,IF(L36="Fjerne","-","")) -> - | N36: - | O36: Samkjøring, bør verifiseres
A37: OK | B37: Mengde stål støttevegger og forankringer bru | C37: 28.7 | D37: kg/m2 | E37: Bru (begge) | F37: Material- og transportutslipp forbundet med stål | G37: Materialmengde | H37: Samkjøringsprosjekt | I37: IR | J37: - | K37: Gitt i samkjøringsprosjekt, trolig basert på gjennomsnitt for 10 betongbruer i fellesprosjektet E16. Finner ikke dokumentasjon for å verifisere dette, men i mangel på andre tilgjengelige data, beholdes tallet. Antas i samkjøringsprosjekt å være i resirkulert stål | L37: Fjerne | M37: =IF(L37="Beholde",C37,IF(L37="Fjerne","-","")) -> - | N37: - | O37: Samkjøring, bør verifiseres
A38: OK | B38: Mengde stål autovern | C38: 16.5 | D38: kg/m | E38: Vei, tunnel (begge) | F38: Material- og transportutslipp forbundet med stål | G38: Materialmengde | H38: Autovern: Håndbok N101 kriterier for valg av rekkverk. Styrkeklasse: Tabell 3,1 s. 38. Rundskriv endring N101 fartsgrense 110 km/t. Vekt: Ørsta Vik sine Vik W3-rekkverk | I38: 20 | J38: Klimodul i EFFEKT | K38: "Forutsetter styrkeklasse H1 ihht tabell 3.1 i Håndbok N101 og rundskriv om rekkverk 110 km/t. Forenkler til å beregne med samme rekkverkstandard på bruer. Ørsta Vik sine Vik W3-rekkverk veier 12,5 kg/m + 16 kg per stolpe. jf telefonsamtale representant Ørsta Vik desember 2016. Vanligvis stolper per 2 meter, men framover skal det holde med stolper per 4 meter. Stålet har krav til fasthet, men gjenvinningsgrad og leverandør kan variere da de handler inn stål i bulk på et stort stålmarked. Ikke noe "finere" kvalitet på stålet til rekkverk enn stålet på autovern Altså 12,5+4= 16,5 kg/meter. Ganget med 4 for firefelts: 66 kg/m". VegLCA er ikke oppdatert etter samkjøringsprosjekt. | L38: Beholde | M38: =IF(L38="Beholde",C38,IF(L38="Fjerne","-","")) -> 16.5 | N38: kg/m | O38: Forutsetter styrkeklasse H1 ihht. tabell 3.1 og rundskriv om rekkverk 110 km/t. Forenkler til å beregne med samme rekkverkstandard på bruer. Tar utgangspunkt i Vik Ørsta W3 siderekkverk, med vekt 12,5 kg/m + 16 kg per stolpe. jf telefonsamtale representant Ørsta Vik desember 2016. Rekkverket Vik EP H1 CC4 har stolpeavstand på 4 m -> Samlet vekt blir 12,5 + 16/4 = 16,5 kg/m. | P38: Stålet har krav til fasthet, men gjenvinningsgrad og leverandør kan variere da de handler inn stål i bulk på et stort stålmarked. Ikke noe "finere" kvalitet på stålet til rekkverk enn stålet på autovern. For firefeltsvei må rekkverkmengden ganges med 4. | Q38: https://www.vikorsta.no/vegrekkverk/vegrekkverk/vik-ep-h1-cc4/
A39: OK | B39: Vekt lyktestolper | C39: 261 | D39: kg | E39: Vei, tunnel (begge), bru (begge) | F39: Material- og transportutslipp forbundet med stål | G39: Materialmengde | H39: Høyde- og vektinformasjon om mast fra Euromast, vektinformasjon om fundament fra Vik Ørsta | I39: 90 | J39: Leverandører | K39: Verdi er summen av vekt til mast (210 kg) og fundament (51 kg). Mast er 12 m høy. Ifølge samkjøringsprosjekt skulle VegLCA oppdateres med NIRAS' verdi. Euromast finnes ikke lenger - bruker mast fra VikØrsta i tillegg til fundament. Denne veier 176 kg -> totalt 227 kg. Anbefaler at VegLCA øker sin verdi noe. | L39: Oppdatere | M39: 227 | N39: kg | O39: Produsentinformasjon fra Vik Ørsta AS. Produktkatalog 2020 s. 17 og s. 44 | Q39: https://ipaper.ipapercms.dk/Saferoad/vik-oersta/produktkatalog-lysmast/?page=22#/
A40: OK | B40: Sikringsbolter tunnel | C40: 44 | D40: kg/m | E40: Tunnel | F40: Materialutslipp forbundet med stål | G40: Materialmengde | H40: Metoderapport s. 33 | L40: Beholde | M40: 44 | N40: kg/m | O40: Metoderapport s. 8 i vedlegg 1
A41: OK | B41: Kulvertelementer tykkelse | C41: 1.18 | D41: m3/m2 | E41: Kulvert | F41: Materialutslipp forbundet med betong og stål | G41: Materialmengde | H41: Ingen | I41: IR | J41: - | K41: "Tverrsnittvolum = 31,15 m2. ref. Tegning typisk kulvert. V/A = 1,18 m3/m2. Bruker tetthet bettong 2,3 tonn/m3". Her er det mye rart. Oppdaterer verdien. Oppdaterer til å bruke tykkelse på elementer istedenfor totalt betongvolum per m2 (som inkluderer tak, gulv og vegger) | L41: Oppdatere | M41: 0.24 | N41: m3/m2 | O41: Prefabrikkerte kulvertelementer, Statens vegvesen | Q41: https://www.vegvesen.no/fag/teknologi/bruer/bruprosjektering/prefabrikkerte-kulvertelementer/_attachment/1361322?_ts=15d081de438&fast_title=Grunnlag%2C+beregningsforutsetninger+og+eksempel.pdf
A42: OK | B42: Høyde på kulvert | C42: IR | D42: m | E42: Kulvert | F42: Materialutslipp forbundet med betong og stål | G42: Materialmengde | H42: IR | I42: IR | J42: - | L42: Legge til | M42: 3.2 | N42: m | O42: Prefabrikkerte kulvertelementer, Statens vegvesen | Q42: https://www.vegvesen.no/fag/teknologi/bruer/bruprosjektering/prefabrikkerte-kulvertelementer/_attachment/1361322?_ts=15d081de438&fast_title=Grunnlag%2C+beregningsforutsetninger+og+eksempel.pdf
A43: OK | B43: Forholdstall mellom betong og armering i kulvertelementer | C43: 12.3 | D43: kg/kg | E43: Kulvert | F43: Materialutslipp forbundet med stål | G43: Materialmengde | H43: IR | I43: IR | J43: - | L43: Oppdatere | M43: 13 | N43: kg/kg | O43: Tar utgangspunkt i Metoderapprt s. 8 i vedlegg 1, der andelen betong er 13 ganger høyere enn andelen armering for samme volum.
B44: Arbeidshastigheter
B45: Arbeidshastighet veivals | C45: 300 | D45: t/h | E45: Vei, tunnel (begge), bru (begge), asfalt annet | F45: Beregning av drivstofforbruk valsing av bærelag, bindlag og slitelag | G45: Arbeidshastighet | H45: Ingen | K45: Brukes til bærelag, bindlag og slitelag -> 2,4*0,13+2,5*(0,035+0,045) = 0,512 tonn/m2 | O45: =IF(OR(L45="Fjerne",L45="Bake inn i annen faktor"),"-","") -> 
B46: Arbeidshastighet traktor | C46: 300 | D46: t/h | E46: Vei, tunnel (begge), bru (begge), asfalt annet | F46: Beregning av drivstofforbruk traktor for bærelag, bindlag og slitelag | G46: Arbeidshastighet | H46: Ingen | K46: Brukes til bærelag, bindlag og slitelag -> 2,4*0,13+2,5*(0,035+0,045) = 0,512 tonn/m2
B47: Arbeidshastighet asfaltutlegger | C47: 300 | D47: t/h | E47: Vei, tunnel (begge), bru (begge), asfalt annet | F47: Beregning av drivstofforbruk utlegging av bærelag, bindlag og slitelag | G47: Arbeidshastighet | H47: Ingen | K47: Brukes til bærelag, bindlag og slitelag -> 2,4*0,13+2,5*(0,035+0,045) = 0,512 tonn/m2
B48: Arbeidshastighet gravemaskin | C48: 150 | D48: t/h | E48: Vei, tunnel (begge), bru (begge), asfalt annet | F48: Beregning av drivstofforbruk til anlegging av forsterkningslag | G48: Arbeidshastighet | H48: Ingen | K48: Brukes til forsterkningslag -> 0,45*1,5 = 0,675 tonn/m2. Endres med endret massetetthet pukk: 0,45*1,55 =0,6975 tonn/m2
B49: Arbeidshastighet grovknuser | C49: 125 | D49: t/h | E49: Vei, tunnel (begge), bru (begge), asfalt annet | F49: Beregning av drivstofforbruk til anlegging av forsterkningslag | G49: Arbeidshastighet | H49: Ingen | K49: Brukes til forsterkningslag -> 0,45*1,5 = 0,675 tonn/m2. Endres med endret massetetthet pukk: 0,45*1,55 =0,6975 tonn/m2
